{"text_format":"1","workbook":"xlsx","n_sheets":27,"sheets":["Vejledning til brug af ark","Kodefinder","Adm.ark specialer","Delkursusleder 1","(Evt. delkursusleder 2)","Honorarlønnet 1","Honorarlønnet 2","Honorarlønnet 3","Honorarlønnet 4","Honorarlønnet 5","Honorarlønnet 6","Honorarlønnet 7","Honorarlønnet 8","Honorarlønnet 9","Honorarlønnet 10","Honorarlønnet 11","Honorarlønnet 12","Honorarlønnet 13","Honorarlønnet 14","Honorarlønnet 15","Sekretær","Samlingsark","Hovedkursusleder","SST, økonomi","Lønadm.","Lønadm_backup","Adm.ark satser"],"not_rendered":{"charts":0,"images":1,"macros":1,"external_links":0,"defined_names":48,"comments":0,"pivot_tables":0},"unopened":[],"bounds":{"document_bytes":16777216,"sheet_cells":100000,"rows_first":2000,"rows_last":500,"rows_between":2000,"halvings":0,"cell_chars":16384,"cell_head_chars":4096},"cells_cut":0,"cells_raw":0,"read":"whole","date_system":"1900"}

{"sheet":"Vejledning til brug af ark","index":0,"n_rows":14,"n_cols":24,"rows_kept":14,"cut":false,"hidden":false,"merged":[[6,15,6,23],[11,20,11,21],[12,20,12,21],[13,20,13,21]]}
["Sådan udfyldes arket:",null,null,null,null,null,null,null,null,null,null,null,null,null,null,"Spørgsmål og svar",null,null,null,null,null,null,null,"vers. 38"]
[null,null,null,null,null,null,null,null,null,null,null,null,null,null,null,null,null,null,null,null,null,null,null,"2025-02-21"]
[null,null,null,null,null,null,null,null,null,null,null,null,null,null,null,"Mere end 15 undervisere? Udfyld 2 selvstændige dokumenter med bemærkning"]
[null,null,null,null,null,null,null,null,null,null,null,null,null,null,null,"Mere end 2 delkursusleder eller mere end 1 sekretær? Udfyld 2 selvstændige dokumenter med bemærkning"]
[null,null,null,null,null,null,null,null,null,null,null,null,null,null,null,"Skal alle faneblade udfyldes? Nej, kun de grønne faneblade må udfyldes."]
[null,null,null,null,null,null,null,null,null,null,null,null,null,null,null,"Hvilket format skal excelarket sendes i? Arket skal sendes som vedhæftet excel-fil, må IKKE konverteres til pdf"]
[null,null,null,null,null,null,null,null,null,null,null,null,null,null,null,"Probemer med filstørrelse? Hvis den endelige fil er for stor til Outlook (20 mb) anbefales du at dele filen med din institutions fildelingssystem eller at ZIP-komprimere filen."]
[]
[null,null,null,null,null,null,null,null,null,null,null,null,null,null,null,"Telefonliste"]
[null,null,null,null,null,null,null,null,null,null,null,null,null,null,null,"Hvis du oplever problemer med at benytte arket er du velkommen til at kontakte"]
[]
[null,null,null,null,null,null,null,null,null,null,null,null,null,null,null,"Maiken Bjerg, Sundhedsstyrelsen",null,null,null,"mail:","maib@sst.dk",null,"tlf:","20 26 66 81"]
[null,null,null,null,null,null,null,null,null,null,null,null,null,null,null,"Oskar Reeh, Sundhedsstyrelsen",null,null,null,"mail:","osre@sst.dk",null,"tlf:","21 27 99 85"]
[null,null,null,null,null,null,null,null,null,null,null,null,null,null,null,"Specialespecifikke Postkasse",null,null,null,"mail:","specialespecifikke@sst.dk",null,"tlf:","72 22 74 00"]

{"sheet":"Kodefinder","index":1,"n_rows":765,"n_cols":14,"rows_kept":765,"cut":false,"hidden":true,"merged":[]}
["Indsæt data fra opdateringsark i række A og B, så opdaters resten af arket automatisk."]
["Du skal altså kun opdatere dette ark når der findes nye kurser. Det opdateres i samme omgang som \"Adm.ark specialer\""]
["Den nemmeste måde er at vælge al data i kolonne A:B, slette det og indsætte det nye. På den måde er du sikker på at undgå duplikater"]
[]
[]
["Kursus-nummer","Kursusnavn","hjælpekolonne","Nummer","Speciale","Speciale_",null,null,"FINDER"]
[25101,"ØST29 modul 13",{"$f":"IF(LEN(A7)=5,LEFT(A7,3),LEFT(A7,4))","v":"251"},{"$f":"INDEX(J:J,MATCH(C7,I:I,0))","v":100},{"$f":"INDEX(K:K,MATCH(D7,J:J,0))","v":"Almen Medicin, Kbh"},{"$f":"INDEX(L:L,MATCH(E7,K:K,0))","v":"Almen_Medicin_Kbh"},null,null,"251",100,"Almen Medicin, Kbh","Almen_Medicin_Kbh",null,{"$f":"IFERROR(INDEX(A:A,MATCH(#REF!,B:B,0)),\"Der findes flere kurser med samme navn. Du skal manuelt vælge kursusnummer\")","v":"Der findes flere kurser med samme navn. Du skal manuelt vælge kursusnummer"}]
[25102,"ØST29 modul 14",{"$f":"IF(LEN(A8)=5,LEFT(A8,3),LEFT(A8,4))","v":"251"},100,"Almen Medicin, Kbh","Almen_Medicin_Kbh",null,null,"252",200,"Almen Medicin, Odense","Almen_Medicin_Odense"]
[25103,"ØST29 modul 15","251",100,"Almen Medicin, Kbh","Almen_Medicin_Kbh",null,null,"253",300,"Almen Medicin, Århus","Almen_Medicin_Aarhus"]
[25104,"ØST29 modul 16","251",100,"Almen Medicin, Kbh","Almen_Medicin_Kbh",null,null,"254",400,"Anæstesiologi","Anæstesiologi"]
[25105,"ØST30 modul 11","251",100,"Almen Medicin, Kbh","Almen_Medicin_Kbh",null,null,"255",500,"Arbejdsmedicin","Arbejdsmedicin"]
[25106,"ØST30 modul 12","251",100,"Almen Medicin, Kbh","Almen_Medicin_Kbh",null,null,"256",600,"Børne- og ungdomspsykiatri","Børne_og_ungdomspsykiatri"]
[25107,"ØST30 modul 13","251",100,"Almen Medicin, Kbh","Almen_Medicin_Kbh",null,null,"257",700,"Dermato-venerologi","Dermato_venerologi"]
[25108,"ØST30 modul 14","251",100,"Almen Medicin, Kbh","Almen_Medicin_Kbh",null,null,"258",800,"Diagnostisk radiologi","Diagnostisk_radiologi"]
[25109,"ØST30 modul 15","251",100,"Almen Medicin, Kbh","Almen_Medicin_Kbh",null,null,"259",900,"Gynækologi og obstetrik","Gynækologi_og_obstetrik"]
[25110,"ØST30 modul 16","251",100,"Almen Medicin, Kbh","Almen_Medicin_Kbh",null,null,"2510",1000,"IM: Endokrinologi","IM_Endokrinologi"]
[25111,"ØST31 modul 10","251",100,"Almen Medicin, Kbh","Almen_Medicin_Kbh",null,null,"2511",1100,"IM: Fælleskurser","IM_Fælleskurser"]
[25112,"ØST31 modul 11","251",100,"Almen Medicin, Kbh","Almen_Medicin_Kbh",null,null,"2512",1200,"IM: Gastroenterologi og Hepatologi","IM_Gastroenterologi_og_Hepatologi"]
[25113,"ØST31 modul 12","251",100,"Almen Medicin, Kbh","Almen_Medicin_Kbh",null,null,"2513",1300,"IM: Geriatri","IM_Geriatri"]
[25114,"ØST31 modul 13","251",100,"Almen Medicin, Kbh","Almen_Medicin_Kbh",null,null,"2514",1400,"IM: Hæmatologi","IM_Hæmatologi"]
[25115,"ØST31 modul 14","251",100,"Almen Medicin, Kbh","Almen_Medicin_Kbh",null,null,"2515",1500,"IM: Infektionsmedicin","IM_Infektionsmedicin"]
[25118,"ØST32 modul 10","251",100,"Almen Medicin, Kbh","Almen_Medicin_Kbh",null,null,"2516",1600,"IM: Kardiologi","IM_Kardiologi"]
[25136,"ØST37 modul 09","251",100,"Almen Medicin, Kbh","Almen_Medicin_Kbh",null,null,"2517",1700,"IM: Lungesygdomme","IM_Lungesygdomme"]
[25137,"ØST38 modul 09","251",100,"Almen Medicin, Kbh","Almen_Medicin_Kbh",null,null,"2518",1800,"IM: Nefrologi","IM_Nefrologi"]
[25138,"ØST38X modul 09","251",100,"Almen Medicin, Kbh","Almen_Medicin_Kbh",null,null,"2519",1900,"IM: Reumatologi","IM_Reumatologi"]
[25139,"ØST39 modul 08","251",100,"Almen Medicin, Kbh","Almen_Medicin_Kbh",null,null,"2520",2000,"Karkirurgi","Karkirurgi"]
[25141,"ØST40 modul 08","251",100,"Almen Medicin, Kbh","Almen_Medicin_Kbh",null,null,"2521",2100,"Kirurgi","Kirurgi"]
[25143,"ØST40X modul 08","251",100,"Almen Medicin, Kbh","Almen_Medicin_Kbh",null,null,"2522",2200,"Kir. færdighedskurser, KBH, Odense og Århus","Kir._færdighedskurser_KBH_Odense_og_Århus"]
[25145,"ØST41 modul 07","251",100,"Almen Medicin, Kbh","Almen_Medicin_Kbh",null,null,"2524",2400,"Klinisk Biokemi","Klinisk_Biokemi"]
[25147,"ØST42 modul 07","251",100,"Almen Medicin, Kbh","Almen_Medicin_Kbh",null,null,"2525",2500,"Klinisk Farmakologi","Klinisk_Farmakologi"]
[25149,"ØST42X modul 04","251",100,"Almen Medicin, Kbh","Almen_Medicin_Kbh",null,null,"2526",2600,"Klinisk Fysiologi og Nuklearmedicin","Klinisk_Fysiologi_og_Nuklearmedicin"]
[25150,"ØST42X modul 07","251",100,"Almen Medicin, Kbh","Almen_Medicin_Kbh",null,null,"2527",2700,"Klinisk Genetik","Klinisk_Genetik"]
[25152,"ØST43 modul 04","251",100,"Almen Medicin, Kbh","Almen_Medicin_Kbh",null,null,"2528",2800,"Klinisk Immunologi","Klinisk_Immunologi"]
[25153,"ØST43 modul 06","251",100,"Almen Medicin, Kbh","Almen_Medicin_Kbh",null,null,"2529",2900,"Klinisk Mikrobiologi","Klinisk_Mikrobiologi"]
[25155,"ØST44 modul 04","251",100,"Almen Medicin, Kbh","Almen_Medicin_Kbh",null,null,"2530",3000,"Klinisk Onkologi","Klinisk_Onkologi"]
[25156,"ØST44 modul 05","251",100,"Almen Medicin, Kbh","Almen_Medicin_Kbh",null,null,"2531",3100,"Neurokirurgi","Neurokirurgi"]
[25157,"ØST44 modul 06","251",100,"Almen Medicin, Kbh","Almen_Medicin_Kbh",null,null,"2532",3200,"Neurologi","Neurologi"]
[25159,"ØST44X modul 03","251",100,"Almen Medicin, Kbh","Almen_Medicin_Kbh",null,null,"2533",3300,"Oftalmologi","Oftalmologi"]
[25160,"ØST44X modul 04","251",100,"Almen Medicin, Kbh","Almen_Medicin_Kbh",null,null,"2534",3400,"Ortopædisk kirurgi","Ortopædisk_kirurgi"]
[25161,"ØST44X modul 05","251",100,"Almen Medicin, Kbh","Almen_Medicin_Kbh",null,null,"2535",3500,"Oto-rhino-laryngologi","Oto_rhino_laryngologi"]
[25162,"ØST44X modul 06","251",100,"Almen Medicin, Kbh","Almen_Medicin_Kbh",null,null,"2536",3600,"Patologisk anatomi og cytologi","Patologisk_anatomi_og_cytologi"]
[25164,"ØST45 modul 01","251",100,"Almen Medicin, Kbh","Almen_Medicin_Kbh",null,null,"2537",3700,"Plastikkirurgi","Plastikkirurgi"]
[25165,"ØST45 modul 02","251",100,"Almen Medicin, Kbh","Almen_Medicin_Kbh",null,null,"2538",3800,"Psykiatri","Psykiatri"]
[25166,"ØST45 modul 03","251",100,"Almen Medicin, Kbh","Almen_Medicin_Kbh",null,null,"2539",3900,"Pædiatri","Pædiatri"]
[25167,"ØST45 modul 04","251",100,"Almen Medicin, Kbh","Almen_Medicin_Kbh",null,null,"2540",4000,"Retsmedicin","Retsmedicin"]
[25168,"ØST45 modul 05","251",100,"Almen Medicin, Kbh","Almen_Medicin_Kbh",null,null,"2541",4100,"Samfundsmedicin","Samfundsmedicin"]
[25170,"ØST46 modul 01","251",100,"Almen Medicin, Kbh","Almen_Medicin_Kbh",null,null,"2542",4200,"Thoraxkirurgi","Thoraxkirurgi"]
[25171,"ØST46 modul 02","251",100,"Almen Medicin, Kbh","Almen_Medicin_Kbh",null,null,"2543",4300,"Urologi","Urologi"]
[25172,"ØST46 modul 03","251",100,"Almen Medicin, Kbh","Almen_Medicin_Kbh",null,null,"2544",4400,"SOL","SOL_2"]
[25173,"ØST46 modul 04","251",100,"Almen Medicin, Kbh","Almen_Medicin_Kbh",null,null,null,4400,"SOL","SOL_2"]
[25176,"ØST46X modul 01","251",100,"Almen Medicin, Kbh","Almen_Medicin_Kbh",null,null,"2546",4600,"Tand-, mund- og kæbekirurgi","Tand_mund_og_kæbekirurgi"]
[25177,"ØST46X modul 02","251",100,"Almen Medicin, Kbh","Almen_Medicin_Kbh",null,null,"2547",4700,"Ortodonti","Ortodonti"]
[25178,"ØST46X modul 03","251",100,"Almen Medicin, Kbh","Almen_Medicin_Kbh",null,null,"2550",5000,"Kir. Færdighedskursus operativ gynækologi","Færdighedskurser_operativ_gynækologi"]
[25201,"SYD 2021-1","252",200,"Almen Medicin, Odense","Almen_Medicin_Odense",null,null,"2551",5100,"Kir. Færdighedskursus otopædisk kirurgi","Færdighedskurser_ort._kir."]
[25202,"SYD 2021-2","252",200,"Almen Medicin, Odense","Almen_Medicin_Odense",null,null,"2560",6000,"Akutmedicin","Akutmedicin"]
[25203,"SYD 2021-3","252",200,"Almen Medicin, Odense","Almen_Medicin_Odense",null,null,null,"","",""]
[25204,"SYD 2021-4","252",200,"Almen Medicin, Odense","Almen_Medicin_Odense"]
[25209,"SYD 2023-1","252",200,"Almen Medicin, Odense","Almen_Medicin_Odense"]
[25210,"SYD 2023-2","252",200,"Almen Medicin, Odense","Almen_Medicin_Odense"]
[25211,"SYD 2023-3","252",200,"Almen Medicin, Odense","Almen_Medicin_Odense"]
[25212,"SYD 2023-4","252",200,"Almen Medicin, Odense","Almen_Medicin_Odense"]
[25213,"SYD 2023-5","252",200,"Almen Medicin, Odense","Almen_Medicin_Odense"]
[25214,"SYD 2024-1","252",200,"Almen Medicin, Odense","Almen_Medicin_Odense"]
[25215,"SYD 2024-2","252",200,"Almen Medicin, Odense","Almen_Medicin_Odense"]
[25216,"SYD 2024-3","252",200,"Almen Medicin, Odense","Almen_Medicin_Odense"]
[25217,"SYD 2024-4","252",200,"Almen Medicin, Odense","Almen_Medicin_Odense"]
[25218,"SYD 2025-1","252",200,"Almen Medicin, Odense","Almen_Medicin_Odense"]
[25219,"SYD 2025-2","252",200,"Almen Medicin, Odense","Almen_Medicin_Odense"]
[25303,"Nord46",{"$f":"IF(LEN(A69)=5,LEFT(A69,3),LEFT(A69,4))","v":"253"},300,"Almen Medicin, Århus","Almen_Medicin_Aarhus"]
[25304,"Nord45","253",300,"Almen Medicin, Århus","Almen_Medicin_Aarhus"]
[25305,"Nord44","253",{"$f":"INDEX(J:J,MATCH(C71,I:I,0))","v":300},{"$f":"INDEX(K:K,MATCH(D71,J:J,0))","v":"Almen Medicin, Århus"},{"$f":"INDEX(L:L,MATCH(E71,K:K,0))","v":"Almen_Medicin_Aarhus"}]
[25306,"Nord43","253",300,"Almen Medicin, Århus","Almen_Medicin_Aarhus"]
[25307,"Nord42","253",300,"Almen Medicin, Århus","Almen_Medicin_Aarhus"]
[25308,"Nord41","253",300,"Almen Medicin, Århus","Almen_Medicin_Aarhus"]
[25309,"Nord40","253",300,"Almen Medicin, Århus","Almen_Medicin_Aarhus"]
[25310,"Nord39",{"$f":"IF(LEN(A76)=5,LEFT(A76,3),LEFT(A76,4))","v":"253"},300,"Almen Medicin, Århus","Almen_Medicin_Aarhus"]
[25311,"Nord38","253",300,"Almen Medicin, Århus","Almen_Medicin_Aarhus"]
[25312,"Nord37","253",300,"Almen Medicin, Århus","Almen_Medicin_Aarhus"]
[25313,"Nord36","253",300,"Almen Medicin, Århus","Almen_Medicin_Aarhus"]
[25314,"Nord35","253",300,"Almen Medicin, Århus","Almen_Medicin_Aarhus"]
[25317,"Nord32","253",300,"Almen Medicin, Århus","Almen_Medicin_Aarhus"]
[25318,"Nord31","253",300,"Almen Medicin, Århus","Almen_Medicin_Aarhus"]
[25319,"Nord30","253",300,"Almen Medicin, Århus","Almen_Medicin_Aarhus"]
[25320,"Nord29","253",300,"Almen Medicin, Århus","Almen_Medicin_Aarhus"]
[25321,"Nord28","253",300,"Almen Medicin, Århus","Almen_Medicin_Aarhus"]
[25401,"Luftvejshåndtering – Hold nov. 2024","254",400,"Anæstesiologi","Anæstesiologi"]
[25402,"Avanceret intensiv terapi – Hold nov. 2022","254",400,"Anæstesiologi","Anæstesiologi"]
[25403,"Obstetrisk anæstesi og det nyfødte barn – Hold nov. 2023 ","254",400,"Anæstesiologi","Anæstesiologi"]
[25404,"Ultralyd for anæstesiologer - Hold nov. 2024","254",400,"Anæstesiologi","Anæstesiologi"]
[25405,"Anæstesi – Hold maj 2022 ","254",400,"Anæstesiologi","Anæstesiologi"]
[25406,"Intensiv terapi NORD & SYD – Hold nov. 2024","254",400,"Anæstesiologi","Anæstesiologi"]
[25407,"Intensiv terapi - ØST Hold nov. 2024  ","254",400,"Anæstesiologi","Anæstesiologi"]
[25408,"Pædiatrisk anæstesi – Hold maj 2023 ","254",400,"Anæstesiologi","Anæstesiologi"]
[25409,"Klinisk beslutningstagen – Hold nov. 2021 ","254",400,"Anæstesiologi","Anæstesiologi"]
[25410,"Akutte smerter og kroniske smerter – Hold maj 2024 ","254",400,"Anæstesiologi","Anæstesiologi"]
[25411,"Neuro, traume og præhospital – Hold nov. 2022","254",400,"Anæstesiologi","Anæstesiologi"]
[25412,"Patientsikkerhed og professionel kommunikation – Hold maj 2024","254",400,"Anæstesiologi","Anæstesiologi"]
[25501,"Klinisk Arbejdsmedicin","255",500,"Arbejdsmedicin","Arbejdsmedicin"]
[25601,"ADHD, Komorbiditet og differentialdiagnostik ","256",600,"Børne- og ungdomspsykiatri","Børne_og_ungdomspsykiatri"]
[25602,"Farmakologisk behandling af ADHD (Psykofarmakologi 2) ","256",600,"Børne- og ungdomspsykiatri","Børne_og_ungdomspsykiatri"]
[25603,"Retspsykiatri","256",600,"Børne- og ungdomspsykiatri","Børne_og_ungdomspsykiatri"]
[25604,"Adfærds- og personlighedsforstyrrelser ","256",600,"Børne- og ungdomspsykiatri","Børne_og_ungdomspsykiatri"]
[25605,"Misbrug","256",600,"Børne- og ungdomspsykiatri","Børne_og_ungdomspsykiatri"]
[25606,"Teoretisk kursus psykopatologi ","256",600,"Børne- og ungdomspsykiatri","Børne_og_ungdomspsykiatri"]
[25607,"Autismespektrumforstyrrelser, generelle udviklingsforstyrrelser og sjældne neuropsykiatriske lidelser ","256",600,"Børne- og ungdomspsykiatri","Børne_og_ungdomspsykiatri"]
[25701,"Den geriatriske patient og lokalbehandling ","257",700,"Dermato-venerologi","Dermato_venerologi"]
[25702,"Kursus i basal dermatologi (Øst)","257",700,"Dermato-venerologi","Dermato_venerologi"]
[25703,"Den kløende patient og pædiatri ","257",700,"Dermato-venerologi","Dermato_venerologi"]
[25801,"Abdominal radiologi","258",800,"Diagnostisk radiologi","Diagnostisk_radiologi"]
[25806,"Neuroradiologi Inkl. Hoved/hals ","258",800,"Diagnostisk radiologi","Diagnostisk_radiologi"]
[25808,"Thorax radiologi","258",800,"Diagnostisk radiologi","Diagnostisk_radiologi"]
[25901,"Intrapartal obstetrik","259",900,"Gynækologi og obstetrik","Gynækologi_og_obstetrik"]
[25902,"Urogynækologi","259",900,"Gynækologi og obstetrik","Gynækologi_og_obstetrik"]
[25903,"Benign gynækologi","259",900,"Gynækologi og obstetrik","Gynækologi_og_obstetrik"]
[25904,"Reproduktionsmedicin","259",900,"Gynækologi og obstetrik","Gynækologi_og_obstetrik"]
[25905,"Kommunikation A","259",900,"Gynækologi og obstetrik","Gynækologi_og_obstetrik"]
[25906,"Endokrin gynækologi","259",900,"Gynækologi og obstetrik","Gynækologi_og_obstetrik"]
[25911,"Kursus for delkursusledere","259",900,"Gynækologi og obstetrik","Gynækologi_og_obstetrik"]
[251001,"Laboratorieteknik","2510",1000,"IM: Endokrinologi","IM_Endokrinologi"]
[251003,"Thyroideasygdomme","2510",1000,"IM: Endokrinologi","IM_Endokrinologi"]
[251005,"Knogle- og calciummetaboliske sygdomme","2510",1000,"IM: Endokrinologi","IM_Endokrinologi"]
[251101,"Akut medicin, Nord - Maj","2511",1100,"IM: Fælleskurser","IM_Fælleskurser"]
[251102,"Akut medicin, Syd - Maj","2511",1100,"IM: Fælleskurser","IM_Fælleskurser"]
[251103,"Akut medicin, Øst - Maj","2511",1100,"IM: Fælleskurser","IM_Fælleskurser"]
[251107,"De 8 selskabers kursusdag, Nord - Maj","2511",1100,"IM: Fælleskurser","IM_Fælleskurser"]
[251108,"De 8 selskabers kursusdag, Syd - Maj","2511",1100,"IM: Fælleskurser","IM_Fælleskurser"]
[251109,"De 8 selskabers kursusdag, Øst - Maj","2511",1100,"IM: Fælleskurser","IM_Fælleskurser"]
[251113,"Rationel farmakoterapi, Nord - Maj","2511",1100,"IM: Fælleskurser","IM_Fælleskurser"]
[251114,"Rationel farmakoterapi, Syd - Maj","2511",1100,"IM: Fælleskurser","IM_Fælleskurser"]
[251115,"Rationel farmakoterapi, Øst - Maj","2511",1100,"IM: Fælleskurser","IM_Fælleskurser"]
[251119,"Neurologi for intern medicinere, Nord - Maj","2511",1100,"IM: Fælleskurser","IM_Fælleskurser"]
[251120,"Neurologi for intern medicinere, Syd - Maj","2511",1100,"IM: Fælleskurser","IM_Fælleskurser"]
[251121,"Neurologi for intern medicinere, Øst - Maj","2511",1100,"IM: Fælleskurser","IM_Fælleskurser"]
[251125,"Psykiatri for intern medicinere, Nord - Maj","2511",1100,"IM: Fælleskurser","IM_Fælleskurser"]
[251126,"Psykiatri for intern medicinere, Syd - Maj","2511",{"$f":"INDEX(J:J,MATCH(C135,I:I,0))","v":1100},{"$f":"INDEX(K:K,MATCH(D135,J:J,0))","v":"IM: Fælleskurser"},{"$f":"INDEX(L:L,MATCH(E135,K:K,0))","v":"IM_Fælleskurser"}]
[251127,"Psykiatri for intern medicinere, Øst - Maj","2511",1100,"IM: Fælleskurser","IM_Fælleskurser"]
[251131,"Rationel klinisk beslutningsteori, Nord - Maj","2511",1100,"IM: Fælleskurser","IM_Fælleskurser"]
[251132,"Rationel klinisk beslutningsteori, Syd - Maj","2511",1100,"IM: Fælleskurser","IM_Fælleskurser"]
[251133,"Rationel klinisk beslutningsteori, Øst - Maj","2511",1100,"IM: Fælleskurser","IM_Fælleskurser"]
[251137,"Onkologi for intern medicinere, Nord - Maj",{"$f":"IF(LEN(A140)=5,LEFT(A140,3),LEFT(A140,4))","v":"2511"},1100,"IM: Fælleskurser","IM_Fælleskurser"]
[251138,"Onkologi for intern medicinere, Syd - Maj","2511",1100,"IM: Fælleskurser","IM_Fælleskurser"]
[251139,"Onkologi for intern medicinere, Øst - Maj","2511",1100,"IM: Fælleskurser","IM_Fælleskurser"]
[251143,"Den terminale patient, palliativ behandling, Nord - Maj","2511",1100,"IM: Fælleskurser","IM_Fælleskurser"]
[251144,"Den terminale patient, palliativ behandling, Syd - Maj","2511",1100,"IM: Fælleskurser","IM_Fælleskurser"]
[251145,"Den terminale patient, palliativ behandling, Øst - Maj","2511",1100,"IM: Fælleskurser","IM_Fælleskurser"]
[251149,"Den ældre patient, Nord - Maj","2511",1100,"IM: Fælleskurser","IM_Fælleskurser"]
[251150,"Den ældre patient, Syd - Maj","2511",1100,"IM: Fælleskurser","IM_Fælleskurser"]
[251151,"Den ældre patient, Øst - Maj","2511",1100,"IM: Fælleskurser","IM_Fælleskurser"]
[251197,"DSIM kursusudvalg","2511",1100,"IM: Fælleskurser","IM_Fælleskurser"]
[251201,"Gastrointestinal Endoskopi","2512",1200,"IM: Gastroenterologi og Hepatologi","IM_Gastroenterologi_og_Hepatologi"]
[251202,"Hepatologi","2512",1200,"IM: Gastroenterologi og Hepatologi","IM_Gastroenterologi_og_Hepatologi"]
[251301,"Geriatriske sygdomme 1, hjerte, lunge, endo","2513",1300,"IM: Geriatri","IM_Geriatri"]
[251303,"Kursusplanlægning","2513",1300,"IM: Geriatri","IM_Geriatri"]
[251401,"Lavmaligne lymfeproliferative sygdomme","2514",1400,"IM: Hæmatologi","IM_Hæmatologi"]
[251402,"Højmaligne lymfeproliferative sygdomme","2514",1400,"IM: Hæmatologi","IM_Hæmatologi"]
[251403,"M-komponent sygdomme","2514",1400,"IM: Hæmatologi","IM_Hæmatologi"]
[251501,"Teoretisk kursus i mikrobiologi",{"$f":"IF(LEN(A157)=5,LEFT(A157,3),LEFT(A157,4))","v":"2515"},1500,"IM: Infektionsmedicin","IM_Infektionsmedicin"]
[251504,"Tropemedicinsk kursus",{"$f":"IF(LEN(A158)=5,LEFT(A158,3),LEFT(A158,4))","v":"2515"},1500,"IM: Infektionsmedicin","IM_Infektionsmedicin"]
[251601,"TEE simulation","2516",1600,"IM: Kardiologi","IM_Kardiologi"]
[251605,"ÅR 3 KURSUS (HU3)","2516",1600,"IM: Kardiologi","IM_Kardiologi"]
[251606,"ÅR 4 KURSUS (HU4)","2516",1600,"IM: Kardiologi","IM_Kardiologi"]
[251607,"ÅR 5 KURSUS (HU5)","2516",1600,"IM: Kardiologi","IM_Kardiologi"]
[251701,"Kursus i Klinisk respirationsfysiologi","2517",1700,"IM: Lungesygdomme","IM_Lungesygdomme"]
[251703,"Kursus i Astma","2517",1700,"IM: Lungesygdomme","IM_Lungesygdomme"]
[251704,"Kursus i Allergi ","2517",1700,"IM: Lungesygdomme","IM_Lungesygdomme"]
[251706,"Kursus i Infiltratudredning, pleuraeffusioner, mesotheliom og hæmoptyse ","2517",1700,"IM: Lungesygdomme","IM_Lungesygdomme"]
[251708,"Kursus i Interstitielle Lungesygdomme ","2517",1700,"IM: Lungesygdomme","IM_Lungesygdomme"]
[251801,"Akut og kronisk glomerulonephiritis, HUS og TTP","2518",1800,"IM: Nefrologi","IM_Nefrologi"]
[251902,"Delkursus 2 - Inflammatoriske lidelser 2","2519",1900,"IM: Reumatologi","IM_Reumatologi"]
[251904,"Delkursus 4 - Den patologiske overekstremitet","2519",1900,"IM: Reumatologi","IM_Reumatologi"]
[251905,"Delkursus 5 - Vaskulit og bindevævssygdomme","2519",1900,"IM: Reumatologi","IM_Reumatologi"]
[251907,"USU-møder ","2519",1900,"IM: Reumatologi","IM_Reumatologi"]
[252002,"Basalt ultralydskursus","2520",2000,"Karkirurgi","Karkirurgi"]
[252005,"ENHANCE OPEN","2520",2000,"Karkirurgi","Karkirurgi"]
[252006,"ENHANCE EVAR","2520",2000,"Karkirurgi","Karkirurgi"]
[252007,"ENHANCE PAD","2520",2000,"Karkirurgi","Karkirurgi"]
[252101,"Mammakirurgi","2521",2100,"Kirurgi","Kirurgi"]
[252102,"Teoretisk fælleskirurgisk kursus","2521",2100,"Kirurgi","Kirurgi"]
[252103,"Den kirurgiske kræftpatient, København","2521",2100,"Kirurgi","Kirurgi"]
[252104,"Avanceret kirurgisk endoskopi, København","2521",2100,"Kirurgi","Kirurgi"]
[252105,"Den akutte kirurgiske patient, København","2521",2100,"Kirurgi","Kirurgi"]
[252106,"Børnekirurgi, Odense","2521",2100,"Kirurgi","Kirurgi"]
[252107,"Traumatologi Århus","2521",2100,"Kirurgi","Kirurgi"]
[252201,"Praktisk fælleskirurgisk kursus, Århus","2522",2200,"Kir. færdighedskurser, KBH, Odense og Århus","Kir._færdighedskurser_KBH_Odense_og_Århus"]
[252202,"Praktisk fælleskirurgisk kursus, Odense","2522",2200,"Kir. færdighedskurser, KBH, Odense og Århus","Kir._færdighedskurser_KBH_Odense_og_Århus"]
[252203,"Laparoskopisk kirurgi, København","2522",2200,"Kir. færdighedskurser, KBH, Odense og Århus","Kir._færdighedskurser_KBH_Odense_og_Århus"]
[252204,"Åben kirurgi,København","2522",2200,"Kir. færdighedskurser, KBH, Odense og Århus","Kir._færdighedskurser_KBH_Odense_og_Århus"]
[252205,"Åben kirurgi, Odense","2522",2200,"Kir. færdighedskurser, KBH, Odense og Århus","Kir._færdighedskurser_KBH_Odense_og_Århus"]
[252206,"Praktisk fælleskirurgisk kursus,København","2522",2200,"Kir. færdighedskurser, KBH, Odense og Århus","Kir._færdighedskurser_KBH_Odense_og_Århus"]
[252207,"Laparoskopisk kursus, Århus","2522",2200,"Kir. færdighedskurser, KBH, Odense og Århus","Kir._færdighedskurser_KBH_Odense_og_Århus"]
[252401,"Klinisk Biokemisk Farmakologi og Toksikologi","2524",2400,"Klinisk Biokemi","Klinisk_Biokemi"]
[252501,"Farmakoøkonomi","2525",2500,"Klinisk Farmakologi","Klinisk_Farmakologi"]
[252502,"Farmakodynamik","2525",2500,"Klinisk Farmakologi","Klinisk_Farmakologi"]
[252601,"Isotopteknik 1 - \"Radioaktive isotoper og ioniserende stråling\" (Kbh)","2526",2600,"Klinisk Fysiologi og Nuklearmedicin","Klinisk_Fysiologi_og_Nuklearmedicin"]
[252602,"Metodekursus 1 (Videregående isotopkursus)","2526",2600,"Klinisk Fysiologi og Nuklearmedicin","Klinisk_Fysiologi_og_Nuklearmedicin"]
[252603,"Bevægeapparatets patofysiologi og infektion/inflammation","2526",2600,"Klinisk Fysiologi og Nuklearmedicin","Klinisk_Fysiologi_og_Nuklearmedicin"]
[252701,"Klinisk Genetik 1","2527",2700,"Klinisk Genetik","Klinisk_Genetik"]
[252801,"Praktisk kursus i immunologiske metoder","2528",2800,"Klinisk Immunologi","Klinisk_Immunologi"]
[252802,"Donorkriterier og donorscreening","2528",{"$f":"INDEX(J:J,MATCH(C199,I:I,0))","v":2800},{"$f":"INDEX(K:K,MATCH(D199,J:J,0))","v":"Klinisk Immunologi"},{"$f":"INDEX(L:L,MATCH(E199,K:K,0))","v":"Klinisk_Immunologi"}]
[252901,"Kursus i molekylærbiologi","2529",2900,"Klinisk Mikrobiologi","Klinisk_Mikrobiologi"]
[253001,"Radioterapi","2530",3000,"Klinisk Onkologi","Klinisk_Onkologi"]
[253002,"Kommunikation","2530",3000,"Klinisk Onkologi","Klinisk_Onkologi"]
[253003,"Medicinsk kræftbehandling","2530",3000,"Klinisk Onkologi","Klinisk_Onkologi"]
[253102,"Internationale kurser, SNS/EANS","2531",3100,"Neurokirurgi","Neurokirurgi"]
[253102,"Undervisere, internationale kurser",{"$f":"IF(LEN(A205)=5,LEFT(A205,3),LEFT(A205,4))","v":"2531"},3100,"Neurokirurgi","Neurokirurgi"]
[253201,"Neuromuskulære sygdomme I","2532",3200,"Neurologi","Neurologi"]
[253202,"Neuromuskulære sygdomme II","2532",3200,"Neurologi","Neurologi"]
[253203,"Neuroonkologi","2532",3200,"Neurologi","Neurologi"]
[253204,"Anfaldsfænomener og søvn","2532",3200,"Neurologi","Neurologi"]
[253205,"Klinisk neurologi 1","2532",3200,"Neurologi","Neurologi"]
[253301,"I1, Vejle","2533",3300,"Oftalmologi","Oftalmologi"]
[253303,"HB2","2533",3300,"Oftalmologi","Oftalmologi"]
[253306,"HB4","2533",3300,"Oftalmologi","Oftalmologi"]
[253307,"HK5","2533",3300,"Oftalmologi","Oftalmologi"]
[253308,"HK6","2533",3300,"Oftalmologi","Oftalmologi"]
[253311,"HK9","2533",3300,"Oftalmologi","Oftalmologi"]
[253316,"HK13","2533",3300,"Oftalmologi","Oftalmologi"]
[253401,"Protesekirurgi","2534",3400,"Ortopædisk kirurgi","Ortopædisk_kirurgi"]
[253402,"Børneortopædi","2534",3400,"Ortopædisk kirurgi","Ortopædisk_kirurgi"]
[253403,"Idrætstraumatologi","2534",3400,"Ortopædisk kirurgi","Ortopædisk_kirurgi"]
[253404,"Rygkirurgi","2534",3400,"Ortopædisk kirurgi","Ortopædisk_kirurgi"]
[253405,"Introduktion forår","2534",3400,"Ortopædisk kirurgi","Ortopædisk_kirurgi"]
[253406,"Håndkirurgi","2534",3400,"Ortopædisk kirurgi","Ortopædisk_kirurgi"]
[253415,"Håndkirurgi (ekstra kursus)","2534",3400,"Ortopædisk kirurgi","Ortopædisk_kirurgi"]
[253501,"Mellemøret","2535",3500,"Oto-rhino-laryngologi","Oto_rhino_laryngologi"]
[253502,"Næse- og bihuler","2535",3500,"Oto-rhino-laryngologi","Oto_rhino_laryngologi"]
[253503,"Billeddiagnostik","2535",3500,"Oto-rhino-laryngologi","Oto_rhino_laryngologi"]
[253504,"Hoved-Hals kirurgi","2535",3500,"Oto-rhino-laryngologi","Oto_rhino_laryngologi"]
[253505,"Endoskopi","2535",3500,"Oto-rhino-laryngologi","Oto_rhino_laryngologi"]
[253599,"Evaluering og opfølgning Praksis kursus","2535",3500,"Oto-rhino-laryngologi","Oto_rhino_laryngologi"]
[253603,"Gastrointestinal patologi","2536",3600,"Patologisk anatomi og cytologi","Patologisk_anatomi_og_cytologi"]
[253604,"Mammapatologi","2536",3600,"Patologisk anatomi og cytologi","Patologisk_anatomi_og_cytologi"]
[253607,"Nedre luftvejes patologi","2536",3600,"Patologisk anatomi og cytologi","Patologisk_anatomi_og_cytologi"]
[253608,"Molekylærpatologi","2536",3600,"Patologisk anatomi og cytologi","Patologisk_anatomi_og_cytologi"]
[253609,"Øvre luftvejes patologi","2536",3600,"Patologisk anatomi og cytologi","Patologisk_anatomi_og_cytologi"]
[253612,"CNS- og muskepatologi","2536",3600,"Patologisk anatomi og cytologi","Patologisk_anatomi_og_cytologi"]
[253613,"Lever- og pancreaspatologi","2536",3600,"Patologisk anatomi og cytologi","Patologisk_anatomi_og_cytologi"]
[253614,"Knogle- bløddelspatologi","2536",3600,"Patologisk anatomi og cytologi","Patologisk_anatomi_og_cytologi"]
[253701,"Nordisk Kursus I Misdannelser","2537",3700,"Plastikkirurgi","Plastikkirurgi"]
[253702,"Nordisk kursus II Traume ","2537",3700,"Plastikkirurgi","Plastikkirurgi"]
[253705,"Mikrokirurgi","2537",3700,"Plastikkirurgi","Plastikkirurgi"]
[275306,"Hovedkursusledermøder","2753",{"$error":"#N/A"},{"$error":"#N/A"},{"$error":"#N/A"}]
[253801,"Ældrepsykiatri ","2538",3800,"Psykiatri","Psykiatri"]
[253802,"Psykiatriens organisatoriske og sociale aspekter ","2538",3800,"Psykiatri","Psykiatri"]
[253803,"Teoretisk grundlag for psykoterapi ","2538",3800,"Psykiatri","Psykiatri"]
[253804,"I Psykopatologi ","2538",3800,"Psykiatri","Psykiatri"]
[253805,"Neuropsykiatri ","2538",3800,"Psykiatri","Psykiatri"]
[253806,"Børne- og ungdomspsyk. lidelser med forløb ind i voksenalderen (1 dag) ","2538",3800,"Psykiatri","Psykiatri"]
[253807,"Oligofreni ","2538",3800,"Psykiatri","Psykiatri"]
[253808,"III Psykopatologi ","2538",3800,"Psykiatri","Psykiatri"]
[253809,"Ældrepsykiatri ","2538",3800,"Psykiatri","Psykiatri"]
[253810,"Misbrug (2 dage) ","2538",3800,"Psykiatri","Psykiatri"]
[253811,"Erklæringsudstedelse (1 dag) ","2538",3800,"Psykiatri","Psykiatri"]
[253812,"II Psykopatologi ","2538",3800,"Psykiatri","Psykiatri"]
[253813,"Børne- og ungdomspsyk. lidelser med forløb ind i voksenalderen (1 dag) ","2538",3800,"Psykiatri","Psykiatri"]
[253814,"Oligofreni ","2538",3800,"Psykiatri","Psykiatri"]
[253815,"Biologiske behandlingsmetoder ","2538",3800,"Psykiatri","Psykiatri"]
[253816,"Retspsykiatri ","2538",3800,"Psykiatri","Psykiatri"]
[253899,"VUU-møder","2538",3800,"Psykiatri","Psykiatri"]
[253901,"Neuropæditari","2539",3900,"Pædiatri","Pædiatri"]
[253903,"Neonatologi og børnekirurgi","2539",3900,"Pædiatri","Pædiatri"]
[253905,"Akut pædiatri","2539",3900,"Pædiatri","Pædiatri"]
[253909,"Infektionspædiatri, immunologi og reumatologi","2539",{"$f":"INDEX(J:J,MATCH(C263,I:I,0))","v":3900},{"$f":"INDEX(K:K,MATCH(D263,J:J,0))","v":"Pædiatri"},{"$f":"INDEX(L:L,MATCH(E263,K:K,0))","v":"Pædiatri"}]
[253910,"Nefrologi og urologisk børnekirurgi","2539",3900,"Pædiatri","Pædiatri"]
[253915,"Børnekardiologi","2539",3900,"Pædiatri","Pædiatri"]
[254101,"International Sundhed","2541",4100,"Samfundsmedicin","Samfundsmedicin"]
[254102,"Sundhedsfremme, forebyggelse og rehabilitering","2541",4100,"Samfundsmedicin","Samfundsmedicin"]
[254201,"EACTS: Fundamentals in Coronary Artery diseases","2542",4200,"Thoraxkirurgi","Thoraxkirurgi"]
[254202,"EACTS: Fundamentals in Valvular Heart diseases",{"$f":"IF(LEN(A269)=5,LEFT(A269,3),LEFT(A269,4))","v":"2542"},4200,"Thoraxkirurgi","Thoraxkirurgi"]
[254203,"EACTS: Fundamentals in Thoracic diseases","2542",4200,"Thoraxkirurgi","Thoraxkirurgi"]
[254204,"Perfusions kursus","2542",4200,"Thoraxkirurgi","Thoraxkirurgi"]
[254207,"Internat VVU","2542",4200,"Thoraxkirurgi","Thoraxkirurgi"]
[254208,"Erstatnings kursus for 244204","2542",4200,"Thoraxkirurgi","Thoraxkirurgi"]
[254301,"Urologisk radiologi","2543",4300,"Urologi","Urologi"]
[254302,"Nefrologi","2543",4300,"Urologi","Urologi"]
[254303,"Urolithiasis","2543",4300,"Urologi","Urologi"]
[254305,"LUTS/urodynamik","2543",4300,"Urologi","Urologi"]
[254308,"Andrologi/fertilitet","2543",4300,"Urologi","Urologi"]
[254310,"Færdighedskursus endo 1","2543",4300,"Urologi","Urologi"]
[254313,"Færdighedskursus ULS 1","2543",4300,"Urologi","Urologi"]
[254317,"Færdighedskursus uro.lap 1","2543",4300,"Urologi","Urologi"]
[254318,"Færidghedskursus uro.lap 2","2543",4300,"Urologi","Urologi"]
[254319,"Revision af database","2543",4300,"Urologi","Urologi"]
[254701,"Knoglemetabolisme","2547",4700,"Ortodonti","Ortodonti"]
[254702,"Traumatologi-implantologi","2547",4700,"Ortodonti","Ortodonti"]
[255001,"Operativ Gynækologi I","2550",5000,"Kir. Færdighedskursus operativ gynækologi","Færdighedskurser_operativ_gynækologi"]
[255101,"Kirurgisk færdighedskursus - Forår","2551",5100,"Kir. Færdighedskursus otopædisk kirurgi","Færdighedskurser_ort._kir."]
[256003,"Flowmaster","2560",6000,"Akutmedicin","Akutmedicin"]
[256004,"Akutmedicinsk ultralyd øst","2560",6000,"Akutmedicin","Akutmedicin"]
[256005,"Akutmedicinsk ultralyd syd","2560",6000,"Akutmedicin","Akutmedicin"]
[256007,"ABCDE","2560",6000,"Akutmedicin","Akutmedicin"]
[256008,"Akutte kirurgiske tilstande","2560",6000,"Akutmedicin","Akutmedicin"]
[256012,"Katastrofemedicin og transport ","2560",6000,"Akutmedicin","Akutmedicin"]
[null,null,"",{"$error":"#N/A"},{"$error":"#N/A"},{"$error":"#N/A"}]
[null,null,"",{"$error":"#N/A"},{"$error":"#N/A"},{"$error":"#N/A"}]
[null,null,"",{"$error":"#N/A"},{"$error":"#N/A"},{"$error":"#N/A"}]
[null,null,"",{"$error":"#N/A"},{"$error":"#N/A"},{"$error":"#N/A"}]
[null,null,"",{"$error":"#N/A"},{"$error":"#N/A"},{"$error":"#N/A"}]
[null,null,"",{"$error":"#N/A"},{"$error":"#N/A"},{"$error":"#N/A"}]
[null,null,"",{"$error":"#N/A"},{"$error":"#N/A"},{"$error":"#N/A"}]
[null,null,"",{"$error":"#N/A"},{"$error":"#N/A"},{"$error":"#N/A"}]
[null,null,"",{"$error":"#N/A"},{"$error":"#N/A"},{"$error":"#N/A"}]
[null,null,"",{"$error":"#N/A"},{"$error":"#N/A"},{"$error":"#N/A"}]
[null,null,"",{"$error":"#N/A"},{"$error":"#N/A"},{"$error":"#N/A"}]
[null,null,"",{"$error":"#N/A"},{"$error":"#N/A"},{"$error":"#N/A"}]
[null,null,"",{"$error":"#N/A"},{"$error":"#N/A"},{"$error":"#N/A"}]
[null,null,"",{"$error":"#N/A"},{"$error":"#N/A"},{"$error":"#N/A"}]
[null,null,"",{"$error":"#N/A"},{"$error":"#N/A"},{"$error":"#N/A"}]
[null,null,"",{"$error":"#N/A"},{"$error":"#N/A"},{"$error":"#N/A"}]
[null,null,"",{"$error":"#N/A"},{"$error":"#N/A"},{"$error":"#N/A"}]
[null,null,"",{"$error":"#N/A"},{"$error":"#N/A"},{"$error":"#N/A"}]
[null,null,"",{"$error":"#N/A"},{"$error":"#N/A"},{"$error":"#N/A"}]
[null,null,"",{"$error":"#N/A"},{"$error":"#N/A"},{"$error":"#N/A"}]
[null,null,"",{"$error":"#N/A"},{"$error":"#N/A"},{"$error":"#N/A"}]
[null,null,"",{"$error":"#N/A"},{"$error":"#N/A"},{"$error":"#N/A"}]
[null,null,"",{"$error":"#N/A"},{"$error":"#N/A"},{"$error":"#N/A"}]
[null,null,"",{"$error":"#N/A"},{"$error":"#N/A"},{"$error":"#N/A"}]
[null,null,"",{"$error":"#N/A"},{"$error":"#N/A"},{"$error":"#N/A"}]
[null,null,"",{"$error":"#N/A"},{"$error":"#N/A"},{"$error":"#N/A"}]
[null,null,"",{"$error":"#N/A"},{"$error":"#N/A"},{"$error":"#N/A"}]
[null,null,"",{"$error":"#N/A"},{"$error":"#N/A"},{"$error":"#N/A"}]
[null,null,"",{"$error":"#N/A"},{"$error":"#N/A"},{"$error":"#N/A"}]
[null,null,"",{"$error":"#N/A"},{"$error":"#N/A"},{"$error":"#N/A"}]
[null,null,"",{"$error":"#N/A"},{"$error":"#N/A"},{"$error":"#N/A"}]
[null,null,"",{"$error":"#N/A"},{"$error":"#N/A"},{"$error":"#N/A"}]
[null,null,"",{"$error":"#N/A"},{"$error":"#N/A"},{"$error":"#N/A"}]
[null,null,"",{"$f":"INDEX(J:J,MATCH(C327,I:I,0))","v":{"$error":"#N/A"}},{"$f":"INDEX(K:K,MATCH(D327,J:J,0))","v":{"$error":"#N/A"}},{"$f":"INDEX(L:L,MATCH(E327,K:K,0))","v":{"$error":"#N/A"}}]
[null,null,"",{"$error":"#N/A"},{"$error":"#N/A"},{"$error":"#N/A"}]
[null,null,"",{"$error":"#N/A"},{"$error":"#N/A"},{"$error":"#N/A"}]
[null,null,"",{"$error":"#N/A"},{"$error":"#N/A"},{"$error":"#N/A"}]
[null,null,"",{"$error":"#N/A"},{"$error":"#N/A"},{"$error":"#N/A"}]
[null,null,"",{"$error":"#N/A"},{"$error":"#N/A"},{"$error":"#N/A"}]
[null,null,{"$f":"IF(LEN(A333)=5,LEFT(A333,3),LEFT(A333,4))","v":""},{"$error":"#N/A"},{"$error":"#N/A"},{"$error":"#N/A"}]
[null,null,"",{"$error":"#N/A"},{"$error":"#N/A"},{"$error":"#N/A"}]
[null,null,"",{"$error":"#N/A"},{"$error":"#N/A"},{"$error":"#N/A"}]
[null,null,"",{"$error":"#N/A"},{"$error":"#N/A"},{"$error":"#N/A"}]
[null,null,"",{"$error":"#N/A"},{"$error":"#N/A"},{"$error":"#N/A"}]
[null,null,"",{"$error":"#N/A"},{"$error":"#N/A"},{"$error":"#N/A"}]
[null,null,"",{"$error":"#N/A"},{"$error":"#N/A"},{"$error":"#N/A"}]
[null,null,"",{"$error":"#N/A"},{"$error":"#N/A"},{"$error":"#N/A"}]
[null,null,"",{"$error":"#N/A"},{"$error":"#N/A"},{"$error":"#N/A"}]
[null,null,"",{"$error":"#N/A"},{"$error":"#N/A"},{"$error":"#N/A"}]
[null,null,"",{"$error":"#N/A"},{"$error":"#N/A"},{"$error":"#N/A"}]
[null,null,"",{"$error":"#N/A"},{"$error":"#N/A"},{"$error":"#N/A"}]
[null,null,"",{"$error":"#N/A"},{"$error":"#N/A"},{"$error":"#N/A"}]
[null,null,"",{"$error":"#N/A"},{"$error":"#N/A"},{"$error":"#N/A"}]
[null,null,"",{"$error":"#N/A"},{"$error":"#N/A"},{"$error":"#N/A"}]
[null,null,"",{"$error":"#N/A"},{"$error":"#N/A"},{"$error":"#N/A"}]
[null,null,"",{"$error":"#N/A"},{"$error":"#N/A"},{"$error":"#N/A"}]
[null,null,"",{"$error":"#N/A"},{"$error":"#N/A"},{"$error":"#N/A"}]
[null,null,"",{"$error":"#N/A"},{"$error":"#N/A"},{"$error":"#N/A"}]
[null,null,"",{"$error":"#N/A"},{"$error":"#N/A"},{"$error":"#N/A"}]
[null,null,"",{"$error":"#N/A"},{"$error":"#N/A"},{"$error":"#N/A"}]
[null,null,"",{"$error":"#N/A"},{"$error":"#N/A"},{"$error":"#N/A"}]
[null,null,"",{"$error":"#N/A"},{"$error":"#N/A"},{"$error":"#N/A"}]
[null,null,"",{"$error":"#N/A"},{"$error":"#N/A"},{"$error":"#N/A"}]
[null,null,"",{"$error":"#N/A"},{"$error":"#N/A"},{"$error":"#N/A"}]
[null,null,"",{"$error":"#N/A"},{"$error":"#N/A"},{"$error":"#N/A"}]
[null,null,"",{"$error":"#N/A"},{"$error":"#N/A"},{"$error":"#N/A"}]
[null,null,"",{"$error":"#N/A"},{"$error":"#N/A"},{"$error":"#N/A"}]
[null,null,"",{"$error":"#N/A"},{"$error":"#N/A"},{"$error":"#N/A"}]
[null,null,"",{"$error":"#N/A"},{"$error":"#N/A"},{"$error":"#N/A"}]
[null,null,"",{"$error":"#N/A"},{"$error":"#N/A"},{"$error":"#N/A"}]
[null,null,"",{"$error":"#N/A"},{"$error":"#N/A"},{"$error":"#N/A"}]
[null,null,"",{"$error":"#N/A"},{"$error":"#N/A"},{"$error":"#N/A"}]
[null,null,"",{"$error":"#N/A"},{"$error":"#N/A"},{"$error":"#N/A"}]
[null,null,"",{"$error":"#N/A"},{"$error":"#N/A"},{"$error":"#N/A"}]
[null,null,"",{"$error":"#N/A"},{"$error":"#N/A"},{"$error":"#N/A"}]
[null,null,"",{"$error":"#N/A"},{"$error":"#N/A"},{"$error":"#N/A"}]
[null,null,"",{"$error":"#N/A"},{"$error":"#N/A"},{"$error":"#N/A"}]
[null,null,"",{"$error":"#N/A"},{"$error":"#N/A"},{"$error":"#N/A"}]
[null,null,"",{"$error":"#N/A"},{"$error":"#N/A"},{"$error":"#N/A"}]
[null,null,"",{"$error":"#N/A"},{"$error":"#N/A"},{"$error":"#N/A"}]
[null,null,"",{"$error":"#N/A"},{"$error":"#N/A"},{"$error":"#N/A"}]
[null,null,"",{"$error":"#N/A"},{"$error":"#N/A"},{"$error":"#N/A"}]
[null,null,"",{"$error":"#N/A"},{"$error":"#N/A"},{"$error":"#N/A"}]
[null,null,"",{"$error":"#N/A"},{"$error":"#N/A"},{"$error":"#N/A"}]
[null,null,"",{"$error":"#N/A"},{"$error":"#N/A"},{"$error":"#N/A"}]
[null,null,"",{"$error":"#N/A"},{"$error":"#N/A"},{"$error":"#N/A"}]
[null,null,"",{"$error":"#N/A"},{"$error":"#N/A"},{"$error":"#N/A"}]
[null,null,"",{"$error":"#N/A"},{"$error":"#N/A"},{"$error":"#N/A"}]
[null,null,"",{"$error":"#N/A"},{"$error":"#N/A"},{"$error":"#N/A"}]
[null,null,"",{"$error":"#N/A"},{"$error":"#N/A"},{"$error":"#N/A"}]
[null,null,"",{"$error":"#N/A"},{"$error":"#N/A"},{"$error":"#N/A"}]
[null,null,"",{"$error":"#N/A"},{"$error":"#N/A"},{"$error":"#N/A"}]
[null,null,"",{"$error":"#N/A"},{"$error":"#N/A"},{"$error":"#N/A"}]
[null,null,"",{"$error":"#N/A"},{"$error":"#N/A"},{"$error":"#N/A"}]
[null,null,"",{"$error":"#N/A"},{"$error":"#N/A"},{"$error":"#N/A"}]
[null,null,"",{"$error":"#N/A"},{"$error":"#N/A"},{"$error":"#N/A"}]
[null,null,"",{"$error":"#N/A"},{"$error":"#N/A"},{"$error":"#N/A"}]
[null,null,"",{"$f":"INDEX(J:J,MATCH(C391,I:I,0))","v":{"$error":"#N/A"}},{"$f":"INDEX(K:K,MATCH(D391,J:J,0))","v":{"$error":"#N/A"}},{"$f":"INDEX(L:L,MATCH(E391,K:K,0))","v":{"$error":"#N/A"}}]
[null,null,"",{"$error":"#N/A"},{"$error":"#N/A"},{"$error":"#N/A"}]
[null,null,"",{"$error":"#N/A"},{"$error":"#N/A"},{"$error":"#N/A"}]
[null,null,"",{"$error":"#N/A"},{"$error":"#N/A"},{"$error":"#N/A"}]
[null,null,"",{"$error":"#N/A"},{"$error":"#N/A"},{"$error":"#N/A"}]
[null,null,"",{"$error":"#N/A"},{"$error":"#N/A"},{"$error":"#N/A"}]
[null,null,{"$f":"IF(LEN(A397)=5,LEFT(A397,3),LEFT(A397,4))","v":""},{"$error":"#N/A"},{"$error":"#N/A"},{"$error":"#N/A"}]
[null,null,"",{"$error":"#N/A"},{"$error":"#N/A"},{"$error":"#N/A"}]
[null,null,"",{"$error":"#N/A"},{"$error":"#N/A"},{"$error":"#N/A"}]
[null,null,"",{"$error":"#N/A"},{"$error":"#N/A"},{"$error":"#N/A"}]
[null,null,"",{"$error":"#N/A"},{"$error":"#N/A"},{"$error":"#N/A"}]
[null,null,"",{"$error":"#N/A"},{"$error":"#N/A"},{"$error":"#N/A"}]
[null,null,"",{"$error":"#N/A"},{"$error":"#N/A"},{"$error":"#N/A"}]
[null,null,"",{"$error":"#N/A"},{"$error":"#N/A"},{"$error":"#N/A"}]
[null,null,"",{"$error":"#N/A"},{"$error":"#N/A"},{"$error":"#N/A"}]
[null,null,"",{"$error":"#N/A"},{"$error":"#N/A"},{"$error":"#N/A"}]
[null,null,"",{"$error":"#N/A"},{"$error":"#N/A"},{"$error":"#N/A"}]
[null,null,"",{"$error":"#N/A"},{"$error":"#N/A"},{"$error":"#N/A"}]
[null,null,"",{"$error":"#N/A"},{"$error":"#N/A"},{"$error":"#N/A"}]
[null,null,"",{"$error":"#N/A"},{"$error":"#N/A"},{"$error":"#N/A"}]
[null,null,"",{"$error":"#N/A"},{"$error":"#N/A"},{"$error":"#N/A"}]
[null,null,"",{"$error":"#N/A"},{"$error":"#N/A"},{"$error":"#N/A"}]
[null,null,"",{"$error":"#N/A"},{"$error":"#N/A"},{"$error":"#N/A"}]
[null,null,"",{"$error":"#N/A"},{"$error":"#N/A"},{"$error":"#N/A"}]
[null,null,"",{"$error":"#N/A"},{"$error":"#N/A"},{"$error":"#N/A"}]
[null,null,"",{"$error":"#N/A"},{"$error":"#N/A"},{"$error":"#N/A"}]
[null,null,"",{"$error":"#N/A"},{"$error":"#N/A"},{"$error":"#N/A"}]
[null,null,"",{"$error":"#N/A"},{"$error":"#N/A"},{"$error":"#N/A"}]
[null,null,"",{"$error":"#N/A"},{"$error":"#N/A"},{"$error":"#N/A"}]
[null,null,"",{"$error":"#N/A"},{"$error":"#N/A"},{"$error":"#N/A"}]
[null,null,"",{"$error":"#N/A"},{"$error":"#N/A"},{"$error":"#N/A"}]
[null,null,"",{"$error":"#N/A"},{"$error":"#N/A"},{"$error":"#N/A"}]
[null,null,"",{"$error":"#N/A"},{"$error":"#N/A"},{"$error":"#N/A"}]
[null,null,"",{"$error":"#N/A"},{"$error":"#N/A"},{"$error":"#N/A"}]
[null,null,"",{"$error":"#N/A"},{"$error":"#N/A"},{"$error":"#N/A"}]
[null,null,"",{"$error":"#N/A"},{"$error":"#N/A"},{"$error":"#N/A"}]
[null,null,"",{"$error":"#N/A"},{"$error":"#N/A"},{"$error":"#N/A"}]
[null,null,"",{"$error":"#N/A"},{"$error":"#N/A"},{"$error":"#N/A"}]
[null,null,"",{"$error":"#N/A"},{"$error":"#N/A"},{"$error":"#N/A"}]
[null,null,"",{"$error":"#N/A"},{"$error":"#N/A"},{"$error":"#N/A"}]
[null,null,"",{"$error":"#N/A"},{"$error":"#N/A"},{"$error":"#N/A"}]
[null,null,"",{"$error":"#N/A"},{"$error":"#N/A"},{"$error":"#N/A"}]
[null,null,"",{"$error":"#N/A"},{"$error":"#N/A"},{"$error":"#N/A"}]
[null,null,"",{"$error":"#N/A"},{"$error":"#N/A"},{"$error":"#N/A"}]
[null,null,"",{"$error":"#N/A"},{"$error":"#N/A"},{"$error":"#N/A"}]
[null,null,"",{"$error":"#N/A"},{"$error":"#N/A"},{"$error":"#N/A"}]
[null,null,"",{"$error":"#N/A"},{"$error":"#N/A"},{"$error":"#N/A"}]
[null,null,"",{"$error":"#N/A"},{"$error":"#N/A"},{"$error":"#N/A"}]
[null,null,"",{"$error":"#N/A"},{"$error":"#N/A"},{"$error":"#N/A"}]
[null,null,"",{"$error":"#N/A"},{"$error":"#N/A"},{"$error":"#N/A"}]
[null,null,"",{"$error":"#N/A"},{"$error":"#N/A"},{"$error":"#N/A"}]
[null,null,"",{"$error":"#N/A"},{"$error":"#N/A"},{"$error":"#N/A"}]
[null,null,"",{"$error":"#N/A"},{"$error":"#N/A"},{"$error":"#N/A"}]
[null,null,"",{"$error":"#N/A"},{"$error":"#N/A"},{"$error":"#N/A"}]
[null,null,"",{"$error":"#N/A"},{"$error":"#N/A"},{"$error":"#N/A"}]
[null,null,"",{"$error":"#N/A"},{"$error":"#N/A"},{"$error":"#N/A"}]
[null,null,"",{"$error":"#N/A"},{"$error":"#N/A"},{"$error":"#N/A"}]
[null,null,"",{"$error":"#N/A"},{"$error":"#N/A"},{"$error":"#N/A"}]
[null,null,"",{"$error":"#N/A"},{"$error":"#N/A"},{"$error":"#N/A"}]
[null,null,"",{"$error":"#N/A"},{"$error":"#N/A"},{"$error":"#N/A"}]
[null,null,"",{"$error":"#N/A"},{"$error":"#N/A"},{"$error":"#N/A"}]
[null,null,"",{"$error":"#N/A"},{"$error":"#N/A"},{"$error":"#N/A"}]
[null,null,"",{"$error":"#N/A"},{"$error":"#N/A"},{"$error":"#N/A"}]
[null,null,"",{"$error":"#N/A"},{"$error":"#N/A"},{"$error":"#N/A"}]
[null,null,"",{"$f":"INDEX(J:J,MATCH(C455,I:I,0))","v":{"$error":"#N/A"}},{"$f":"INDEX(K:K,MATCH(D455,J:J,0))","v":{"$error":"#N/A"}},{"$f":"INDEX(L:L,MATCH(E455,K:K,0))","v":{"$error":"#N/A"}}]
[null,null,"",{"$error":"#N/A"},{"$error":"#N/A"},{"$error":"#N/A"}]
[null,null,"",{"$error":"#N/A"},{"$error":"#N/A"},{"$error":"#N/A"}]
[null,null,"",{"$error":"#N/A"},{"$error":"#N/A"},{"$error":"#N/A"}]
[null,null,"",{"$error":"#N/A"},{"$error":"#N/A"},{"$error":"#N/A"}]
[null,null,"",{"$error":"#N/A"},{"$error":"#N/A"},{"$error":"#N/A"}]
[null,null,{"$f":"IF(LEN(A461)=5,LEFT(A461,3),LEFT(A461,4))","v":""},{"$error":"#N/A"},{"$error":"#N/A"},{"$error":"#N/A"}]
[null,null,"",{"$error":"#N/A"},{"$error":"#N/A"},{"$error":"#N/A"}]
[null,null,"",{"$error":"#N/A"},{"$error":"#N/A"},{"$error":"#N/A"}]
[null,null,"",{"$error":"#N/A"},{"$error":"#N/A"},{"$error":"#N/A"}]
[null,null,"",{"$error":"#N/A"},{"$error":"#N/A"},{"$error":"#N/A"}]
[null,null,"",{"$error":"#N/A"},{"$error":"#N/A"},{"$error":"#N/A"}]
[null,null,"",{"$error":"#N/A"},{"$error":"#N/A"},{"$error":"#N/A"}]
[null,null,"",{"$error":"#N/A"},{"$error":"#N/A"},{"$error":"#N/A"}]
[null,null,"",{"$error":"#N/A"},{"$error":"#N/A"},{"$error":"#N/A"}]
[null,null,"",{"$error":"#N/A"},{"$error":"#N/A"},{"$error":"#N/A"}]
[null,null,"",{"$error":"#N/A"},{"$error":"#N/A"},{"$error":"#N/A"}]
[null,null,"",{"$error":"#N/A"},{"$error":"#N/A"},{"$error":"#N/A"}]
[null,null,"",{"$error":"#N/A"},{"$error":"#N/A"},{"$error":"#N/A"}]
[null,null,"",{"$error":"#N/A"},{"$error":"#N/A"},{"$error":"#N/A"}]
[null,null,"",{"$error":"#N/A"},{"$error":"#N/A"},{"$error":"#N/A"}]
[null,null,"",{"$error":"#N/A"},{"$error":"#N/A"},{"$error":"#N/A"}]
[null,null,"",{"$error":"#N/A"},{"$error":"#N/A"},{"$error":"#N/A"}]
[null,null,"",{"$error":"#N/A"},{"$error":"#N/A"},{"$error":"#N/A"}]
[null,null,"",{"$error":"#N/A"},{"$error":"#N/A"},{"$error":"#N/A"}]
[null,null,"",{"$error":"#N/A"},{"$error":"#N/A"},{"$error":"#N/A"}]
[null,null,"",{"$error":"#N/A"},{"$error":"#N/A"},{"$error":"#N/A"}]
[null,null,"",{"$error":"#N/A"},{"$error":"#N/A"},{"$error":"#N/A"}]
[null,null,"",{"$error":"#N/A"},{"$error":"#N/A"},{"$error":"#N/A"}]
[null,null,"",{"$error":"#N/A"},{"$error":"#N/A"},{"$error":"#N/A"}]
[null,null,"",{"$error":"#N/A"},{"$error":"#N/A"},{"$error":"#N/A"}]
[null,null,"",{"$error":"#N/A"},{"$error":"#N/A"},{"$error":"#N/A"}]
[null,null,"",{"$error":"#N/A"},{"$error":"#N/A"},{"$error":"#N/A"}]
[null,null,"",{"$error":"#N/A"},{"$error":"#N/A"},{"$error":"#N/A"}]
[null,null,"",{"$error":"#N/A"},{"$error":"#N/A"},{"$error":"#N/A"}]
[null,null,"",{"$error":"#N/A"},{"$error":"#N/A"},{"$error":"#N/A"}]
[null,null,"",{"$error":"#N/A"},{"$error":"#N/A"},{"$error":"#N/A"}]
[null,null,"",{"$error":"#N/A"},{"$error":"#N/A"},{"$error":"#N/A"}]
[null,null,"",{"$error":"#N/A"},{"$error":"#N/A"},{"$error":"#N/A"}]
[null,null,"",{"$error":"#N/A"},{"$error":"#N/A"},{"$error":"#N/A"}]
[null,null,"",{"$error":"#N/A"},{"$error":"#N/A"},{"$error":"#N/A"}]
[null,null,"",{"$error":"#N/A"},{"$error":"#N/A"},{"$error":"#N/A"}]
[null,null,"",{"$error":"#N/A"},{"$error":"#N/A"},{"$error":"#N/A"}]
[null,null,"",{"$error":"#N/A"},{"$error":"#N/A"},{"$error":"#N/A"}]
[null,null,"",{"$error":"#N/A"},{"$error":"#N/A"},{"$error":"#N/A"}]
[null,null,"",{"$error":"#N/A"},{"$error":"#N/A"},{"$error":"#N/A"}]
[null,null,"",{"$error":"#N/A"},{"$error":"#N/A"},{"$error":"#N/A"}]
[null,null,"",{"$error":"#N/A"},{"$error":"#N/A"},{"$error":"#N/A"}]
[null,null,"",{"$error":"#N/A"},{"$error":"#N/A"},{"$error":"#N/A"}]
[null,null,"",{"$error":"#N/A"},{"$error":"#N/A"},{"$error":"#N/A"}]
[null,null,"",{"$error":"#N/A"},{"$error":"#N/A"},{"$error":"#N/A"}]
[null,null,"",{"$error":"#N/A"},{"$error":"#N/A"},{"$error":"#N/A"}]
[null,null,"",{"$error":"#N/A"},{"$error":"#N/A"},{"$error":"#N/A"}]
[null,null,"",{"$error":"#N/A"},{"$error":"#N/A"},{"$error":"#N/A"}]
[null,null,"",{"$error":"#N/A"},{"$error":"#N/A"},{"$error":"#N/A"}]
[null,null,"",{"$error":"#N/A"},{"$error":"#N/A"},{"$error":"#N/A"}]
[null,null,"",{"$error":"#N/A"},{"$error":"#N/A"},{"$error":"#N/A"}]
[null,null,"",{"$error":"#N/A"},{"$error":"#N/A"},{"$error":"#N/A"}]
[null,null,"",{"$error":"#N/A"},{"$error":"#N/A"},{"$error":"#N/A"}]
[null,null,"",{"$error":"#N/A"},{"$error":"#N/A"},{"$error":"#N/A"}]
[null,null,"",{"$error":"#N/A"},{"$error":"#N/A"},{"$error":"#N/A"}]
[null,null,"",{"$error":"#N/A"},{"$error":"#N/A"},{"$error":"#N/A"}]
[null,null,"",{"$error":"#N/A"},{"$error":"#N/A"},{"$error":"#N/A"}]
[null,null,"",{"$error":"#N/A"},{"$error":"#N/A"},{"$error":"#N/A"}]
[null,null,"",{"$f":"INDEX(J:J,MATCH(C519,I:I,0))","v":{"$error":"#N/A"}},{"$f":"INDEX(K:K,MATCH(D519,J:J,0))","v":{"$error":"#N/A"}},{"$f":"INDEX(L:L,MATCH(E519,K:K,0))","v":{"$error":"#N/A"}}]
[null,null,"",{"$error":"#N/A"},{"$error":"#N/A"},{"$error":"#N/A"}]
[null,null,"",{"$error":"#N/A"},{"$error":"#N/A"},{"$error":"#N/A"}]
[null,null,"",{"$error":"#N/A"},{"$error":"#N/A"},{"$error":"#N/A"}]
[null,null,"",{"$error":"#N/A"},{"$error":"#N/A"},{"$error":"#N/A"}]
[null,null,"",{"$error":"#N/A"},{"$error":"#N/A"},{"$error":"#N/A"}]
[null,null,"",{"$error":"#N/A"},{"$error":"#N/A"},{"$error":"#N/A"}]
[null,null,"",{"$error":"#N/A"},{"$error":"#N/A"},{"$error":"#N/A"}]
[null,null,"",{"$error":"#N/A"},{"$error":"#N/A"},{"$error":"#N/A"}]
[null,null,"",{"$error":"#N/A"},{"$error":"#N/A"},{"$error":"#N/A"}]
[null,null,"",{"$error":"#N/A"},{"$error":"#N/A"},{"$error":"#N/A"}]
[null,null,{"$f":"IF(LEN(A530)=5,LEFT(A530,3),LEFT(A530,4))","v":""},{"$error":"#N/A"},{"$error":"#N/A"},{"$error":"#N/A"}]
[null,null,"",{"$error":"#N/A"},{"$error":"#N/A"},{"$error":"#N/A"}]
[null,null,"",{"$error":"#N/A"},{"$error":"#N/A"},{"$error":"#N/A"}]
[null,null,"",{"$error":"#N/A"},{"$error":"#N/A"},{"$error":"#N/A"}]
[null,null,"",{"$error":"#N/A"},{"$error":"#N/A"},{"$error":"#N/A"}]
[null,null,"",{"$error":"#N/A"},{"$error":"#N/A"},{"$error":"#N/A"}]
[null,null,"",{"$error":"#N/A"},{"$error":"#N/A"},{"$error":"#N/A"}]
[null,null,"",{"$error":"#N/A"},{"$error":"#N/A"},{"$error":"#N/A"}]
[null,null,"",{"$error":"#N/A"},{"$error":"#N/A"},{"$error":"#N/A"}]
[null,null,"",{"$error":"#N/A"},{"$error":"#N/A"},{"$error":"#N/A"}]
[null,null,"",{"$error":"#N/A"},{"$error":"#N/A"},{"$error":"#N/A"}]
[null,null,"",{"$error":"#N/A"},{"$error":"#N/A"},{"$error":"#N/A"}]
[null,null,"",{"$error":"#N/A"},{"$error":"#N/A"},{"$error":"#N/A"}]
[null,null,"",{"$error":"#N/A"},{"$error":"#N/A"},{"$error":"#N/A"}]
[null,null,"",{"$error":"#N/A"},{"$error":"#N/A"},{"$error":"#N/A"}]
[null,null,"",{"$error":"#N/A"},{"$error":"#N/A"},{"$error":"#N/A"}]
[null,null,"",{"$error":"#N/A"},{"$error":"#N/A"},{"$error":"#N/A"}]
[null,null,"",{"$error":"#N/A"},{"$error":"#N/A"},{"$error":"#N/A"}]
[null,null,"",{"$error":"#N/A"},{"$error":"#N/A"},{"$error":"#N/A"}]
[null,null,"",{"$error":"#N/A"},{"$error":"#N/A"},{"$error":"#N/A"}]
[null,null,"",{"$error":"#N/A"},{"$error":"#N/A"},{"$error":"#N/A"}]
[null,null,"",{"$error":"#N/A"},{"$error":"#N/A"},{"$error":"#N/A"}]
[null,null,"",{"$error":"#N/A"},{"$error":"#N/A"},{"$error":"#N/A"}]
[null,null,"",{"$error":"#N/A"},{"$error":"#N/A"},{"$error":"#N/A"}]
[null,null,"",{"$error":"#N/A"},{"$error":"#N/A"},{"$error":"#N/A"}]
[null,null,"",{"$error":"#N/A"},{"$error":"#N/A"},{"$error":"#N/A"}]
[null,null,"",{"$error":"#N/A"},{"$error":"#N/A"},{"$error":"#N/A"}]
[null,null,"",{"$error":"#N/A"},{"$error":"#N/A"},{"$error":"#N/A"}]
[null,null,"",{"$error":"#N/A"},{"$error":"#N/A"},{"$error":"#N/A"}]
[null,null,"",{"$error":"#N/A"},{"$error":"#N/A"},{"$error":"#N/A"}]
[null,null,"",{"$error":"#N/A"},{"$error":"#N/A"},{"$error":"#N/A"}]
[null,null,"",{"$error":"#N/A"},{"$error":"#N/A"},{"$error":"#N/A"}]
[null,null,"",{"$error":"#N/A"},{"$error":"#N/A"},{"$error":"#N/A"}]
[null,null,"",{"$error":"#N/A"},{"$error":"#N/A"},{"$error":"#N/A"}]
[null,null,"",{"$error":"#N/A"},{"$error":"#N/A"},{"$error":"#N/A"}]
[null,null,"",{"$error":"#N/A"},{"$error":"#N/A"},{"$error":"#N/A"}]
[null,null,"",{"$error":"#N/A"},{"$error":"#N/A"},{"$error":"#N/A"}]
[null,null,"",{"$error":"#N/A"},{"$error":"#N/A"},{"$error":"#N/A"}]
[null,null,"",{"$error":"#N/A"},{"$error":"#N/A"},{"$error":"#N/A"}]
[null,null,"",{"$error":"#N/A"},{"$error":"#N/A"},{"$error":"#N/A"}]
[null,null,"",{"$error":"#N/A"},{"$error":"#N/A"},{"$error":"#N/A"}]
[null,null,"",{"$error":"#N/A"},{"$error":"#N/A"},{"$error":"#N/A"}]
[null,null,"",{"$error":"#N/A"},{"$error":"#N/A"},{"$error":"#N/A"}]
[null,null,"",{"$error":"#N/A"},{"$error":"#N/A"},{"$error":"#N/A"}]
[null,null,"",{"$error":"#N/A"},{"$error":"#N/A"},{"$error":"#N/A"}]
[null,null,"",{"$error":"#N/A"},{"$error":"#N/A"},{"$error":"#N/A"}]
[null,null,"",{"$error":"#N/A"},{"$error":"#N/A"},{"$error":"#N/A"}]
[null,null,"",{"$error":"#N/A"},{"$error":"#N/A"},{"$error":"#N/A"}]
[null,null,"",{"$error":"#N/A"},{"$error":"#N/A"},{"$error":"#N/A"}]
[null,null,"",{"$error":"#N/A"},{"$error":"#N/A"},{"$error":"#N/A"}]
[null,null,"",{"$error":"#N/A"},{"$error":"#N/A"},{"$error":"#N/A"}]
[null,null,"",{"$error":"#N/A"},{"$error":"#N/A"},{"$error":"#N/A"}]
[null,null,"",{"$error":"#N/A"},{"$error":"#N/A"},{"$error":"#N/A"}]
[null,null,"",{"$f":"INDEX(J:J,MATCH(C583,I:I,0))","v":{"$error":"#N/A"}},{"$f":"INDEX(K:K,MATCH(D583,J:J,0))","v":{"$error":"#N/A"}},{"$f":"INDEX(L:L,MATCH(E583,K:K,0))","v":{"$error":"#N/A"}}]
[null,null,"",{"$error":"#N/A"},{"$error":"#N/A"},{"$error":"#N/A"}]
[null,null,"",{"$error":"#N/A"},{"$error":"#N/A"},{"$error":"#N/A"}]
[null,null,"",{"$error":"#N/A"},{"$error":"#N/A"},{"$error":"#N/A"}]
[null,null,"",{"$error":"#N/A"},{"$error":"#N/A"},{"$error":"#N/A"}]
[null,null,"",{"$error":"#N/A"},{"$error":"#N/A"},{"$error":"#N/A"}]
[null,null,"",{"$error":"#N/A"},{"$error":"#N/A"},{"$error":"#N/A"}]
[null,null,"",{"$error":"#N/A"},{"$error":"#N/A"},{"$error":"#N/A"}]
[null,null,"",{"$error":"#N/A"},{"$error":"#N/A"},{"$error":"#N/A"}]
[null,null,"",{"$error":"#N/A"},{"$error":"#N/A"},{"$error":"#N/A"}]
[null,null,"",{"$error":"#N/A"},{"$error":"#N/A"},{"$error":"#N/A"}]
[null,null,{"$f":"IF(LEN(A594)=5,LEFT(A594,3),LEFT(A594,4))","v":""},{"$error":"#N/A"},{"$error":"#N/A"},{"$error":"#N/A"}]
[null,null,"",{"$error":"#N/A"},{"$error":"#N/A"},{"$error":"#N/A"}]
[null,null,"",{"$error":"#N/A"},{"$error":"#N/A"},{"$error":"#N/A"}]
[null,null,"",{"$error":"#N/A"},{"$error":"#N/A"},{"$error":"#N/A"}]
[null,null,"",{"$error":"#N/A"},{"$error":"#N/A"},{"$error":"#N/A"}]
[null,null,"",{"$error":"#N/A"},{"$error":"#N/A"},{"$error":"#N/A"}]
[null,null,"",{"$error":"#N/A"},{"$error":"#N/A"},{"$error":"#N/A"}]
[null,null,"",{"$error":"#N/A"},{"$error":"#N/A"},{"$error":"#N/A"}]
[null,null,"",{"$error":"#N/A"},{"$error":"#N/A"},{"$error":"#N/A"}]
[null,null,"",{"$error":"#N/A"},{"$error":"#N/A"},{"$error":"#N/A"}]
[null,null,"",{"$error":"#N/A"},{"$error":"#N/A"},{"$error":"#N/A"}]
[null,null,"",{"$error":"#N/A"},{"$error":"#N/A"},{"$error":"#N/A"}]
[null,null,"",{"$error":"#N/A"},{"$error":"#N/A"},{"$error":"#N/A"}]
[null,null,"",{"$error":"#N/A"},{"$error":"#N/A"},{"$error":"#N/A"}]
[null,null,"",{"$error":"#N/A"},{"$error":"#N/A"},{"$error":"#N/A"}]
[null,null,"",{"$error":"#N/A"},{"$error":"#N/A"},{"$error":"#N/A"}]
[null,null,"",{"$error":"#N/A"},{"$error":"#N/A"},{"$error":"#N/A"}]
[null,null,"",{"$error":"#N/A"},{"$error":"#N/A"},{"$error":"#N/A"}]
[null,null,"",{"$error":"#N/A"},{"$error":"#N/A"},{"$error":"#N/A"}]
[null,null,"",{"$error":"#N/A"},{"$error":"#N/A"},{"$error":"#N/A"}]
[null,null,"",{"$error":"#N/A"},{"$error":"#N/A"},{"$error":"#N/A"}]
[null,null,"",{"$error":"#N/A"},{"$error":"#N/A"},{"$error":"#N/A"}]
[null,null,"",{"$error":"#N/A"},{"$error":"#N/A"},{"$error":"#N/A"}]
[null,null,"",{"$error":"#N/A"},{"$error":"#N/A"},{"$error":"#N/A"}]
[null,null,"",{"$error":"#N/A"},{"$error":"#N/A"},{"$error":"#N/A"}]
[null,null,"",{"$error":"#N/A"},{"$error":"#N/A"},{"$error":"#N/A"}]
[null,null,"",{"$error":"#N/A"},{"$error":"#N/A"},{"$error":"#N/A"}]
[null,null,"",{"$error":"#N/A"},{"$error":"#N/A"},{"$error":"#N/A"}]
[null,null,"",{"$error":"#N/A"},{"$error":"#N/A"},{"$error":"#N/A"}]
[null,null,"",{"$error":"#N/A"},{"$error":"#N/A"},{"$error":"#N/A"}]
[null,null,"",{"$error":"#N/A"},{"$error":"#N/A"},{"$error":"#N/A"}]
[null,null,"",{"$error":"#N/A"},{"$error":"#N/A"},{"$error":"#N/A"}]
[null,null,"",{"$error":"#N/A"},{"$error":"#N/A"},{"$error":"#N/A"}]
[null,null,"",{"$error":"#N/A"},{"$error":"#N/A"},{"$error":"#N/A"}]
[null,null,"",{"$error":"#N/A"},{"$error":"#N/A"},{"$error":"#N/A"}]
[null,null,"",{"$error":"#N/A"},{"$error":"#N/A"},{"$error":"#N/A"}]
[null,null,"",{"$error":"#N/A"},{"$error":"#N/A"},{"$error":"#N/A"}]
[null,null,"",{"$error":"#N/A"},{"$error":"#N/A"},{"$error":"#N/A"}]
[null,null,"",{"$error":"#N/A"},{"$error":"#N/A"},{"$error":"#N/A"}]
[null,null,"",{"$error":"#N/A"},{"$error":"#N/A"},{"$error":"#N/A"}]
[null,null,"",{"$error":"#N/A"},{"$error":"#N/A"},{"$error":"#N/A"}]
[null,null,"",{"$error":"#N/A"},{"$error":"#N/A"},{"$error":"#N/A"}]
[null,null,"",{"$error":"#N/A"},{"$error":"#N/A"},{"$error":"#N/A"}]
[null,null,"",{"$error":"#N/A"},{"$error":"#N/A"},{"$error":"#N/A"}]
[null,null,"",{"$error":"#N/A"},{"$error":"#N/A"},{"$error":"#N/A"}]
[null,null,"",{"$error":"#N/A"},{"$error":"#N/A"},{"$error":"#N/A"}]
[null,null,"",{"$error":"#N/A"},{"$error":"#N/A"},{"$error":"#N/A"}]
[null,null,"",{"$error":"#N/A"},{"$error":"#N/A"},{"$error":"#N/A"}]
[null,null,"",{"$error":"#N/A"},{"$error":"#N/A"},{"$error":"#N/A"}]
[null,null,"",{"$error":"#N/A"},{"$error":"#N/A"},{"$error":"#N/A"}]
[null,null,"",{"$error":"#N/A"},{"$error":"#N/A"},{"$error":"#N/A"}]
[null,null,"",{"$error":"#N/A"},{"$error":"#N/A"},{"$error":"#N/A"}]
[null,null,"",{"$error":"#N/A"},{"$error":"#N/A"},{"$error":"#N/A"}]
[null,null,"",{"$f":"INDEX(J:J,MATCH(C647,I:I,0))","v":{"$error":"#N/A"}},{"$f":"INDEX(K:K,MATCH(D647,J:J,0))","v":{"$error":"#N/A"}},{"$f":"INDEX(L:L,MATCH(E647,K:K,0))","v":{"$error":"#N/A"}}]
[null,null,"",{"$error":"#N/A"},{"$error":"#N/A"},{"$error":"#N/A"}]
[null,null,"",{"$error":"#N/A"},{"$error":"#N/A"},{"$error":"#N/A"}]
[null,null,"",{"$error":"#N/A"},{"$error":"#N/A"},{"$error":"#N/A"}]
[null,null,"",{"$error":"#N/A"},{"$error":"#N/A"},{"$error":"#N/A"}]
[null,null,"",{"$error":"#N/A"},{"$error":"#N/A"},{"$error":"#N/A"}]
[null,null,"",{"$error":"#N/A"},{"$error":"#N/A"},{"$error":"#N/A"}]
[null,null,"",{"$error":"#N/A"},{"$error":"#N/A"},{"$error":"#N/A"}]
[null,null,"",{"$error":"#N/A"},{"$error":"#N/A"},{"$error":"#N/A"}]
[null,null,"",{"$error":"#N/A"},{"$error":"#N/A"},{"$error":"#N/A"}]
[null,null,"",{"$error":"#N/A"},{"$error":"#N/A"},{"$error":"#N/A"}]
[null,null,{"$f":"IF(LEN(A658)=5,LEFT(A658,3),LEFT(A658,4))","v":""},{"$error":"#N/A"},{"$error":"#N/A"},{"$error":"#N/A"}]
[null,null,"",{"$error":"#N/A"},{"$error":"#N/A"},{"$error":"#N/A"}]
[null,null,"",{"$error":"#N/A"},{"$error":"#N/A"},{"$error":"#N/A"}]
[null,null,"",{"$error":"#N/A"},{"$error":"#N/A"},{"$error":"#N/A"}]
[null,null,"",{"$error":"#N/A"},{"$error":"#N/A"},{"$error":"#N/A"}]
[null,null,"",{"$error":"#N/A"},{"$error":"#N/A"},{"$error":"#N/A"}]
[null,null,"",{"$error":"#N/A"},{"$error":"#N/A"},{"$error":"#N/A"}]
[null,null,"",{"$error":"#N/A"},{"$error":"#N/A"},{"$error":"#N/A"}]
[null,null,"",{"$error":"#N/A"},{"$error":"#N/A"},{"$error":"#N/A"}]
[null,null,"",{"$error":"#N/A"},{"$error":"#N/A"},{"$error":"#N/A"}]
[null,null,"",{"$error":"#N/A"},{"$error":"#N/A"},{"$error":"#N/A"}]
[null,null,"",{"$error":"#N/A"},{"$error":"#N/A"},{"$error":"#N/A"}]
[null,null,"",{"$error":"#N/A"},{"$error":"#N/A"},{"$error":"#N/A"}]
[null,null,"",{"$error":"#N/A"},{"$error":"#N/A"},{"$error":"#N/A"}]
[null,null,"",{"$error":"#N/A"},{"$error":"#N/A"},{"$error":"#N/A"}]
[null,null,"",{"$error":"#N/A"},{"$error":"#N/A"},{"$error":"#N/A"}]
[null,null,"",{"$error":"#N/A"},{"$error":"#N/A"},{"$error":"#N/A"}]
[null,null,"",{"$error":"#N/A"},{"$error":"#N/A"},{"$error":"#N/A"}]
[null,null,"",{"$error":"#N/A"},{"$error":"#N/A"},{"$error":"#N/A"}]
[null,null,"",{"$error":"#N/A"},{"$error":"#N/A"},{"$error":"#N/A"}]
[null,null,"",{"$error":"#N/A"},{"$error":"#N/A"},{"$error":"#N/A"}]
[null,null,"",{"$error":"#N/A"},{"$error":"#N/A"},{"$error":"#N/A"}]
[null,null,"",{"$error":"#N/A"},{"$error":"#N/A"},{"$error":"#N/A"}]
[null,null,"",{"$error":"#N/A"},{"$error":"#N/A"},{"$error":"#N/A"}]
[null,null,"",{"$error":"#N/A"},{"$error":"#N/A"},{"$error":"#N/A"}]
[null,null,"",{"$error":"#N/A"},{"$error":"#N/A"},{"$error":"#N/A"}]
[null,null,"",{"$error":"#N/A"},{"$error":"#N/A"},{"$error":"#N/A"}]
[null,null,"",{"$error":"#N/A"},{"$error":"#N/A"},{"$error":"#N/A"}]
[null,null,"",{"$error":"#N/A"},{"$error":"#N/A"},{"$error":"#N/A"}]
[null,null,"",{"$error":"#N/A"},{"$error":"#N/A"},{"$error":"#N/A"}]
[null,null,"",{"$error":"#N/A"},{"$error":"#N/A"},{"$error":"#N/A"}]
[null,null,"",{"$error":"#N/A"},{"$error":"#N/A"},{"$error":"#N/A"}]
[null,null,"",{"$error":"#N/A"},{"$error":"#N/A"},{"$error":"#N/A"}]
[null,null,"",{"$error":"#N/A"},{"$error":"#N/A"},{"$error":"#N/A"}]
[null,null,"",{"$error":"#N/A"},{"$error":"#N/A"},{"$error":"#N/A"}]
[null,null,"",{"$error":"#N/A"},{"$error":"#N/A"},{"$error":"#N/A"}]
[null,null,"",{"$error":"#N/A"},{"$error":"#N/A"},{"$error":"#N/A"}]
[null,null,"",{"$error":"#N/A"},{"$error":"#N/A"},{"$error":"#N/A"}]
[null,null,"",{"$error":"#N/A"},{"$error":"#N/A"},{"$error":"#N/A"}]
[null,null,"",{"$error":"#N/A"},{"$error":"#N/A"},{"$error":"#N/A"}]
[null,null,"",{"$error":"#N/A"},{"$error":"#N/A"},{"$error":"#N/A"}]
[null,null,"",{"$error":"#N/A"},{"$error":"#N/A"},{"$error":"#N/A"}]
[null,null,"",{"$error":"#N/A"},{"$error":"#N/A"},{"$error":"#N/A"}]
[null,null,"",{"$error":"#N/A"},{"$error":"#N/A"},{"$error":"#N/A"}]
[null,null,"",{"$error":"#N/A"},{"$error":"#N/A"},{"$error":"#N/A"}]
[null,null,"",{"$error":"#N/A"},{"$error":"#N/A"},{"$error":"#N/A"}]
[null,null,"",{"$error":"#N/A"},{"$error":"#N/A"},{"$error":"#N/A"}]
[null,null,"",{"$error":"#N/A"},{"$error":"#N/A"},{"$error":"#N/A"}]
[null,null,"",{"$error":"#N/A"},{"$error":"#N/A"},{"$error":"#N/A"}]
[null,null,"",{"$error":"#N/A"},{"$error":"#N/A"},{"$error":"#N/A"}]
[null,null,"",{"$error":"#N/A"},{"$error":"#N/A"},{"$error":"#N/A"}]
[null,null,"",{"$error":"#N/A"},{"$error":"#N/A"},{"$error":"#N/A"}]
[null,null,"",{"$error":"#N/A"},{"$error":"#N/A"},{"$error":"#N/A"}]
[null,null,"",{"$f":"INDEX(J:J,MATCH(C711,I:I,0))","v":{"$error":"#N/A"}},{"$f":"INDEX(K:K,MATCH(D711,J:J,0))","v":{"$error":"#N/A"}},{"$f":"INDEX(L:L,MATCH(E711,K:K,0))","v":{"$error":"#N/A"}}]
[null,null,"",{"$error":"#N/A"},{"$error":"#N/A"},{"$error":"#N/A"}]
[null,null,"",{"$error":"#N/A"},{"$error":"#N/A"},{"$error":"#N/A"}]
[null,null,"",{"$error":"#N/A"},{"$error":"#N/A"},{"$error":"#N/A"}]
[null,null,"",{"$error":"#N/A"},{"$error":"#N/A"},{"$error":"#N/A"}]
[null,null,"",{"$error":"#N/A"},{"$error":"#N/A"},{"$error":"#N/A"}]
[null,null,"",{"$error":"#N/A"},{"$error":"#N/A"},{"$error":"#N/A"}]
[null,null,"",{"$error":"#N/A"},{"$error":"#N/A"},{"$error":"#N/A"}]
[null,null,"",{"$error":"#N/A"},{"$error":"#N/A"},{"$error":"#N/A"}]
[null,null,"",{"$error":"#N/A"},{"$error":"#N/A"},{"$error":"#N/A"}]
[null,null,"",{"$error":"#N/A"},{"$error":"#N/A"},{"$error":"#N/A"}]
[null,null,{"$f":"IF(LEN(A722)=5,LEFT(A722,3),LEFT(A722,4))","v":""},{"$error":"#N/A"},{"$error":"#N/A"},{"$error":"#N/A"}]
[null,null,"",{"$error":"#N/A"},{"$error":"#N/A"},{"$error":"#N/A"}]
[null,null,"",{"$error":"#N/A"},{"$error":"#N/A"},{"$error":"#N/A"}]
[null,null,"",{"$error":"#N/A"},{"$error":"#N/A"},{"$error":"#N/A"}]
[null,null,"",{"$error":"#N/A"},{"$error":"#N/A"},{"$error":"#N/A"}]
[null,null,"",{"$error":"#N/A"},{"$error":"#N/A"},{"$error":"#N/A"}]
[null,null,"",{"$error":"#N/A"},{"$error":"#N/A"},{"$error":"#N/A"}]
[null,null,"",{"$error":"#N/A"},{"$error":"#N/A"},{"$error":"#N/A"}]
[null,null,"",{"$error":"#N/A"},{"$error":"#N/A"},{"$error":"#N/A"}]
[null,null,"",{"$error":"#N/A"},{"$error":"#N/A"},{"$error":"#N/A"}]
[null,null,"",{"$error":"#N/A"},{"$error":"#N/A"},{"$error":"#N/A"}]
[null,null,"",{"$error":"#N/A"},{"$error":"#N/A"},{"$error":"#N/A"}]
[null,null,"",{"$error":"#N/A"},{"$error":"#N/A"},{"$error":"#N/A"}]
[null,null,"",{"$error":"#N/A"},{"$error":"#N/A"},{"$error":"#N/A"}]
[null,null,"",{"$error":"#N/A"},{"$error":"#N/A"},{"$error":"#N/A"}]
[null,null,"",{"$error":"#N/A"},{"$error":"#N/A"},{"$error":"#N/A"}]
[null,null,"",{"$error":"#N/A"},{"$error":"#N/A"},{"$error":"#N/A"}]
[null,null,"",{"$error":"#N/A"},{"$error":"#N/A"},{"$error":"#N/A"}]
[null,null,"",{"$error":"#N/A"},{"$error":"#N/A"},{"$error":"#N/A"}]
[null,null,"",{"$error":"#N/A"},{"$error":"#N/A"},{"$error":"#N/A"}]
[null,null,"",{"$error":"#N/A"},{"$error":"#N/A"},{"$error":"#N/A"}]
[null,null,"",{"$error":"#N/A"},{"$error":"#N/A"},{"$error":"#N/A"}]
[null,null,"",{"$error":"#N/A"},{"$error":"#N/A"},{"$error":"#N/A"}]
[null,null,"",{"$error":"#N/A"},{"$error":"#N/A"},{"$error":"#N/A"}]
[null,null,"",{"$error":"#N/A"},{"$error":"#N/A"},{"$error":"#N/A"}]
[null,null,"",{"$error":"#N/A"},{"$error":"#N/A"},{"$error":"#N/A"}]
[null,null,"",{"$error":"#N/A"},{"$error":"#N/A"},{"$error":"#N/A"}]
[null,null,"",{"$error":"#N/A"},{"$error":"#N/A"},{"$error":"#N/A"}]
[null,null,"",{"$error":"#N/A"},{"$error":"#N/A"},{"$error":"#N/A"}]
[null,null,"",{"$error":"#N/A"},{"$error":"#N/A"},{"$error":"#N/A"}]
[null,null,"",{"$error":"#N/A"},{"$error":"#N/A"},{"$error":"#N/A"}]
[null,null,"",{"$error":"#N/A"},{"$error":"#N/A"},{"$error":"#N/A"}]
[null,null,"",{"$error":"#N/A"},{"$error":"#N/A"},{"$error":"#N/A"}]
[null,null,"",{"$error":"#N/A"},{"$error":"#N/A"},{"$error":"#N/A"}]
[null,null,"",{"$error":"#N/A"},{"$error":"#N/A"},{"$error":"#N/A"}]
[null,null,"",{"$error":"#N/A"},{"$error":"#N/A"},{"$error":"#N/A"}]
[null,null,"",{"$error":"#N/A"},{"$error":"#N/A"},{"$error":"#N/A"}]
[null,null,"",{"$error":"#N/A"},{"$error":"#N/A"},{"$error":"#N/A"}]
[null,null,"",{"$error":"#N/A"},{"$error":"#N/A"},{"$error":"#N/A"}]
[null,null,"",{"$error":"#N/A"},{"$error":"#N/A"},{"$error":"#N/A"}]
[null,null,"",{"$error":"#N/A"},{"$error":"#N/A"},{"$error":"#N/A"}]
[null,null,"",{"$error":"#N/A"},{"$error":"#N/A"},{"$error":"#N/A"}]
[null,null,"",{"$error":"#N/A"},{"$error":"#N/A"},{"$error":"#N/A"}]
[null,null,"",{"$error":"#N/A"},{"$error":"#N/A"},{"$error":"#N/A"}]

{"sheet":"Adm.ark specialer","index":2,"n_rows":51,"n_cols":151,"rows_kept":51,"cut":false,"hidden":false,"merged":[]}
["Speciale",null,"Nr.","Almen_Medicin_Kbh",null,"Nr.","Almen_Medicin_Odense",null,"Nr.","Almen_Medicin_Aarhus",null,"Nr.","Anæstesiologi",null,"Nr.","Arbejdsmedicin",null,"Nr.","Børne_og_ungdomspsykiatri",null,"Nr.","Dermato_venerologi",null,"Nr.","Diagnostisk_radiologi",null,"Nr.","Gynækologi_og_obstetrik",null,"Nr.","IM_Endokrinologi",null,"Nr.","IM_Fælleskurser",null,"Nr.","IM_Gastroenterologi_og_Hepatologi",null,"Nr.","IM_Geriatri",null,"Nr.","IM_Hæmatologi",null,"Nr.","IM_Infektionsmedicin",null,"Nr.","IM_Kardiologi",null,"Nr.","IM_Lungesygdomme",null,"Nr.","IM_Nefrologi",null,"Nr.","IM_Reumatologi",null,"Nr.","Karkirurgi",null,"Nr.","Kirurgi",null,"Nr.","Kir._færdighedskurser_KBH_Odense_og_Århus",null,"Nr.","Kir._Færdighedskurser_Århus",null,"Nr.","Klinisk_Biokemi",null,"Nr.","Klinisk_Farmakologi",null,"Nr.","Klinisk_Fysiologi_og_Nuklearmedicin",null,"Nr.","Klinisk_Genetik",null,"Nr.","Klinisk_Immunologi",null,"Nr.","Klinisk_Mikrobiologi",null,"Nr.","Klinisk_Onkologi",null,"Nr.","Neurokirurgi",null,"Nr.","Neurologi",null,"Nr.","Oftalmologi",null,"Nr.","Ortopædisk_kirurgi",null,"Nr.","Oto_rhino_laryngologi",null,"Nr.","Patologisk_anatomi_og_cytologi",null,"Nr.","Plastikkirurgi",null,"Nr.","Psykiatri",null,"Nr.","Pædiatri",null,"Nr.","Retsmedicin",null,"Nr.","Samfundsmedicin",null,"Nr.","Thoraxkirurgi",null,"Nr.","Urologi",null,"Nr.","SOL_2",null,"Nr.","Kommunallægekurser",null,"Nr.","Tand_mund_og_kæbekirurgi",null,"Nr.","Ortodonti",null,"Nr.","Færdighedskurser_operativ_gynækologi",null,"Nr.","Færdighedskurser_ort._kir.",null,"Nr.","Akutmedicin"]
["[vælg fra liste]",null,null,"[vælg fra liste]",null,null,"[vælg fra liste]",null,null,"[vælg fra liste]",null,null,"[vælg fra liste]",null,null,"[vælg fra liste]",null,null,"[vælg fra liste]",null,null,"[vælg fra liste]",null,null,"[vælg fra liste]",null,null,"[vælg fra liste]",null,null,"[vælg fra liste]",null,null,"[vælg fra liste]",null,null,"[vælg fra liste]",null,null,"[vælg fra liste]",null,null,"[vælg fra liste]",null,null,"[vælg fra liste]",null,null,"[vælg fra liste]",null,null,"[vælg fra liste]",null,null,"[vælg fra liste]",null,null,"[vælg fra liste]",null,null,"[vælg fra liste]",null,null,"[vælg fra liste]",null,null,"[vælg fra liste]",null,null,"Udgået",null,null,"[vælg fra liste]",null,null,"[vælg fra liste]",null,null,"[vælg fra liste]",null,null,"[vælg fra liste]",null,null,"[vælg fra liste]",null,null,"[vælg fra liste]",null,null,"[vælg fra liste]",null,null,"[vælg fra liste]",null,null,"[vælg fra liste]",null,null,"[vælg fra liste]",null,null,"[vælg fra liste]",null,null,"[vælg fra liste]",null,null,"[vælg fra liste]",null,null,"[vælg fra liste]",null,null,"[vælg fra liste]",null,null,"[vælg fra liste]",null,null,"[vælg fra liste]",null,null,"[vælg fra liste]",null,null,"[vælg fra liste]",null,null,"[vælg fra liste]",null,null,"[vælg fra liste]",null,null,"[vælg fra liste]",null,null,"[vælg fra liste]",null,null,"[vælg fra liste]",null,null,"[vælg fra liste]",null,null,"[vælg fra liste]",null,null,"[vælg fra liste]"]
["Akutmedicin",null,25101,"ØST29 modul 13",null,25201,"SYD 2021-1",null,25303,"Nord46",null,25401,"Luftvejshåndtering – Hold nov. 2024",null,25501,"Klinisk Arbejdsmedicin",null,25601,"ADHD, Komorbiditet og differentialdiagnostik ",null,25701,"Den geriatriske patient og lokalbehandling ",null,25801,"Abdominal radiologi",null,25901,"Intrapartal obstetrik",null,251001,"Laboratorieteknik",null,251101,"Akut medicin, Nord - Maj",null,251201,"Gastrointestinal Endoskopi",null,251301,"Geriatriske sygdomme 1, hjerte, lunge, endo",null,251401,"Lavmaligne lymfeproliferative sygdomme",null,251501,"Teoretisk kursus i mikrobiologi",null,251601,"TEE simulation",null,251701,"Kursus i Klinisk respirationsfysiologi"," ",251801,"Akut og kronisk glomerulonephiritis, HUS og TTP"," ",251902,"Delkursus 2 - Inflammatoriske lidelser 2",null,252002,"Basalt ultralydskursus",null,252101,"Mammakirurgi",null,252201,"Praktisk fælleskirurgisk kursus, Århus",null,null,null,null,252401,"Klinisk Biokemisk Farmakologi og Toksikologi",null,252501,"Farmakoøkonomi",null,252601,"Isotopteknik 1 - \"Radioaktive isotoper og ioniserende stråling\" (Kbh)",null,252701,"Klinisk Genetik 1",null,252801,"Praktisk kursus i immunologiske metoder",null,252901,"Kursus i molekylærbiologi",null,253001,"Radioterapi",null,253102,"Internationale kurser, SNS/EANS",null,253201,"Neuromuskulære sygdomme I",null,253301,"I1, Vejle",null,253401,"Protesekirurgi",null,253501,"Mellemøret",null,253603,"Gastrointestinal patologi",null,253701,"Nordisk Kursus I Misdannelser",null,253801,"Ældrepsykiatri ",null,253901,"Neuropæditari",null,null,null,null,254101,"International Sundhed",null,254201,"EACTS: Fundamentals in Coronary Artery diseases",null,254301,"Urologisk radiologi",null,null,null,null,null,null,null,null,null,null,254701,"Knoglemetabolisme",null,255001,"Operativ Gynækologi I",null,255101,"Kirurgisk færdighedskursus - Forår",null,256003,"Flowmaster"]
["Almen_Medicin_Aarhus",null,25102,"ØST29 modul 14",null,25202,"SYD 2021-2",null,25304,"Nord45",null,25402,"Avanceret intensiv terapi – Hold nov. 2022",null,null,null,null,25602,"Farmakologisk behandling af ADHD (Psykofarmakologi 2) ",null,25702,"Kursus i basal dermatologi (Øst)",null,25806,"Neuroradiologi Inkl. Hoved/hals ",null,25902,"Urogynækologi",null,251003,"Thyroideasygdomme",null,251102,"Akut medicin, Syd - Maj",null,251202,"Hepatologi",null,251303,"Kursusplanlægning",null,251402,"Højmaligne lymfeproliferative sygdomme",null,251504,"Tropemedicinsk kursus",null,251605,"ÅR 3 KURSUS (HU3)",null,251703,"Kursus i Astma",null,null,null,null,251904,"Delkursus 4 - Den patologiske overekstremitet",null,252005,"ENHANCE OPEN",null,252102,"Teoretisk fælleskirurgisk kursus",null,252202,"Praktisk fælleskirurgisk kursus, Odense",null,null,null,null,null,null,null,252502,"Farmakodynamik",null,252602,"Metodekursus 1 (Videregående isotopkursus)",null,null,null,null,252802,"Donorkriterier og donorscreening",null,null,null,null,253002,"Kommunikation",null,253102,"Undervisere, internationale kurser",null,253202,"Neuromuskulære sygdomme II",null,253303,"HB2",null,253402,"Børneortopædi",null,253502,"Næse- og bihuler",null,253604,"Mammapatologi",null,253702,"Nordisk kursus II Traume ",null,253802,"Psykiatriens organisatoriske og sociale aspekter ",null,253903,"Neonatologi og børnekirurgi",null,null,null,null,254102,"Sundhedsfremme, forebyggelse og rehabilitering",null,254202,"EACTS: Fundamentals in Valvular Heart diseases",null,254302,"Nefrologi",null,null,null,null,null,null,null,null,null,null,254702,"Traumatologi-implantologi",null,null,null,null,null,null,null,256004,"Akutmedicinsk ultralyd øst"]
["Almen_Medicin_Kbh",null,25103,"ØST29 modul 15",null,25203,"SYD 2021-3",null,25305,"Nord44",null,25403,"Obstetrisk anæstesi og det nyfødte barn – Hold nov. 2023 ",null,null,null,null,25603,"Retspsykiatri",null,25703,"Den kløende patient og pædiatri ",null,25808,"Thorax radiologi",null,25903,"Benign gynækologi",null,251005,"Knogle- og calciummetaboliske sygdomme",null,251103,"Akut medicin, Øst - Maj",null,null,null,null,null,null,null,251403,"M-komponent sygdomme",null,null,null,null,251606,"ÅR 4 KURSUS (HU4)",null,251704,"Kursus i Allergi ",null,null,null," ",251905,"Delkursus 5 - Vaskulit og bindevævssygdomme",null,252006,"ENHANCE EVAR",null,252103,"Den kirurgiske kræftpatient, København",null,252203,"Laparoskopisk kirurgi, København",null,null,null,null,null,null,null,null,null,null,252603,"Bevægeapparatets patofysiologi og infektion/inflammation",null,null,null,null,null,null,null,null,null,null,253003,"Medicinsk kræftbehandling",null,null,null,null,253203,"Neuroonkologi",null,253306,"HB4",null,253403,"Idrætstraumatologi",null,253503,"Billeddiagnostik",null,253607,"Nedre luftvejes patologi",null,253705,"Mikrokirurgi",null,253803,"Teoretisk grundlag for psykoterapi ",null,253905,"Akut pædiatri",null,null,null,null,null,null,null,254203,"EACTS: Fundamentals in Thoracic diseases",null,254303,"Urolithiasis",null,null,null,null,null,null,null,null,null,null,null,null,null,null,null,null,null,null,null,256005,"Akutmedicinsk ultralyd syd"]
["Almen_Medicin_Odense",null,25104,"ØST29 modul 16",null,25204,"SYD 2021-4",null,25306,"Nord43",null,25404,"Ultralyd for anæstesiologer - Hold nov. 2024",null,null,null,null,25604,"Adfærds- og personlighedsforstyrrelser ",null,null,null,null,null,null,null,25904,"Reproduktionsmedicin",null,null,null,null,251107,"De 8 selskabers kursusdag, Nord - Maj",null,null,null,null,null,null,null,null,null,null,null,null,null,251607,"ÅR 5 KURSUS (HU5)",null,251706,"Kursus i Infiltratudredning, pleuraeffusioner, mesotheliom og hæmoptyse ",null,null,null,null,251907,"USU-møder ",null,252007,"ENHANCE PAD",null,252104,"Avanceret kirurgisk endoskopi, København",null,252204,"Åben kirurgi,København",null,null,null,null,null,null,null,null,null,null,null,null,null,null,null,null,null,null,null,null,null,null,null,null,null,null,null,null,253204,"Anfaldsfænomener og søvn",null,253307,"HK5",null,253404,"Rygkirurgi",null,253504,"Hoved-Hals kirurgi",null,253608,"Molekylærpatologi",null,275306,"Hovedkursusledermøder",null,253804,"I Psykopatologi ",null,253909,"Infektionspædiatri, immunologi og reumatologi",null,null,null,null,null,null,null,254204,"Perfusions kursus",null,254305,"LUTS/urodynamik",null,null,null,null,null,null,null,null,null,null,null,null,null,null,null,null,null,null,null,256007,"ABCDE"]
["Anæstesiologi",null,25105,"ØST30 modul 11",null,25209,"SYD 2023-1",null,25307,"Nord42",null,25405,"Anæstesi – Hold maj 2022 ",null,null,null,null,25605,"Misbrug",null,null,null,null,null,null,null,25905,"Kommunikation A",null,null,null,null,251108,"De 8 selskabers kursusdag, Syd - Maj",null,null,null,null,null,null,null,null,null,null,null,null,null,null,null,null,251708,"Kursus i Interstitielle Lungesygdomme ",null,null,null,null,null,null,null,null,null,null,252105,"Den akutte kirurgiske patient, København",null,252205,"Åben kirurgi, Odense",null,null,null,null,null,null,null,null,null,null,null,null,null,null,null,null,null,null,null,null,null,null,null,null,null,null,null,null,253205,"Klinisk neurologi 1",null,253308,"HK6",null,253405,"Introduktion forår",null,253505,"Endoskopi",null,253609,"Øvre luftvejes patologi",null,null,null,null,253805,"Neuropsykiatri ",null,253910,"Nefrologi og urologisk børnekirurgi",null,null,null,null,null,null,null,254207,"Internat VVU",null,254308,"Andrologi/fertilitet",null,null,null,null,null,null,null,null,null,null,null,null,null,null,null,null,null,null,null,256008,"Akutte kirurgiske tilstande"]
["Arbejdsmedicin",null,25106,"ØST30 modul 12",null,25210,"SYD 2023-2",null,25308,"Nord41",null,25406,"Intensiv terapi NORD & SYD – Hold nov. 2024",null,null,null,null,25606,"Teoretisk kursus psykopatologi ",null,null,null,null,null,null,null,25906,"Endokrin gynækologi",null,null,null,null,251109,"De 8 selskabers kursusdag, Øst - Maj",null,null,null,null,null,null,null,null,null,null,null,null,null,null,null,null,null,null," ",null,null,null,null,null,null,null,null,null,252106,"Børnekirurgi, Odense",null,252206,"Praktisk fælleskirurgisk kursus,København",null,null,null,null,null,null,null,null,null,null,null,null,null,null,null,null,null,null,null,null,null,null,null,null,null,null,null,null,null,null,null,253311,"HK9",null,253406,"Håndkirurgi",null,253599,"Evaluering og opfølgning Praksis kursus",null,253612,"CNS- og muskepatologi",null,null,null,null,253806,"Børne- og ungdomspsyk. lidelser med forløb ind i voksenalderen (1 dag) ",null,253915,"Børnekardiologi",null,null,null,null,null,null,null,254208,"Erstatnings kursus for 244204",null,254310,"Færdighedskursus endo 1",null,null,null,null,null,null,null,null,null,null,null,null,null,null,null,null,null,null,null,256012,"Katastrofemedicin og transport "]
["Børne_og_ungdomspsykiatri",null,25107,"ØST30 modul 13",null,25211,"SYD 2023-3",null,25309,"Nord40",null,25407,"Intensiv terapi - ØST Hold nov. 2024  ",null,null,null,null,25607,"Autismespektrumforstyrrelser, generelle udviklingsforstyrrelser og sjældne neuropsykiatriske lidelser ",null,null,null,null,null,null,null,25911,"Kursus for delkursusledere",null,null,null,null,251113,"Rationel farmakoterapi, Nord - Maj",null,null,null,null,null,null,null,null,null,null,null,null,null,null,null,null,null,null,null,null,null,null,null,null,null,null,null,null,252107,"Traumatologi Århus",null,252207,"Laparoskopisk kursus, Århus",null,null,null,null,null,null,null,null,null,null,null,null,null,null,null,null,null,null,null,null,null,null,null,null,null,null,null,null,null,null,null,253316,"HK13",null,253415,"Håndkirurgi (ekstra kursus)",null,null,null,null,253613,"Lever- og pancreaspatologi",null,null,null,null,253807,"Oligofreni ",null,null,null,null,null,null,null,null,null,null,null,null,null,254313,"Færdighedskursus ULS 1"]
["Dermato_venerologi",null,25108,"ØST30 modul 14",null,25212,"SYD 2023-4",null,25310,"Nord39",null,25408,"Pædiatrisk anæstesi – Hold maj 2023 ",null,null,null,null,null,null,null,null,null,null,null,null,null,null,null,null,null,null,null,251114,"Rationel farmakoterapi, Syd - Maj",null,null,null,null,null,null,null,null,null,null,null,null,null,null,null,null,null,null," ",null,null,null,null,null,null,null,null,null,null,null,null,null,null,null,null,null,null,null,null,null,null,null,null,null,null,null,null,null,null,null,null,null,null,null,null,null,null,null,null,null,null,null,null,null,null,null,null,null,null,null,null,null,null,253614,"Knogle- bløddelspatologi",null,null,null,null,253808,"III Psykopatologi ",null,null,null,null,null,null,null,null,null,null,null,null,null,254317,"Færdighedskursus uro.lap 1"]
["Diagnostisk_radiologi",null,25109,"ØST30 modul 15",null,25213,"SYD 2023-5",null,25311,"Nord38",null,25409,"Klinisk beslutningstagen – Hold nov. 2021 ",null,null,null,null,null,null,null,null,null,null,null,null,null,null,null,null,null,null,null,251115,"Rationel farmakoterapi, Øst - Maj",null,null,null,null,null,null,null,null,null,null,null,null,null,null,null,null,null,null,null,null,null,null,null,null,null,null,null,null,null,null,null,null,null,null,null,null,null,null,null,null,null,null,null,null,null,null,null,null,null,null,null,null,null,null,null,null,null,null,null,null,null,null,null,null,null,null,null,null,null,null,null,null,null,null,null,null,null,null,null,253809,"Ældrepsykiatri ",null,null,null,null,null,null,null,null,null,null,null,null,null,254318,"Færidghedskursus uro.lap 2"]
["Færdighedskurser_operativ_gynækologi",null,25110,"ØST30 modul 16",null,25214,"SYD 2024-1",null,25312,"Nord37",null,25410,"Akutte smerter og kroniske smerter – Hold maj 2024 ",null,null,null,null,null,null,null,null,null,null,null,null,null,null,null,null,null,null,null,251119,"Neurologi for intern medicinere, Nord - Maj",null,null,null,null,null,null,null,null,null,null,null,null,null,null,null,null,null,null,null,null,null,null,null,null,null,null,null,null,null,null,null,null,null,null,null,null,null,null,null,null,null,null,null,null,null,null,null,null,null,null,null,null,null,null,null,null,null,null,null,null,null,null,null,null,null,null,null,null,null,null,null,null,null,null,null,null,null,null,null,253810,"Misbrug (2 dage) ",null,null,null,null,null,null,null,null,null,null,null,null,null,254319,"Revision af database"]
["Færdighedskurser_ort._kir.",null,25111,"ØST31 modul 10",null,25215,"SYD 2024-2",null,25313,"Nord36",null,25411,"Neuro, traume og præhospital – Hold nov. 2022",null,null,null,null,null,null,null,null,null,null,null,null,null,null,null,null,null,null,null,251120,"Neurologi for intern medicinere, Syd - Maj",null,null,null,null,null,null,null,null,null,null,null,null,null,null,null,null,null,null,null,null,null,null,null,null,null,null,null,null,null,null,null,null,null,null,null,null,null,null,null,null,null,null,null,null,null,null,null,null,null,null,null,null,null,null,null,null,null,null,null,null,null,null,null,null,null,null,null,null,null,null,null,null,null,null,null,null,null,null,null,253811,"Erklæringsudstedelse (1 dag) "]
["Gynækologi_og_obstetrik",null,25112,"ØST31 modul 11",null,25216,"SYD 2024-3",null,25314,"Nord35",null,25412,"Patientsikkerhed og professionel kommunikation – Hold maj 2024",null,null,null,null,null,null,null,null,null,null,null,null,null,null,null,null,null,null,null,251121,"Neurologi for intern medicinere, Øst - Maj",null,null,null,null,null,null,null,null,null,null,null,null,null,null,null,null,null,null,null,null,null,null,null,null,null,null,null,null,null,null,null,null,null,null,null,null,null,null,null,null,null,null,null,null,null,null,null,null,null,null,null,null,null,null,null,null,null,null,null,null,null,null,null,null,null,null,null,null,null,null,null,null,null,null,null,null,null,null,null,253812,"II Psykopatologi "]
["IM_Endokrinologi",null,25113,"ØST31 modul 12",null,25217,"SYD 2024-4",null,25317,"Nord32",null,null,null,null,null,null,null,null,null,null,null,null,null,null,null,null,null,null,null,null,null,null,251125,"Psykiatri for intern medicinere, Nord - Maj",null,null,null,null,null,null,null,null,null,null,null,null,null,null,null,null,null,null,null,null,null,null,null,null,null,null,null,null,null,null,null,null,null,null,null,null,null,null,null,null,null,null,null,null,null,null,null,null,null,null,null,null,null,null,null,null,null,null,null,null,null,null,null,null,null,null,null,null,null,null,null,null,null,null,null,null,null,null,null,253813,"Børne- og ungdomspsyk. lidelser med forløb ind i voksenalderen (1 dag) "]
["IM_Fælleskurser",null,25114,"ØST31 modul 13",null,25218,"SYD 2025-1",null,25318,"Nord31",null,null,null,null,null,null,null,null,null,null,null,null,null,null,null,null,null,null,null,null,null,null,251126,"Psykiatri for intern medicinere, Syd - Maj",null,null,null,null,null,null,null,null,null,null,null,null,null,null,null,null,null,null,null,null,null,null,null,null,null,null,null,null,null,null,null,null,null,null,null,null,null,null,null,null,null,null,null,null,null,null,null,null,null,null,null,null,null,null,null,null,null,null,null,null,null,null,null,null,null,null,null,null,null,null,null,null,null,null,null,null,null,null,null,253814,"Oligofreni "]
["IM_Gastroenterologi_og_Hepatologi",null,25115,"ØST31 modul 14",null,25219,"SYD 2025-2",null,25319,"Nord30",null,null,null,null,null,null,null,null,null,null,null,null,null,null,null,null,null,null,null,null,null,null,251127,"Psykiatri for intern medicinere, Øst - Maj",null,null,null,null,null,null,null,null,null,null,null,null,null,null,null,null,null,null,null,null,null,null,null,null,null,null,null,null,null,null,null,null,null,null,null,null,null,null,null,null,null,null,null,null,null,null,null,null,null,null,null,null,null,null,null,null,null,null,null,null,null,null,null,null,null,null,null,null,null,null,null,null,null,null,null,null,null,null,null,253815,"Biologiske behandlingsmetoder "]
["IM_Geriatri",null,25118,"ØST32 modul 10",null,null,null,null,25320,"Nord29",null,null,null,null,null,null,null,null,null,null,null,null,null,null,null,null,null,null,null,null,null,null,251131,"Rationel klinisk beslutningsteori, Nord - Maj",null,null,null,null,null,null,null,null,null,null,null,null,null,null,null,null,null,null,null,null,null,null,null,null,null,null,null,null,null,null,null,null,null,null,null,null,null,null,null,null,null,null,null,null,null,null,null,null,null,null,null,null,null,null,null,null,null,null,null,null,null,null,null,null,null,null,null,null,null,null,null,null,null,null,null,null,null,null,null,253816,"Retspsykiatri "]
["IM_Hæmatologi",null,25136,"ØST37 modul 09",null,null,null,null,25321,"Nord28",null,null,null,null,null,null,null,null,null,null,null,null,null,null,null,null,null,null,null,null,null,null,251132,"Rationel klinisk beslutningsteori, Syd - Maj",null,null,null,null,null,null,null,null,null,null,null,null,null,null,null,null,null,null,null,null,null,null,null,null,null,null,null,null,null,null,null,null,null,null,null,null,null,null,null,null,null,null,null,null,null,null,null,null,null,null,null,null,null,null,null,null,null,null,null,null,null,null,null,null,null,null,null,null,null,null,null,null,null,null,null,null,null,null,null,253899,"VUU-møder"]
["IM_Infektionsmedicin",null,25137,"ØST38 modul 09",null,null,null,null,null,null,null,null,null,null,null,null,null,null,null,null,null,null,null,null,null,null,null,null,null,null,null,null,251133,"Rationel klinisk beslutningsteori, Øst - Maj"]
["IM_Kardiologi",null,25138,"ØST38X modul 09",null,null,null,null,null,null,null,null,null,null,null,null,null,null,null,null,null,null,null,null,null,null,null,null,null,null,null,null,251137,"Onkologi for intern medicinere, Nord - Maj"]
["IM_Lungesygdomme",null,25139,"ØST39 modul 08",null,null,null,null,null,null,null,null,null,null,null,null,null,null,null,null,null,null,null,null,null,null,null,null,null,null,null,null,251138,"Onkologi for intern medicinere, Syd - Maj"]
["IM_Nefrologi",null,25141,"ØST40 modul 08",null,null,null,null,null,null,null,null,null,null,null,null,null,null,null,null,null,null,null,null,null,null,null,null,null,null,null,null,251139,"Onkologi for intern medicinere, Øst - Maj"]
["IM_Reumatologi",null,25143,"ØST40X modul 08",null,null,null,null,null,null,null,null,null,null,null,null,null,null,null,null,null,null,null,null,null,null,null,null,null,null,null,null,251143,"Den terminale patient, palliativ behandling, Nord - Maj"]
["Karkirurgi",null,25145,"ØST41 modul 07",null,null,null,null,null,null,null,null,null,null,null,null,null,null,null,null,null,null,null,null,null,null,null,null,null,null,null,null,251144,"Den terminale patient, palliativ behandling, Syd - Maj"]
["Kir._færdighedskurser_KBH_Odense_og_Århus",null,25147,"ØST42 modul 07",null,null,null,null,null,null,null,null,null,null,null,null,null,null,null,null,null,null,null,null,null,null,null,null,null,null,null,null,251145,"Den terminale patient, palliativ behandling, Øst - Maj"]
["Kirurgi",null,25149,"ØST42X modul 04",null,null,null,null,null,null,null,null,null,null,null,null,null,null,null,null,null,null,null,null,null,null,null,null,null,null,null,null,251149,"Den ældre patient, Nord - Maj"]
["Klinisk_Biokemi",null,25150,"ØST42X modul 07",null,null,null,null,null,null,null,null,null,null,null,null,null,null,null,null,null,null,null,null,null,null,null,null,null,null,null,null,251150,"Den ældre patient, Syd - Maj"]
["Klinisk_Farmakologi",null,25152,"ØST43 modul 04",null,null,null,null,null,null,null,null,null,null,null,null,null,null,null,null,null,null,null,null,null,null,null,null,null,null,null,null,251151,"Den ældre patient, Øst - Maj"]
["Klinisk_Fysiologi_og_Nuklearmedicin",null,25153,"ØST43 modul 06",null,null,null,null,null,null,null,null,null,null,null,null,null,null,null,null,null,null,null,null,null,null,null,null,null,null,null,null,251197,"DSIM kursusudvalg"]
["Klinisk_Genetik",null,25155,"ØST44 modul 04"]
["Klinisk_Immunologi",null,25156,"ØST44 modul 05"]
["Klinisk_Mikrobiologi",null,25157,"ØST44 modul 06"]
["Klinisk_Onkologi",null,25159,"ØST44X modul 03"]
["Kommunallægekurser",null,25160,"ØST44X modul 04"]
["Neurokirurgi",null,25161,"ØST44X modul 05"]
["Neurologi",null,25162,"ØST44X modul 06"]
["Oftalmologi",null,25164,"ØST45 modul 01"]
["Ortodonti",null,25165,"ØST45 modul 02"]
["Ortopædisk_kirurgi",null,25166,"ØST45 modul 03"]
["Oto_rhino_laryngologi",null,25167,"ØST45 modul 04"]
["Patologisk_anatomi_og_cytologi",null,25168,"ØST45 modul 05"]
["Plastikkirurgi",null,25170,"ØST46 modul 01"]
["Psykiatri",null,25171,"ØST46 modul 02"]
["Pædiatri",null,25172,"ØST46 modul 03"]
["Retsmedicin",null,25173,"ØST46 modul 04"]
["Samfundsmedicin",null,25176,"ØST46X modul 01"]
["SOL_2",null,25177,"ØST46X modul 02"]
["Tand_mund_og_kæbekirurgi",null,25178,"ØST46X modul 03"]
["Thoraxkirurgi"]
["Urologi"]

{"sheet":"Delkursusleder 1","index":3,"n_rows":46,"n_cols":4,"rows_kept":46,"cut":false,"hidden":false,"merged":[[45,0,45,3],[41,0,43,3],[17,1,17,3],[0,1,0,3],[13,1,13,3],[11,1,11,3],[20,1,20,3],[39,0,39,3],[7,1,7,3],[5,1,5,3],[10,0,10,3]]}
[null,"Honorar Delkursusleder 1"]
[null,null,"       Læs mere om de specialespecifikke kurser på Sundhedsstyrelsens","hjemmeside"]
[null,"NB. Skemaet SKAL udfyldes elektronisk"]
["Udfyldes af delkursusleder inden kurset"]
[]
["Speciale:","[vælg fra liste]"]
[]
["Kursusnavn:","[vælg fra liste]"]
[]
["Kursusnummer:",{"$f":"IF(B6=\"[vælg fra liste]\",\"Kursusnummer findes automatisk efter du har indtastet speciale/kursusnavn\",IFERROR(INDEX(Kodefinder!A:A,MATCH(1,(B6=Kodefinder!F:F)*(B8=Kodefinder!B:B),0)),\"Der findes flere kurser med samme navn. Skriv selv kursusnummer i denne celle\"))","v":"Kursusnummer findes automatisk efter du har indtastet speciale/kursusnavn"}]
["Udfyldes manuelt af kursusleder hvis formlen ikke selv finder kursusnummer(se evt. arket \"Adm.ark for specialer\" til venstre for dette ark)"]
["Kursussted, by:"]
[]
["Navn delkursusleder:"]
[]
["Cpr.nr.:",null,{"$f":"IFERROR(IF(LEN(B16)>10,\"CPR-nummer ikke gyldigt - du har mere end 10 tegn med. Husk ikke at inkludere bindestreg\",IF(LEN(B16)=0,\"\",IF(LEN(B16)<10,\"CPR-nummer ikke gyldigt - Du har indtastet for få tegn\",IF(0=MOD(LEFT(B16)*4+MID(B16,2,1)*3+MID(B16,3,1)*2+MID(B16,4,1)*7+MID(B16,5,1)*6+MID(B16,6,1)*5+(MID(B16,7,1)*4+MID(B16,8,1)*3)+MID(B16,9,1)*2+MID(B16,10,1),11),\"\",\"CPR-nummer ikke gyldigt - Tjek cifrene i dit CPR igennem igen\")))),\"CPR-nummer ikke gyldigt - Et af cifrene i dit CPR er ikke et tal\")","v":""}]
["Ingen bindestreg. CPR-nummer fremgår af formellinje under tastning, hvorefter det skjules."]
["Rolle","Kursusleder"]
["Jeg sender en faktura"]
[]
["E-mail"]
[]
["Dato for første undervisningsdag DD-MM-ÅÅ:",null,{"$f":"IF(B23>D24+363,\"Datoen ser ud til ikke at passe i enten format eller til perioden\",\"\")","v":""},"Aktuel sats"]
[null,null,null,{"$f":"'Adm.ark satser'!G1","v":"2024-04-01"}]
[]
[]
[]
["Udfyldes HVIS også underviser","Obligatorisk",null,"Udfyldes automatisk"]
["Antal forelæsningstimer",null,"Udgift til forelæsningstimer ",{"$f":"B29*'Adm.ark satser'!C2","v":0}]
["Antal diskussionstimer",null,"Udgift til diskussionstimer ",{"$f":"B30*'Adm.ark satser'!C3","v":0}]
["Antal medhjælper timer",null,"Udgift til medhjælpertimer",{"$f":"B31*'Adm.ark satser'!C4","v":0}]
[null,null,"Beløb i alt",{"$f":"SUM(D29+D30+D31)","v":0}]
[]
[]
[]
[]
["Udfyldes af delkursusleder"]
["Honorar"]
[null,"Fast honorar på kr. 8.000 - evt. til deling mellem flere delkursusledere"]
["Der udbetales til NemKonto. Lønsedlen sendes til din e-boks. Ved CVR./SE-nr. SKAL der sendes e-faktura til EAN nr: 5798000362147 via sundhedsstyrelsens hjemmeside."]
["Evt. bemærkninger"]
[]
[]
[]
[]
["Den nederste række i fanen Samlingsark skal kopieres med i mail til hovedkursusleder, når delkursusleder kvitterer for oplysningernes rigtighed. "]

{"sheet":"(Evt. delkursusleder 2)","index":4,"n_rows":45,"n_cols":4,"rows_kept":45,"cut":false,"hidden":false,"merged":[[30,1,30,3],[45,0,48,6],[0,1,0,3],[5,1,5,3],[9,1,9,3],[7,2,7,3],[11,1,11,3],[24,1,24,3],[26,1,26,3],[28,2,28,3]]}
[null,"Honorar Delkursusleder 2"]
[null,null,"       Læs mere om de specialespecifikke kurser på Sundhedsstyrelsens","hjemmeside"]
[null,"NB. Skemaet SKAL udfyldes elektronisk"]
["Udfyldes af evt. delkursusleder 2"]
[]
["Navn delkursusleder:"]
[]
["Cpr.nr.:",null,"Jeg sender en faktura"]
["Ingen bindestreg. CPR-nummer fremgår af formellinje under tastning, hvorefter det skjules."]
["Rolle","Kursusleder"]
[{"$f":"IFERROR(IF(LEN(B8)>10,\"CPR-nummer ikke gyldigt - du har mere end 10 tegn med. Husk ikke at inkludere bindestreg\",IF(LEN(B8)=0,\"\",IF(LEN(B8)<10,\"CPR-nummer ikke gyldigt - Du har indtastet for få tegn\",IF(0=MOD(LEFT(B8)*4+MID(B8,2,1)*3+MID(B8,3,1)*2+MID(B8,4,1)*7+MID(B8,5,1)*6+MID(B8,6,1)*5+(MID(B8,7,1)*4+MID(B8,8,1)*3)+MID(B8,9,1)*2+MID(B8,10,1),11),\"\",\"CPR-nummer ikke gyldigt - Tjek cifrene i dit CPR igennem igen\")))),\"CPR-nummer ikke gyldigt - Et af cifrene i dit CPR er ikke et tal\")","v":""}]
["E-mail"]
[]
[]
[]
[]
["Der udbetales til NemKonto. Lønsedlen sendes til din e-boks. "]
["Ved CVR./SE-nr. SKAL der sendes e-faktura til EAN nr: 5798000362147 via sundhedsstyrelsens hjemmeside"]
[]
["Udfyldes af delkursusleder",null,"Max beløb til deling mellem delkursusledere",8000]
["Honorar",null,"Total beløb for delkursusleder 1 og 2",{"$f":"A22+'Delkursusleder 1'!A39","v":0}]
[]
["Udfyldes automatisk, trækkes fra delkursuslederark"]
[]
["Speciale:",{"$f":"'Delkursusleder 1'!B6","v":"[vælg fra liste]"}]
[]
["Kursusnavn:",{"$f":"'Delkursusleder 1'!B8","v":"[vælg fra liste]"}]
[]
["Dato for første undervisningsdag DD-MM-ÅÅ:",{"$f":"'Delkursusleder 1'!B23","v":"00:00:00"},{"$f":"'Delkursusleder 1'!C23","v":""}]
[]
["Kursussted, by:",{"$f":"'Delkursusleder 1'!B12:D12","v":0}]
[]
["Udfyldes HVIS også underviser","Obligatorisk",null,"Udfyldes automatisk"]
["Antal forelæsningstimer",null,"Udgift til forelæsningstimer ",{"$f":"B34*'Adm.ark satser'!C2","v":0}]
["Antal diskussionstimer",null,"Udgift til diskussionstimer ",{"$f":"B35*'Adm.ark satser'!C3","v":0}]
["Antal medhjælper timer",null,"Udgift til medhjælpertimer",{"$f":"B36*'Adm.ark satser'!C4","v":0}]
[null,null,"Beløb i alt",{"$f":"SUM(D34+D35+D36)","v":0}]
[]
[null,null,null,"Aktuel sats"]
[null,null,null,{"$f":"'Adm.ark satser'!G1","v":"2024-04-01"}]
[]
["Dit honorar udbetales til NemKonto. Lønsedlen sendes til din e-boks. "]
["Ved CVR./SE-nr. SKAL der sendes e-faktura til EAN nr: 5798000362147 via sundhedsstyrelsens hjemmeside."]
[]
["Evt. bemærkninger"]

{"sheet":"Honorarlønnet 1","index":5,"n_rows":30,"n_cols":7,"rows_kept":30,"cut":false,"hidden":false,"merged":[[0,1,0,4],[30,0,33,4],[1,2,1,4],[24,1,24,3],[6,2,6,3],[4,1,4,3],[8,1,8,3],[18,1,18,3],[20,1,20,3]]}
[null,"Honorar"]
[null,null,"NB. Skemaet SKAL udfyldes elektronisk"]
["Udfyldes af underviser"]
[{"$f":"IFERROR(IF(LEN(B7)>10,\"CPR-nummer ikke gyldigt - du har mere end 10 tegn med. Husk ikke at inkludere bindestreg\",IF(LEN(B7)=0,\"\",IF(LEN(B7)<10,\"CPR-nummer ikke gyldigt - Du har indtastet for få tegn\",IF(0=MOD(LEFT(B7)*4+MID(B7,2,1)*3+MID(B7,3,1)*2+MID(B7,4,1)*7+MID(B7,5,1)*6+MID(B7,6,1)*5+(MID(B7,7,1)*4+MID(B7,8,1)*3)+MID(B7,9,1)*2+MID(B7,10,1),11),\"\",\"CPR-nummer ikke gyldigt - Tjek cifrene i dit CPR igennem igen\")))),\"CPR-nummer ikke gyldigt - Et af cifrene i dit CPR er ikke et tal\")","v":""}]
["Navn:"]
[]
["Cpr.nr.:",null,"Jeg sender en faktura",null,null,null,"Ja"]
["Ingen bindestreg. CPR-nummer fremgår af formellinje under tastning, hvorefter det skjules.",null,null,null,null,null,"Nej"]
["E-mail"]
[]
["Udfyldes af underviser","Obligatorisk",null,"Udfyldes automatisk","Aktuel sats"]
["Antal forelæsningstimer",null,"Udgift til forelæsningstimer ",{"$f":"B12*'Adm.ark satser'!C2","v":0},{"$f":"'Adm.ark satser'!G1","v":"2024-04-01"}]
["Antal diskussionstimer",null,"Udgift til diskussionstimer ",{"$f":"B13*'Adm.ark satser'!C3","v":0}]
["Antal medhjælper timer",null,"Udgift til medhjælpertimer",{"$f":"B14*'Adm.ark satser'!C4","v":0}]
[null,null,"Beløb i alt",{"$f":"SUM(D12+D13+D14)","v":0}]
[]
["Udfyldes automatisk, trækkes fra delkursuslederark"]
[]
["Speciale:",{"$f":"'Delkursusleder 1'!B6","v":"[vælg fra liste]"}]
[]
["Kursusnavn:",{"$f":"'Delkursusleder 1'!B8","v":"[vælg fra liste]"}]
[]
["Dato for første undervisningsdag DD-MM-ÅÅ:",{"$f":"+'Delkursusleder 1'!B23","v":"00:00:00"},{"$f":"'Delkursusleder 1'!C23","v":""}]
[]
["Kursussted, by:",{"$f":"'Delkursusleder 1'!B12:D12","v":0}]
[]
["Dit honorar udbetales til NemKonto. Lønsedlen sendes til din e-boks. "]
["Ved CVR./SE-nr. SKAL der sendes e-faktura til EAN nr: 5798000362147 via sundhedsstyrelsens hjemmeside."]
[]
["Evt. bemærkninger"]

{"sheet":"Honorarlønnet 2","index":6,"n_rows":30,"n_cols":7,"rows_kept":30,"cut":false,"hidden":false,"merged":[[1,2,1,4],[24,1,24,3],[30,0,33,4],[0,1,0,4],[6,2,6,3],[4,1,4,3],[8,1,8,3],[20,1,20,3],[18,1,18,3]]}
[null,"Honorar"]
[null,null,"NB. Skemaet SKAL udfyldes elektronisk"]
["Udfyldes af underviser"]
[{"$f":"IFERROR(IF(LEN(B7)>10,\"CPR-nummer ikke gyldigt - du har mere end 10 tegn med. Husk ikke at inkludere bindestreg\",IF(LEN(B7)=0,\"\",IF(LEN(B7)<10,\"CPR-nummer ikke gyldigt - Du har indtastet for få tegn\",IF(0=MOD(LEFT(B7)*4+MID(B7,2,1)*3+MID(B7,3,1)*2+MID(B7,4,1)*7+MID(B7,5,1)*6+MID(B7,6,1)*5+(MID(B7,7,1)*4+MID(B7,8,1)*3)+MID(B7,9,1)*2+MID(B7,10,1),11),\"\",\"CPR-nummer ikke gyldigt - Tjek cifrene i dit CPR igennem igen\")))),\"CPR-nummer ikke gyldigt - Et af cifrene i dit CPR er ikke et tal\")","v":""}]
["Navn:"]
[]
["Cpr.nr.:",null,"Jeg sender en faktura",null,null,null,"Ja"]
["Ingen bindestreg. CPR-nummer fremgår af formellinje under tastning, hvorefter det skjules.",null,null,null,null,null,"Nej"]
["E-mail"]
[]
["Udfyldes af underviser","Obligatorisk",null,"Udfyldes automatisk","Aktuel sats"]
["Antal forelæsningstimer",null,"Udgift til forelæsningstimer ",{"$f":"B12*'Adm.ark satser'!C2","v":0},{"$f":"'Adm.ark satser'!G1","v":"2024-04-01"}]
["Antal diskussionstimer",null,"Udgift til diskussionstimer ",{"$f":"B13*'Adm.ark satser'!C3","v":0}]
["Antal medhjælper timer",null,"Udgift til medhjælpertimer",{"$f":"B14*'Adm.ark satser'!C4","v":0}]
[null,null,"Beløb i alt",{"$f":"SUM(D12+D13+D14)","v":0}]
[]
["Udfyldes automatisk, trækkes fra delkursuslederark"]
[]
["Speciale:",{"$f":"'Delkursusleder 1'!B6","v":"[vælg fra liste]"}]
[]
["Kursusnavn:",{"$f":"'Delkursusleder 1'!B8","v":"[vælg fra liste]"}]
[]
["Dato for første undervisningsdag DD-MM-ÅÅ:",{"$f":"+'Delkursusleder 1'!B23","v":"00:00:00"},{"$f":"'Delkursusleder 1'!C23","v":""}]
[]
["Kursussted, by:",{"$f":"'Delkursusleder 1'!B12:D12","v":0}]
[]
["Dit honorar udbetales til NemKonto. Lønsedlen sendes til din e-boks. "]
["Ved CVR./SE-nr. SKAL der sendes e-faktura til EAN nr: 5798000362147 via sundhedsstyrelsens hjemmeside."]
[]
["Evt. bemærkninger"]

{"sheet":"Honorarlønnet 3","index":7,"n_rows":30,"n_cols":5,"rows_kept":30,"cut":false,"hidden":false,"merged":[[1,2,1,4],[24,1,24,3],[30,0,33,4],[0,1,0,4],[6,2,6,3],[8,1,8,3],[4,1,4,3],[20,1,20,3],[18,1,18,3]]}
[null,"Honorar"]
[null,null,"NB. Skemaet SKAL udfyldes elektronisk"]
["Udfyldes af underviser"]
[{"$f":"IFERROR(IF(LEN(B7)>10,\"CPR-nummer ikke gyldigt - du har mere end 10 tegn med. Husk ikke at inkludere bindestreg\",IF(LEN(B7)=0,\"\",IF(LEN(B7)<10,\"CPR-nummer ikke gyldigt - Du har indtastet for få tegn\",IF(0=MOD(LEFT(B7)*4+MID(B7,2,1)*3+MID(B7,3,1)*2+MID(B7,4,1)*7+MID(B7,5,1)*6+MID(B7,6,1)*5+(MID(B7,7,1)*4+MID(B7,8,1)*3)+MID(B7,9,1)*2+MID(B7,10,1),11),\"\",\"CPR-nummer ikke gyldigt - Tjek cifrene i dit CPR igennem igen\")))),\"CPR-nummer ikke gyldigt - Et af cifrene i dit CPR er ikke et tal\")","v":""}]
["Navn:"]
[]
["Cpr.nr.:",null,"Jeg sender en faktura"]
["Ingen bindestreg. CPR-nummer fremgår af formellinje under tastning, hvorefter det skjules."]
["E-mail"]
[]
["Udfyldes af underviser","Obligatorisk",null,"Udfyldes automatisk","Aktuel sats"]
["Antal forelæsningstimer",null,"Udgift til forelæsningstimer ",{"$f":"B12*'Adm.ark satser'!C2","v":0},{"$f":"'Adm.ark satser'!G1","v":"2024-04-01"}]
["Antal diskussionstimer",null,"Udgift til diskussionstimer ",{"$f":"B13*'Adm.ark satser'!C3","v":0}]
["Antal medhjælper timer",null,"Udgift til medhjælpertimer",{"$f":"B14*'Adm.ark satser'!C4","v":0}]
[null,null,"Beløb i alt",{"$f":"SUM(D12+D13+D14)","v":0}]
[]
["Udfyldes automatisk, trækkes fra delkursuslederark"]
[]
["Speciale:",{"$f":"'Delkursusleder 1'!B6","v":"[vælg fra liste]"}]
[]
["Kursusnavn:",{"$f":"'Delkursusleder 1'!B8","v":"[vælg fra liste]"}]
[]
["Dato for første undervisningsdag DD-MM-ÅÅ:",{"$f":"+'Delkursusleder 1'!B23","v":"00:00:00"},{"$f":"'Delkursusleder 1'!C23","v":""}]
[]
["Kursussted, by:",{"$f":"'Delkursusleder 1'!B12:D12","v":0}]
[]
["Dit honorar udbetales til NemKonto. Lønsedlen sendes til din e-boks. "]
["Ved CVR./SE-nr. SKAL der sendes e-faktura til EAN nr: 5798000362147 via sundhedsstyrelsens hjemmeside."]
[]
["Evt. bemærkninger"]

{"sheet":"Honorarlønnet 4","index":8,"n_rows":30,"n_cols":5,"rows_kept":30,"cut":false,"hidden":false,"merged":[[1,2,1,4],[24,1,24,3],[30,0,33,4],[0,1,0,4],[6,2,6,3],[20,1,20,3],[18,1,18,3],[8,1,8,3],[4,1,4,3]]}
[null,"Honorar"]
[null,null,"NB. Skemaet SKAL udfyldes elektronisk"]
["Udfyldes af underviser"]
[{"$f":"IFERROR(IF(LEN(B7)>10,\"CPR-nummer ikke gyldigt - du har mere end 10 tegn med. Husk ikke at inkludere bindestreg\",IF(LEN(B7)=0,\"\",IF(LEN(B7)<10,\"CPR-nummer ikke gyldigt - Du har indtastet for få tegn\",IF(0=MOD(LEFT(B7)*4+MID(B7,2,1)*3+MID(B7,3,1)*2+MID(B7,4,1)*7+MID(B7,5,1)*6+MID(B7,6,1)*5+(MID(B7,7,1)*4+MID(B7,8,1)*3)+MID(B7,9,1)*2+MID(B7,10,1),11),\"\",\"CPR-nummer ikke gyldigt - Tjek cifrene i dit CPR igennem igen\")))),\"CPR-nummer ikke gyldigt - Et af cifrene i dit CPR er ikke et tal\")","v":""}]
["Navn:"]
[]
["Cpr.nr.:",null,"Jeg sender en faktura"]
["Ingen bindestreg. CPR-nummer fremgår af formellinje under tastning, hvorefter det skjules."]
["E-mail"]
[]
["Udfyldes af underviser","Obligatorisk",null,"Udfyldes automatisk","Aktuel sats"]
["Antal forelæsningstimer",null,"Udgift til forelæsningstimer ",{"$f":"B12*'Adm.ark satser'!C2","v":0},{"$f":"'Adm.ark satser'!G1","v":"2024-04-01"}]
["Antal diskussionstimer",null,"Udgift til diskussionstimer ",{"$f":"B13*'Adm.ark satser'!C3","v":0}]
["Antal medhjælper timer",null,"Udgift til medhjælpertimer",{"$f":"B14*'Adm.ark satser'!C4","v":0}]
[null,null,"Beløb i alt",{"$f":"SUM(D12+D13+D14)","v":0}]
[]
["Udfyldes automatisk, trækkes fra delkursuslederark"]
[]
["Speciale:",{"$f":"'Delkursusleder 1'!B6","v":"[vælg fra liste]"}]
[]
["Kursusnavn:",{"$f":"'Delkursusleder 1'!B8","v":"[vælg fra liste]"}]
[]
["Dato for første undervisningsdag DD-MM-ÅÅ:",{"$f":"+'Delkursusleder 1'!B23","v":"00:00:00"},{"$f":"'Delkursusleder 1'!C23","v":""}]
[]
["Kursussted, by:",{"$f":"'Delkursusleder 1'!B12:D12","v":0}]
[]
["Dit honorar udbetales til NemKonto. Lønsedlen sendes til din e-boks. "]
["Ved CVR./SE-nr. SKAL der sendes e-faktura til EAN nr: 5798000362147 via sundhedsstyrelsens hjemmeside."]
[]
["Evt. bemærkninger"]

{"sheet":"Honorarlønnet 5","index":9,"n_rows":30,"n_cols":5,"rows_kept":30,"cut":false,"hidden":false,"merged":[[1,2,1,4],[24,1,24,3],[30,0,33,4],[0,1,0,4],[6,2,6,3],[20,1,20,3],[18,1,18,3],[8,1,8,3],[4,1,4,3]]}
[null,"Honorar"]
[null,null,"NB. Skemaet SKAL udfyldes elektronisk"]
["Udfyldes af underviser"]
[{"$f":"IFERROR(IF(LEN(B7)>10,\"CPR-nummer ikke gyldigt - du har mere end 10 tegn med. Husk ikke at inkludere bindestreg\",IF(LEN(B7)=0,\"\",IF(LEN(B7)<10,\"CPR-nummer ikke gyldigt - Du har indtastet for få tegn\",IF(0=MOD(LEFT(B7)*4+MID(B7,2,1)*3+MID(B7,3,1)*2+MID(B7,4,1)*7+MID(B7,5,1)*6+MID(B7,6,1)*5+(MID(B7,7,1)*4+MID(B7,8,1)*3)+MID(B7,9,1)*2+MID(B7,10,1),11),\"\",\"CPR-nummer ikke gyldigt - Tjek cifrene i dit CPR igennem igen\")))),\"CPR-nummer ikke gyldigt - Et af cifrene i dit CPR er ikke et tal\")","v":""}]
["Navn:"]
[]
["Cpr.nr.:",null,"Jeg sender en faktura"]
["Ingen bindestreg. CPR-nummer fremgår af formellinje under tastning, hvorefter det skjules."]
["E-mail"]
[]
["Udfyldes af underviser","Obligatorisk",null,"Udfyldes automatisk","Aktuel sats"]
["Antal forelæsningstimer",null,"Udgift til forelæsningstimer ",{"$f":"B12*'Adm.ark satser'!C2","v":0},{"$f":"'Adm.ark satser'!G1","v":"2024-04-01"}]
["Antal diskussionstimer",null,"Udgift til diskussionstimer ",{"$f":"B13*'Adm.ark satser'!C3","v":0}]
["Antal medhjælper timer",null,"Udgift til medhjælpertimer",{"$f":"B14*'Adm.ark satser'!C4","v":0}]
[null,null,"Beløb i alt",{"$f":"SUM(D12+D13+D14)","v":0}]
[]
["Udfyldes automatisk, trækkes fra delkursuslederark"]
[]
["Speciale:",{"$f":"'Delkursusleder 1'!B6","v":"[vælg fra liste]"}]
[]
["Kursusnavn:",{"$f":"'Delkursusleder 1'!B8","v":"[vælg fra liste]"}]
[]
["Dato for første undervisningsdag DD-MM-ÅÅ:",{"$f":"+'Delkursusleder 1'!B23","v":"00:00:00"},{"$f":"'Delkursusleder 1'!C23","v":""}]
[]
["Kursussted, by:",{"$f":"'Delkursusleder 1'!B12:D12","v":0}]
[]
["Dit honorar udbetales til NemKonto. Lønsedlen sendes til din e-boks. "]
["Ved CVR./SE-nr. SKAL der sendes e-faktura til EAN nr: 5798000362147 via sundhedsstyrelsens hjemmeside."]
[]
["Evt. bemærkninger"]

{"sheet":"Honorarlønnet 6","index":10,"n_rows":30,"n_cols":5,"rows_kept":30,"cut":false,"hidden":false,"merged":[[1,2,1,4],[24,1,24,3],[30,0,33,4],[0,1,0,4],[6,2,6,3],[20,1,20,3],[18,1,18,3],[8,1,8,3],[4,1,4,3]]}
[null,"Honorar"]
[null,null,"NB. Skemaet SKAL udfyldes elektronisk"]
["Udfyldes af underviser"]
[{"$f":"IFERROR(IF(LEN(B7)>10,\"CPR-nummer ikke gyldigt - du har mere end 10 tegn med. Husk ikke at inkludere bindestreg\",IF(LEN(B7)=0,\"\",IF(LEN(B7)<10,\"CPR-nummer ikke gyldigt - Du har indtastet for få tegn\",IF(0=MOD(LEFT(B7)*4+MID(B7,2,1)*3+MID(B7,3,1)*2+MID(B7,4,1)*7+MID(B7,5,1)*6+MID(B7,6,1)*5+(MID(B7,7,1)*4+MID(B7,8,1)*3)+MID(B7,9,1)*2+MID(B7,10,1),11),\"\",\"CPR-nummer ikke gyldigt - Tjek cifrene i dit CPR igennem igen\")))),\"CPR-nummer ikke gyldigt - Et af cifrene i dit CPR er ikke et tal\")","v":""}]
["Navn:"]
[]
["Cpr.nr.:",null,"Jeg sender en faktura"]
["Ingen bindestreg. CPR-nummer fremgår af formellinje under tastning, hvorefter det skjules."]
["E-mail"]
[]
["Udfyldes af underviser","Obligatorisk",null,"Udfyldes automatisk","Aktuel sats"]
["Antal forelæsningstimer",null,"Udgift til forelæsningstimer ",{"$f":"B12*'Adm.ark satser'!C2","v":0},{"$f":"'Adm.ark satser'!G1","v":"2024-04-01"}]
["Antal diskussionstimer",null,"Udgift til diskussionstimer ",{"$f":"B13*'Adm.ark satser'!C3","v":0}]
["Antal medhjælper timer",null,"Udgift til medhjælpertimer",{"$f":"B14*'Adm.ark satser'!C4","v":0}]
[null,null,"Beløb i alt",{"$f":"SUM(D12+D13+D14)","v":0}]
[]
["Udfyldes automatisk, trækkes fra delkursuslederark"]
[]
["Speciale:",{"$f":"'Delkursusleder 1'!B6","v":"[vælg fra liste]"}]
[]
["Kursusnavn:",{"$f":"'Delkursusleder 1'!B8","v":"[vælg fra liste]"}]
[]
["Dato for første undervisningsdag DD-MM-ÅÅ:",{"$f":"+'Delkursusleder 1'!B23","v":"00:00:00"},{"$f":"'Delkursusleder 1'!C23","v":""}]
[]
["Kursussted, by:",{"$f":"'Delkursusleder 1'!B12:D12","v":0}]
[]
["Dit honorar udbetales til NemKonto. Lønsedlen sendes til din e-boks. "]
["Ved CVR./SE-nr. SKAL der sendes e-faktura til EAN nr: 5798000362147 via sundhedsstyrelsens hjemmeside."]
[]
["Evt. bemærkninger"]

{"sheet":"Honorarlønnet 7","index":11,"n_rows":30,"n_cols":5,"rows_kept":30,"cut":false,"hidden":false,"merged":[[1,2,1,4],[24,1,24,3],[30,0,33,4],[0,1,0,4],[6,2,6,3],[20,1,20,3],[18,1,18,3],[8,1,8,3],[4,1,4,3]]}
[null,"Honorar"]
[null,null,"NB. Skemaet SKAL udfyldes elektronisk"]
["Udfyldes af underviser"]
[{"$f":"IFERROR(IF(LEN(B7)>10,\"CPR-nummer ikke gyldigt - du har mere end 10 tegn med. Husk ikke at inkludere bindestreg\",IF(LEN(B7)=0,\"\",IF(LEN(B7)<10,\"CPR-nummer ikke gyldigt - Du har indtastet for få tegn\",IF(0=MOD(LEFT(B7)*4+MID(B7,2,1)*3+MID(B7,3,1)*2+MID(B7,4,1)*7+MID(B7,5,1)*6+MID(B7,6,1)*5+(MID(B7,7,1)*4+MID(B7,8,1)*3)+MID(B7,9,1)*2+MID(B7,10,1),11),\"\",\"CPR-nummer ikke gyldigt - Tjek cifrene i dit CPR igennem igen\")))),\"CPR-nummer ikke gyldigt - Et af cifrene i dit CPR er ikke et tal\")","v":""}]
["Navn:"]
[]
["Cpr.nr.:",null,"Jeg sender en faktura"]
["Ingen bindestreg. CPR-nummer fremgår af formellinje under tastning, hvorefter det skjules."]
["E-mail"]
[]
["Udfyldes af underviser","Obligatorisk",null,"Udfyldes automatisk","Aktuel sats"]
["Antal forelæsningstimer",null,"Udgift til forelæsningstimer ",{"$f":"B12*'Adm.ark satser'!C2","v":0},{"$f":"'Adm.ark satser'!G1","v":"2024-04-01"}]
["Antal diskussionstimer",null,"Udgift til diskussionstimer ",{"$f":"B13*'Adm.ark satser'!C3","v":0}]
["Antal medhjælper timer",null,"Udgift til medhjælpertimer",{"$f":"B14*'Adm.ark satser'!C4","v":0}]
[null,null,"Beløb i alt",{"$f":"SUM(D12+D13+D14)","v":0}]
[]
["Udfyldes automatisk, trækkes fra delkursuslederark"]
[]
["Speciale:",{"$f":"'Delkursusleder 1'!B6","v":"[vælg fra liste]"}]
[]
["Kursusnavn:",{"$f":"'Delkursusleder 1'!B8","v":"[vælg fra liste]"}]
[]
["Dato for første undervisningsdag DD-MM-ÅÅ:",{"$f":"+'Delkursusleder 1'!B23","v":"00:00:00"},{"$f":"'Delkursusleder 1'!C23","v":""}]
[]
["Kursussted, by:",{"$f":"'Delkursusleder 1'!B12:D12","v":0}]
[]
["Dit honorar udbetales til NemKonto. Lønsedlen sendes til din e-boks. "]
["Ved CVR./SE-nr. SKAL der sendes e-faktura til EAN nr: 5798000362147 via sundhedsstyrelsens hjemmeside."]
[]
["Evt. bemærkninger"]

{"sheet":"Honorarlønnet 8","index":12,"n_rows":30,"n_cols":5,"rows_kept":30,"cut":false,"hidden":false,"merged":[[1,2,1,4],[24,1,24,3],[30,0,33,4],[0,1,0,4],[6,2,6,3],[20,1,20,3],[18,1,18,3],[8,1,8,3],[4,1,4,3]]}
[null,"Honorar"]
[null,null,"NB. Skemaet SKAL udfyldes elektronisk"]
["Udfyldes af underviser"]
[{"$f":"IFERROR(IF(LEN(B7)>10,\"CPR-nummer ikke gyldigt - du har mere end 10 tegn med. Husk ikke at inkludere bindestreg\",IF(LEN(B7)=0,\"\",IF(LEN(B7)<10,\"CPR-nummer ikke gyldigt - Du har indtastet for få tegn\",IF(0=MOD(LEFT(B7)*4+MID(B7,2,1)*3+MID(B7,3,1)*2+MID(B7,4,1)*7+MID(B7,5,1)*6+MID(B7,6,1)*5+(MID(B7,7,1)*4+MID(B7,8,1)*3)+MID(B7,9,1)*2+MID(B7,10,1),11),\"\",\"CPR-nummer ikke gyldigt - Tjek cifrene i dit CPR igennem igen\")))),\"CPR-nummer ikke gyldigt - Et af cifrene i dit CPR er ikke et tal\")","v":""}]
["Navn:"]
[]
["Cpr.nr.:",null,"Jeg sender en faktura"]
["Ingen bindestreg. CPR-nummer fremgår af formellinje under tastning, hvorefter det skjules."]
["E-mail"]
[]
["Udfyldes af underviser","Obligatorisk",null,"Udfyldes automatisk","Aktuel sats"]
["Antal forelæsningstimer",null,"Udgift til forelæsningstimer ",{"$f":"B12*'Adm.ark satser'!C2","v":0},{"$f":"'Adm.ark satser'!G1","v":"2024-04-01"}]
["Antal diskussionstimer",null,"Udgift til diskussionstimer ",{"$f":"B13*'Adm.ark satser'!C3","v":0}]
["Antal medhjælper timer",null,"Udgift til medhjælpertimer",{"$f":"B14*'Adm.ark satser'!C4","v":0}]
[null,null,"Beløb i alt",{"$f":"SUM(D12+D13+D14)","v":0}]
[]
["Udfyldes automatisk, trækkes fra delkursuslederark"]
[]
["Speciale:",{"$f":"'Delkursusleder 1'!B6","v":"[vælg fra liste]"}]
[]
["Kursusnavn:",{"$f":"'Delkursusleder 1'!B8","v":"[vælg fra liste]"}]
[]
["Dato for første undervisningsdag DD-MM-ÅÅ:",{"$f":"+'Delkursusleder 1'!B23","v":"00:00:00"},{"$f":"'Delkursusleder 1'!C23","v":""}]
[]
["Kursussted, by:",{"$f":"'Delkursusleder 1'!B12:D12","v":0}]
[]
["Dit honorar udbetales til NemKonto. Lønsedlen sendes til din e-boks. "]
["Ved CVR./SE-nr. SKAL der sendes e-faktura til EAN nr: 5798000362147 via sundhedsstyrelsens hjemmeside."]
[]
["Evt. bemærkninger"]

{"sheet":"Honorarlønnet 9","index":13,"n_rows":30,"n_cols":5,"rows_kept":30,"cut":false,"hidden":false,"merged":[[1,2,1,4],[24,1,24,3],[30,0,33,4],[0,1,0,4],[6,2,6,3],[20,1,20,3],[18,1,18,3],[8,1,8,3],[4,1,4,3]]}
[null,"Honorar"]
[null,null,"NB. Skemaet SKAL udfyldes elektronisk"]
["Udfyldes af underviser"]
[{"$f":"IFERROR(IF(LEN(B7)>10,\"CPR-nummer ikke gyldigt - du har mere end 10 tegn med. Husk ikke at inkludere bindestreg\",IF(LEN(B7)=0,\"\",IF(LEN(B7)<10,\"CPR-nummer ikke gyldigt - Du har indtastet for få tegn\",IF(0=MOD(LEFT(B7)*4+MID(B7,2,1)*3+MID(B7,3,1)*2+MID(B7,4,1)*7+MID(B7,5,1)*6+MID(B7,6,1)*5+(MID(B7,7,1)*4+MID(B7,8,1)*3)+MID(B7,9,1)*2+MID(B7,10,1),11),\"\",\"CPR-nummer ikke gyldigt - Tjek cifrene i dit CPR igennem igen\")))),\"CPR-nummer ikke gyldigt - Et af cifrene i dit CPR er ikke et tal\")","v":""}]
["Navn:"]
[]
["Cpr.nr.:",null,"Jeg sender en faktura"]
["Ingen bindestreg. CPR-nummer fremgår af formellinje under tastning, hvorefter det skjules."]
["E-mail"]
[]
["Udfyldes af underviser","Obligatorisk",null,"Udfyldes automatisk","Aktuel sats"]
["Antal forelæsningstimer",null,"Udgift til forelæsningstimer ",{"$f":"B12*'Adm.ark satser'!C2","v":0},{"$f":"'Adm.ark satser'!G1","v":"2024-04-01"}]
["Antal diskussionstimer",null,"Udgift til diskussionstimer ",{"$f":"B13*'Adm.ark satser'!C3","v":0}]
["Antal medhjælper timer",null,"Udgift til medhjælpertimer",{"$f":"B14*'Adm.ark satser'!C4","v":0}]
[null,null,"Beløb i alt",{"$f":"SUM(D12+D13+D14)","v":0}]
[]
["Udfyldes automatisk, trækkes fra delkursuslederark"]
[]
["Speciale:",{"$f":"'Delkursusleder 1'!B6","v":"[vælg fra liste]"}]
[]
["Kursusnavn:",{"$f":"'Delkursusleder 1'!B8","v":"[vælg fra liste]"}]
[]
["Dato for første undervisningsdag DD-MM-ÅÅ:",{"$f":"+'Delkursusleder 1'!B23","v":"00:00:00"},{"$f":"'Delkursusleder 1'!C23","v":""}]
[]
["Kursussted, by:",{"$f":"'Delkursusleder 1'!B12:D12","v":0}]
[]
["Dit honorar udbetales til NemKonto. Lønsedlen sendes til din e-boks. "]
["Ved CVR./SE-nr. SKAL der sendes e-faktura til EAN nr: 5798000362147 via sundhedsstyrelsens hjemmeside."]
[]
["Evt. bemærkninger"]

{"sheet":"Honorarlønnet 10","index":14,"n_rows":30,"n_cols":5,"rows_kept":30,"cut":false,"hidden":false,"merged":[[1,2,1,4],[24,1,24,3],[30,0,33,4],[0,1,0,4],[6,2,6,3],[20,1,20,3],[18,1,18,3],[8,1,8,3],[4,1,4,3]]}
[null,"Honorar"]
[null,null,"NB. Skemaet SKAL udfyldes elektronisk"]
["Udfyldes af underviser"]
[{"$f":"IFERROR(IF(LEN(B7)>10,\"CPR-nummer ikke gyldigt - du har mere end 10 tegn med. Husk ikke at inkludere bindestreg\",IF(LEN(B7)=0,\"\",IF(LEN(B7)<10,\"CPR-nummer ikke gyldigt - Du har indtastet for få tegn\",IF(0=MOD(LEFT(B7)*4+MID(B7,2,1)*3+MID(B7,3,1)*2+MID(B7,4,1)*7+MID(B7,5,1)*6+MID(B7,6,1)*5+(MID(B7,7,1)*4+MID(B7,8,1)*3)+MID(B7,9,1)*2+MID(B7,10,1),11),\"\",\"CPR-nummer ikke gyldigt - Tjek cifrene i dit CPR igennem igen\")))),\"CPR-nummer ikke gyldigt - Et af cifrene i dit CPR er ikke et tal\")","v":""}]
["Navn:"]
[]
["Cpr.nr.:",null,"Jeg sender en faktura"]
["Ingen bindestreg. CPR-nummer fremgår af formellinje under tastning, hvorefter det skjules."]
["E-mail"]
[]
["Udfyldes af underviser","Obligatorisk",null,"Udfyldes automatisk","Aktuel sats"]
["Antal forelæsningstimer",null,"Udgift til forelæsningstimer ",{"$f":"B12*'Adm.ark satser'!C2","v":0},{"$f":"'Adm.ark satser'!G1","v":"2024-04-01"}]
["Antal diskussionstimer",null,"Udgift til diskussionstimer ",{"$f":"B13*'Adm.ark satser'!C3","v":0}]
["Antal medhjælper timer",null,"Udgift til medhjælpertimer",{"$f":"B14*'Adm.ark satser'!C4","v":0}]
[null,null,"Beløb i alt",{"$f":"SUM(D12+D13+D14)","v":0}]
[]
["Udfyldes automatisk, trækkes fra delkursuslederark"]
[]
["Speciale:",{"$f":"'Delkursusleder 1'!B6","v":"[vælg fra liste]"}]
[]
["Kursusnavn:",{"$f":"'Delkursusleder 1'!B8","v":"[vælg fra liste]"}]
[]
["Dato for første undervisningsdag DD-MM-ÅÅ:",{"$f":"+'Delkursusleder 1'!B23","v":"00:00:00"},{"$f":"'Delkursusleder 1'!C23","v":""}]
[]
["Kursussted, by:",{"$f":"'Delkursusleder 1'!B12:D12","v":0}]
[]
["Dit honorar udbetales til NemKonto. Lønsedlen sendes til din e-boks. "]
["Ved CVR./SE-nr. SKAL der sendes e-faktura til EAN nr: 5798000362147 via sundhedsstyrelsens hjemmeside."]
[]
["Evt. bemærkninger"]

{"sheet":"Honorarlønnet 11","index":15,"n_rows":30,"n_cols":5,"rows_kept":30,"cut":false,"hidden":false,"merged":[[1,2,1,4],[24,1,24,3],[30,0,33,4],[0,1,0,4],[6,2,6,3],[20,1,20,3],[18,1,18,3],[8,1,8,3],[4,1,4,3]]}
[null,"Honorar"]
[null,null,"NB. Skemaet SKAL udfyldes elektronisk"]
["Udfyldes af underviser"]
[{"$f":"IFERROR(IF(LEN(B7)>10,\"CPR-nummer ikke gyldigt - du har mere end 10 tegn med. Husk ikke at inkludere bindestreg\",IF(LEN(B7)=0,\"\",IF(LEN(B7)<10,\"CPR-nummer ikke gyldigt - Du har indtastet for få tegn\",IF(0=MOD(LEFT(B7)*4+MID(B7,2,1)*3+MID(B7,3,1)*2+MID(B7,4,1)*7+MID(B7,5,1)*6+MID(B7,6,1)*5+(MID(B7,7,1)*4+MID(B7,8,1)*3)+MID(B7,9,1)*2+MID(B7,10,1),11),\"\",\"CPR-nummer ikke gyldigt - Tjek cifrene i dit CPR igennem igen\")))),\"CPR-nummer ikke gyldigt - Et af cifrene i dit CPR er ikke et tal\")","v":""}]
["Navn:"]
[]
["Cpr.nr.:",null,"Jeg sender en faktura"]
["Ingen bindestreg. CPR-nummer fremgår af formellinje under tastning, hvorefter det skjules."]
["E-mail"]
[]
["Udfyldes af underviser","Obligatorisk",null,"Udfyldes automatisk","Aktuel sats"]
["Antal forelæsningstimer",null,"Udgift til forelæsningstimer ",{"$f":"B12*'Adm.ark satser'!C2","v":0},{"$f":"'Adm.ark satser'!G1","v":"2024-04-01"}]
["Antal diskussionstimer",null,"Udgift til diskussionstimer ",{"$f":"B13*'Adm.ark satser'!C3","v":0}]
["Antal medhjælper timer",null,"Udgift til medhjælpertimer",{"$f":"B14*'Adm.ark satser'!C4","v":0}]
[null,null,"Beløb i alt",{"$f":"SUM(D12+D13+D14)","v":0}]
[]
["Udfyldes automatisk, trækkes fra delkursuslederark"]
[]
["Speciale:",{"$f":"'Delkursusleder 1'!B6","v":"[vælg fra liste]"}]
[]
["Kursusnavn:",{"$f":"'Delkursusleder 1'!B8","v":"[vælg fra liste]"}]
[]
["Dato for første undervisningsdag DD-MM-ÅÅ:",{"$f":"+'Delkursusleder 1'!B23","v":"00:00:00"},{"$f":"'Delkursusleder 1'!C23","v":""}]
[]
["Kursussted, by:",{"$f":"'Delkursusleder 1'!B12:D12","v":0}]
[]
["Dit honorar udbetales til NemKonto. Lønsedlen sendes til din e-boks. "]
["Ved CVR./SE-nr. SKAL der sendes e-faktura til EAN nr: 5798000362147 via sundhedsstyrelsens hjemmeside."]
[]
["Evt. bemærkninger"]

{"sheet":"Honorarlønnet 12","index":16,"n_rows":30,"n_cols":5,"rows_kept":30,"cut":false,"hidden":false,"merged":[[1,2,1,4],[24,1,24,3],[30,0,33,4],[0,1,0,4],[6,2,6,3],[20,1,20,3],[18,1,18,3],[8,1,8,3],[4,1,4,3]]}
[null,"Honorar"]
[null,null,"NB. Skemaet SKAL udfyldes elektronisk"]
["Udfyldes af underviser"]
[{"$f":"IFERROR(IF(LEN(B7)>10,\"CPR-nummer ikke gyldigt - du har mere end 10 tegn med. Husk ikke at inkludere bindestreg\",IF(LEN(B7)=0,\"\",IF(LEN(B7)<10,\"CPR-nummer ikke gyldigt - Du har indtastet for få tegn\",IF(0=MOD(LEFT(B7)*4+MID(B7,2,1)*3+MID(B7,3,1)*2+MID(B7,4,1)*7+MID(B7,5,1)*6+MID(B7,6,1)*5+(MID(B7,7,1)*4+MID(B7,8,1)*3)+MID(B7,9,1)*2+MID(B7,10,1),11),\"\",\"CPR-nummer ikke gyldigt - Tjek cifrene i dit CPR igennem igen\")))),\"CPR-nummer ikke gyldigt - Et af cifrene i dit CPR er ikke et tal\")","v":""}]
["Navn:"]
[]
["Cpr.nr.:",null,"Jeg sender en faktura"]
["Ingen bindestreg. CPR-nummer fremgår af formellinje under tastning, hvorefter det skjules."]
["E-mail"]
[]
["Udfyldes af underviser","Obligatorisk",null,"Udfyldes automatisk","Aktuel sats"]
["Antal forelæsningstimer",null,"Udgift til forelæsningstimer ",{"$f":"B12*'Adm.ark satser'!C2","v":0},{"$f":"'Adm.ark satser'!G1","v":"2024-04-01"}]
["Antal diskussionstimer",null,"Udgift til diskussionstimer ",{"$f":"B13*'Adm.ark satser'!C3","v":0}]
["Antal medhjælper timer",null,"Udgift til medhjælpertimer",{"$f":"B14*'Adm.ark satser'!C4","v":0}]
[null,null,"Beløb i alt",{"$f":"SUM(D12+D13+D14)","v":0}]
[]
["Udfyldes automatisk, trækkes fra delkursuslederark"]
[]
["Speciale:",{"$f":"'Delkursusleder 1'!B6","v":"[vælg fra liste]"}]
[]
["Kursusnavn:",{"$f":"'Delkursusleder 1'!B8","v":"[vælg fra liste]"}]
[]
["Dato for første undervisningsdag DD-MM-ÅÅ:",{"$f":"+'Delkursusleder 1'!B23","v":"00:00:00"},{"$f":"'Delkursusleder 1'!C23","v":""}]
[]
["Kursussted, by:",{"$f":"'Delkursusleder 1'!B12:D12","v":0}]
[]
["Dit honorar udbetales til NemKonto. Lønsedlen sendes til din e-boks. "]
["Ved CVR./SE-nr. SKAL der sendes e-faktura til EAN nr: 5798000362147 via sundhedsstyrelsens hjemmeside."]
[]
["Evt. bemærkninger"]

{"sheet":"Honorarlønnet 13","index":17,"n_rows":30,"n_cols":5,"rows_kept":30,"cut":false,"hidden":false,"merged":[[0,1,0,4],[1,2,1,4],[24,1,24,3],[30,0,33,4],[6,2,6,3],[20,1,20,3],[18,1,18,3],[8,1,8,3],[4,1,4,3]]}
[null,"Honorar"]
[null,null,"NB. Skemaet SKAL udfyldes elektronisk"]
["Udfyldes af underviser"]
[{"$f":"IFERROR(IF(LEN(B7)>10,\"CPR-nummer ikke gyldigt - du har mere end 10 tegn med. Husk ikke at inkludere bindestreg\",IF(LEN(B7)=0,\"\",IF(LEN(B7)<10,\"CPR-nummer ikke gyldigt - Du har indtastet for få tegn\",IF(0=MOD(LEFT(B7)*4+MID(B7,2,1)*3+MID(B7,3,1)*2+MID(B7,4,1)*7+MID(B7,5,1)*6+MID(B7,6,1)*5+(MID(B7,7,1)*4+MID(B7,8,1)*3)+MID(B7,9,1)*2+MID(B7,10,1),11),\"\",\"CPR-nummer ikke gyldigt - Tjek cifrene i dit CPR igennem igen\")))),\"CPR-nummer ikke gyldigt - Et af cifrene i dit CPR er ikke et tal\")","v":""}]
["Navn:"]
[]
["Cpr.nr.:",null,"Jeg sender en faktura"]
["Ingen bindestreg. CPR-nummer fremgår af formellinje under tastning, hvorefter det skjules."]
["E-mail"]
[]
["Udfyldes af underviser","Obligatorisk",null,"Udfyldes automatisk","Aktuel sats"]
["Antal forelæsningstimer",null,"Udgift til forelæsningstimer ",{"$f":"B12*'Adm.ark satser'!C2","v":0},{"$f":"'Adm.ark satser'!G1","v":"2024-04-01"}]
["Antal diskussionstimer",null,"Udgift til diskussionstimer ",{"$f":"B13*'Adm.ark satser'!C3","v":0}]
["Antal medhjælper timer",null,"Udgift til medhjælpertimer",{"$f":"B14*'Adm.ark satser'!C4","v":0}]
[null,null,"Beløb i alt",{"$f":"SUM(D12+D13+D14)","v":0}]
[]
["Udfyldes automatisk, trækkes fra delkursuslederark"]
[]
["Speciale:",{"$f":"'Delkursusleder 1'!B6","v":"[vælg fra liste]"}]
[]
["Kursusnavn:",{"$f":"'Delkursusleder 1'!B8","v":"[vælg fra liste]"}]
[]
["Dato for første undervisningsdag DD-MM-ÅÅ:",{"$f":"+'Delkursusleder 1'!B23","v":"00:00:00"},{"$f":"'Delkursusleder 1'!C23","v":""}]
[]
["Kursussted, by:",{"$f":"'Delkursusleder 1'!B12:D12","v":0}]
[]
["Dit honorar udbetales til NemKonto. Lønsedlen sendes til din e-boks. "]
["Ved CVR./SE-nr. SKAL der sendes e-faktura til EAN nr: 5798000362147 via sundhedsstyrelsens hjemmeside."]
[]
["Evt. bemærkninger"]

{"sheet":"Honorarlønnet 14","index":18,"n_rows":30,"n_cols":5,"rows_kept":30,"cut":false,"hidden":false,"merged":[[0,1,0,4],[1,2,1,4],[24,1,24,3],[30,0,33,4],[6,2,6,3],[4,1,4,3],[20,1,20,3],[18,1,18,3],[8,1,8,3]]}
[null,"Honorar"]
[null,null,"NB. Skemaet SKAL udfyldes elektronisk"]
["Udfyldes af underviser"]
[{"$f":"IFERROR(IF(LEN(B7)>10,\"CPR-nummer ikke gyldigt - du har mere end 10 tegn med. Husk ikke at inkludere bindestreg\",IF(LEN(B7)=0,\"\",IF(LEN(B7)<10,\"CPR-nummer ikke gyldigt - Du har indtastet for få tegn\",IF(0=MOD(LEFT(B7)*4+MID(B7,2,1)*3+MID(B7,3,1)*2+MID(B7,4,1)*7+MID(B7,5,1)*6+MID(B7,6,1)*5+(MID(B7,7,1)*4+MID(B7,8,1)*3)+MID(B7,9,1)*2+MID(B7,10,1),11),\"\",\"CPR-nummer ikke gyldigt - Tjek cifrene i dit CPR igennem igen\")))),\"CPR-nummer ikke gyldigt - Et af cifrene i dit CPR er ikke et tal\")","v":""}]
["Navn:"]
[]
["Cpr.nr.:",null,"Jeg sender en faktura"]
["Ingen bindestreg. CPR-nummer fremgår af formellinje under tastning, hvorefter det skjules."]
["E-mail"]
[]
["Udfyldes af underviser","Obligatorisk",null,"Udfyldes automatisk","Aktuel sats"]
["Antal forelæsningstimer",null,"Udgift til forelæsningstimer ",{"$f":"B12*'Adm.ark satser'!C2","v":0},{"$f":"'Adm.ark satser'!G1","v":"2024-04-01"}]
["Antal diskussionstimer",null,"Udgift til diskussionstimer ",{"$f":"B13*'Adm.ark satser'!C3","v":0}]
["Antal medhjælper timer",null,"Udgift til medhjælpertimer",{"$f":"B14*'Adm.ark satser'!C4","v":0}]
[null,null,"Beløb i alt",{"$f":"SUM(D12+D13+D14)","v":0}]
[]
["Udfyldes automatisk, trækkes fra delkursuslederark"]
[]
["Speciale:",{"$f":"'Delkursusleder 1'!B6","v":"[vælg fra liste]"}]
[]
["Kursusnavn:",{"$f":"'Delkursusleder 1'!B8","v":"[vælg fra liste]"}]
[]
["Dato for første undervisningsdag DD-MM-ÅÅ:",{"$f":"+'Delkursusleder 1'!B23","v":"00:00:00"},{"$f":"'Delkursusleder 1'!C23","v":""}]
[]
["Kursussted, by:",{"$f":"'Delkursusleder 1'!B12:D12","v":0}]
[]
["Dit honorar udbetales til NemKonto. Lønsedlen sendes til din e-boks. "]
["Ved CVR./SE-nr. SKAL der sendes e-faktura til EAN nr: 5798000362147 via sundhedsstyrelsens hjemmeside."]
[]
["Evt. bemærkninger"]

{"sheet":"Honorarlønnet 15","index":19,"n_rows":30,"n_cols":5,"rows_kept":30,"cut":false,"hidden":false,"merged":[[0,1,0,4],[1,2,1,4],[24,1,24,3],[30,0,33,4],[6,2,6,3],[20,1,20,3],[18,1,18,3],[8,1,8,3],[4,1,4,3]]}
[null,"Honorar"]
[null,null,"NB. Skemaet SKAL udfyldes elektronisk"]
["Udfyldes af underviser"]
[{"$f":"IFERROR(IF(LEN(B7)>10,\"CPR-nummer ikke gyldigt - du har mere end 10 tegn med. Husk ikke at inkludere bindestreg\",IF(LEN(B7)=0,\"\",IF(LEN(B7)<10,\"CPR-nummer ikke gyldigt - Du har indtastet for få tegn\",IF(0=MOD(LEFT(B7)*4+MID(B7,2,1)*3+MID(B7,3,1)*2+MID(B7,4,1)*7+MID(B7,5,1)*6+MID(B7,6,1)*5+(MID(B7,7,1)*4+MID(B7,8,1)*3)+MID(B7,9,1)*2+MID(B7,10,1),11),\"\",\"CPR-nummer ikke gyldigt - Tjek cifrene i dit CPR igennem igen\")))),\"CPR-nummer ikke gyldigt - Et af cifrene i dit CPR er ikke et tal\")","v":""}]
["Navn:"]
[]
["Cpr.nr.:",null,"Jeg sender en faktura"]
["Ingen bindestreg. CPR-nummer fremgår af formellinje under tastning, hvorefter det skjules."]
["E-mail"]
[]
["Udfyldes af underviser","Obligatorisk",null,"Udfyldes automatisk","Aktuel sats"]
["Antal forelæsningstimer",null,"Udgift til forelæsningstimer ",{"$f":"B12*'Adm.ark satser'!C2","v":0},{"$f":"'Adm.ark satser'!G1","v":"2024-04-01"}]
["Antal diskussionstimer",null,"Udgift til diskussionstimer ",{"$f":"B13*'Adm.ark satser'!C3","v":0}]
["Antal medhjælper timer",null,"Udgift til medhjælpertimer",{"$f":"B14*'Adm.ark satser'!C4","v":0}]
[null,null,"Beløb i alt",{"$f":"SUM(D12+D13+D14)","v":0}]
[]
["Udfyldes automatisk, trækkes fra delkursuslederark"]
[]
["Speciale:",{"$f":"'Delkursusleder 1'!B6","v":"[vælg fra liste]"}]
[]
["Kursusnavn:",{"$f":"'Delkursusleder 1'!B8","v":"[vælg fra liste]"}]
[]
["Dato for første undervisningsdag DD-MM-ÅÅ:",{"$f":"+'Delkursusleder 1'!B23","v":"00:00:00"},{"$f":"'Delkursusleder 1'!C23","v":""}]
[]
["Kursussted, by:",{"$f":"'Delkursusleder 1'!B12:D12","v":0}]
[]
["Dit honorar udbetales til NemKonto. Lønsedlen sendes til din e-boks. "]
["Ved CVR./SE-nr. SKAL der sendes e-faktura til EAN nr: 5798000362147 via sundhedsstyrelsens hjemmeside."]
[]
["Evt. bemærkninger"]

{"sheet":"Sekretær","index":20,"n_rows":25,"n_cols":6,"rows_kept":25,"cut":false,"hidden":false,"merged":[[6,5,6,6],[0,1,0,3],[1,2,1,3],[25,0,28,3],[19,1,19,2],[6,1,6,3],[4,1,4,3],[8,1,8,3],[17,1,17,3],[15,1,15,3]]}
[null,"Honorar Sekretær"]
[null,null,"NB. Skemaet SKAL udfyldes elektronisk"]
["Udfyldes af sekretær"]
[{"$f":"IFERROR(IF(LEN(B7)>10,\"CPR-nummer ikke gyldigt - du har mere end 10 tegn med. Husk ikke at inkludere bindestreg\",IF(LEN(B7)=0,\"\",IF(LEN(B7)<10,\"CPR-nummer ikke gyldigt - Du har indtastet for få tegn\",IF(0=MOD(LEFT(B7)*4+MID(B7,2,1)*3+MID(B7,3,1)*2+MID(B7,4,1)*7+MID(B7,5,1)*6+MID(B7,6,1)*5+(MID(B7,7,1)*4+MID(B7,8,1)*3)+MID(B7,9,1)*2+MID(B7,10,1),11),\"\",\"CPR-nummer ikke gyldigt - Tjek cifrene i dit CPR igennem igen\")))),\"CPR-nummer ikke gyldigt - Et af cifrene i dit CPR er ikke et tal\")","v":""}]
["Navn:"]
[]
["Cpr.nr.: ",null,null,null,null,"Jeg sender en faktura"]
[null,"Ingen bindestreg. CPR-nummer er skjult."]
["E-mail"]
[]
["Honorar sekretær\n (tast her)",null,"Max beløb til deling mellem sekretær og hovedkursusleder",{"$f":"'Adm.ark satser'!K2","v":9000}]
[null,null,"Total beløb for sekretær og hovedkursusleder",{"$f":"A12+Hovedkursusleder!A12","v":0}]
[]
["Udfyldes automatisk, trækkes fra delkursuslederark"]
[]
["Speciale:",{"$f":"'Delkursusleder 1'!B6","v":"[vælg fra liste]"}]
[]
["Kursusnavn:",{"$f":"'Delkursusleder 1'!B8","v":"[vælg fra liste]"}]
[]
["Dato for første undervisningsdag DD-MM-ÅÅ:",{"$f":"+'Delkursusleder 1'!B23","v":"00:00:00"},null,{"$f":"'Delkursusleder 1'!C23","v":""}]
[]
["Dit honorar udbetales til NemKonto. Lønsedlen sendes til din e-boks. "]
["Ved CVR./SE-nr. SKAL der sendes e-faktura til EAN nr: 5798000362147 via sundhedsstyrelsens hjemmeside."]
[]
["Evt. bemærkninger"]

{"sheet":"Samlingsark","index":21,"n_rows":24,"n_cols":14,"rows_kept":24,"cut":false,"hidden":false,"merged":[[0,0,0,13],[1,0,2,0],[1,1,2,1],[1,2,2,2],[1,3,2,3],[1,4,2,4],[1,5,2,5],[1,6,2,6],[1,7,2,7],[1,13,2,13]]}
["Udfyldes automatisk"]
["Rolle","Navn","CPR","Kursusnummer","Antal sekretær timer","Antal forelæsningstimer","Antal diskussionstimer","Antal medhjælpertimer","Delkursuslederhonrar","Administrationshonorar","Forelæsningstimer ","Diskususionstimer ","Medhjælpertimer","Beløb i alt"]
[null,null,null,null,null,null,null,null,"Udgiftstype 4","Udgiftstype 5","Udgiftstype 1","Udgiftstype 2","Udgiftstype 3"]
["Delkursusleder 1",{"$f":"'Delkursusleder 1'!B14:D14","v":0},{"$f":"'Delkursusleder 1'!B16","v":0},{"$f":"'Delkursusleder 1'!B10","v":"Kursusnummer findes automatisk efter du har indtastet speciale/kursusnavn"},"-",{"$f":"'Delkursusleder 1'!B29","v":0},{"$f":"'Delkursusleder 1'!B30","v":0},{"$f":"'Delkursusleder 1'!B31","v":0},{"$f":"'Delkursusleder 1'!A39","v":0},"-",{"$f":"'Delkursusleder 1'!D29","v":0},{"$f":"'Delkursusleder 1'!D30","v":0},{"$f":"'Delkursusleder 1'!D31","v":0},{"$f":"I4+K4+L4+M4","v":0}]
["Evt. delkursusleder 2",{"$f":"'(Evt. delkursusleder 2)'!B6:D6","v":0},{"$f":"'(Evt. delkursusleder 2)'!B8","v":0},{"$f":"'Delkursusleder 1'!$B$10","v":"Kursusnummer findes automatisk efter du har indtastet speciale/kursusnavn"},"-",{"$f":"'(Evt. delkursusleder 2)'!B34","v":0},{"$f":"'(Evt. delkursusleder 2)'!B35","v":0},{"$f":"'(Evt. delkursusleder 2)'!B36","v":0},{"$f":"+'(Evt. delkursusleder 2)'!A22","v":0},"-",{"$f":"'(Evt. delkursusleder 2)'!D34","v":0},{"$f":"'(Evt. delkursusleder 2)'!D35","v":0},{"$f":"'(Evt. delkursusleder 2)'!D36","v":0},{"$f":"I5+K5+L5+M5","v":0}]
["Hovedkursusleder",{"$f":"+Hovedkursusleder!B5:D5","v":0},{"$f":"+Hovedkursusleder!B7","v":0},{"$f":"'Delkursusleder 1'!$B$10","v":"Kursusnummer findes automatisk efter du har indtastet speciale/kursusnavn"},"-","-","-","-","-",{"$f":"+Hovedkursusleder!A12","v":0},"-","-","-",{"$f":"J6","v":0}]
["Sekretær",{"$f":"Sekretær!B5","v":0},{"$f":"+Sekretær!B7","v":0},{"$f":"'Delkursusleder 1'!$B$10","v":"Kursusnummer findes automatisk efter du har indtastet speciale/kursusnavn"},"-","-","-","-","-",{"$f":"+Sekretær!A12","v":0},"-","-","-",{"$f":"J7","v":0}]
["Honorarlønnet 1",{"$f":"'Honorarlønnet 1'!B5","v":0},{"$f":"+'Honorarlønnet 1'!$B$7","v":0},{"$f":"'Delkursusleder 1'!$B$10","v":"Kursusnummer findes automatisk efter du har indtastet speciale/kursusnavn"},"-",{"$f":"'Honorarlønnet 1'!B12","v":0},{"$f":"'Honorarlønnet 1'!B13","v":0},{"$f":"'Honorarlønnet 1'!B14","v":0},"-","-",{"$f":"'Honorarlønnet 1'!$D$12","v":0},{"$f":"'Honorarlønnet 1'!$D$13","v":0},{"$f":"'Honorarlønnet 1'!$D$14","v":0},{"$f":"K8+L8+M8","v":0}]
["Honorarlønnet 2",{"$f":"'Honorarlønnet 2'!B5","v":0},{"$f":"+'Honorarlønnet 2'!$B$7","v":0},{"$f":"'Delkursusleder 1'!$B$10","v":"Kursusnummer findes automatisk efter du har indtastet speciale/kursusnavn"},"-",{"$f":"+'Honorarlønnet 2'!$B12","v":0},{"$f":"+'Honorarlønnet 2'!$B13","v":0},{"$f":"+'Honorarlønnet 2'!$B14","v":0},"-","-",{"$f":"'Honorarlønnet 2'!$D$12","v":0},{"$f":"'Honorarlønnet 2'!$D$13","v":0},{"$f":"'Honorarlønnet 2'!$D$14","v":0},{"$f":"K9+L9+M9","v":0}]
["Honorarlønnet 3",{"$f":"'Honorarlønnet 3'!B5","v":0},{"$f":"+'Honorarlønnet 3'!$B$7","v":0},{"$f":"'Delkursusleder 1'!$B$10","v":"Kursusnummer findes automatisk efter du har indtastet speciale/kursusnavn"},"-",{"$f":"+'Honorarlønnet 3'!B12","v":0},{"$f":"+'Honorarlønnet 3'!$B$13","v":0},{"$f":"+'Honorarlønnet 3'!$B$14","v":0},"-","-",{"$f":"'Honorarlønnet 3'!$D$12","v":0},{"$f":"'Honorarlønnet 3'!$D$13","v":0},{"$f":"'Honorarlønnet 3'!$D$14","v":0},0]
["Honorarlønnet 4",{"$f":"'Honorarlønnet 4'!B5","v":0},{"$f":"+'Honorarlønnet 4'!$B$7","v":0},{"$f":"'Delkursusleder 1'!$B$10","v":"Kursusnummer findes automatisk efter du har indtastet speciale/kursusnavn"},"-",{"$f":"+'Honorarlønnet 4'!$B$12","v":0},{"$f":"+'Honorarlønnet 4'!$B$13","v":0},{"$f":"+'Honorarlønnet 4'!$B$14","v":0},"-","-",{"$f":"'Honorarlønnet 4'!$D$12","v":0},{"$f":"'Honorarlønnet 4'!$D$13","v":0},{"$f":"'Honorarlønnet 4'!$D$14","v":0},0]
["Honorarlønnet 5",{"$f":"'Honorarlønnet 5'!B5","v":0},{"$f":"+'Honorarlønnet 5'!$B$7","v":0},{"$f":"'Delkursusleder 1'!$B$10","v":"Kursusnummer findes automatisk efter du har indtastet speciale/kursusnavn"},"-",{"$f":"+'Honorarlønnet 5'!$B$12","v":0},{"$f":"+'Honorarlønnet 5'!$B$13","v":0},{"$f":"+'Honorarlønnet 5'!$B$14","v":0},"-","-",{"$f":"'Honorarlønnet 5'!$D$12","v":0},{"$f":"'Honorarlønnet 5'!$D$13","v":0},{"$f":"'Honorarlønnet 5'!$D$14","v":0},0]
["Honorarlønnet 6",{"$f":"'Honorarlønnet 6'!B5","v":0},{"$f":"+'Honorarlønnet 6'!$B$7","v":0},{"$f":"'Delkursusleder 1'!$B$10","v":"Kursusnummer findes automatisk efter du har indtastet speciale/kursusnavn"},"-",{"$f":"+'Honorarlønnet 6'!$B$12","v":0},{"$f":"+'Honorarlønnet 6'!$B$13","v":0},{"$f":"+'Honorarlønnet 6'!$B$14","v":0},"-","-",{"$f":"'Honorarlønnet 6'!$D$12","v":0},{"$f":"'Honorarlønnet 6'!$D$13","v":0},{"$f":"'Honorarlønnet 6'!$D$14","v":0},0]
["Honorarlønnet 7",{"$f":"'Honorarlønnet 7'!B5","v":0},{"$f":"+'Honorarlønnet 7'!$B$7","v":0},{"$f":"'Delkursusleder 1'!$B$10","v":"Kursusnummer findes automatisk efter du har indtastet speciale/kursusnavn"},"-",{"$f":"+'Honorarlønnet 7'!$B$12","v":0},{"$f":"+'Honorarlønnet 7'!$B$13","v":0},{"$f":"+'Honorarlønnet 7'!$B$14","v":0},"-","-",{"$f":"'Honorarlønnet 7'!$D$12","v":0},{"$f":"'Honorarlønnet 7'!$D$13","v":0},{"$f":"'Honorarlønnet 7'!$D$14","v":0},0]
["Honorarlønnet 8",{"$f":"'Honorarlønnet 8'!B5","v":0},{"$f":"+'Honorarlønnet 8'!$B$7","v":0},{"$f":"'Delkursusleder 1'!$B$10","v":"Kursusnummer findes automatisk efter du har indtastet speciale/kursusnavn"},"-",{"$f":"+'Honorarlønnet 8'!$B$12","v":0},{"$f":"+'Honorarlønnet 8'!$B$13","v":0},{"$f":"+'Honorarlønnet 8'!$B$14","v":0},"-","-",{"$f":"'Honorarlønnet 8'!$D$12","v":0},{"$f":"'Honorarlønnet 8'!$D$13","v":0},{"$f":"'Honorarlønnet 8'!$D$14","v":0},0]
["Honorarlønnet 9",{"$f":"'Honorarlønnet 9'!B5","v":0},{"$f":"+'Honorarlønnet 9'!$B$7","v":0},{"$f":"'Delkursusleder 1'!$B$10","v":"Kursusnummer findes automatisk efter du har indtastet speciale/kursusnavn"},"-",{"$f":"+'Honorarlønnet 9'!$B$12","v":0},{"$f":"+'Honorarlønnet 9'!$B$13","v":0},{"$f":"+'Honorarlønnet 9'!$B$14","v":0},"-","-",{"$f":"'Honorarlønnet 9'!$D$12","v":0},{"$f":"'Honorarlønnet 9'!$D$13","v":0},{"$f":"'Honorarlønnet 9'!$D$14","v":0},0]
["Honorarlønnet 10",{"$f":"'Honorarlønnet 10'!B5","v":0},{"$f":"+'Honorarlønnet 10'!$B$7","v":0},{"$f":"'Delkursusleder 1'!$B$10","v":"Kursusnummer findes automatisk efter du har indtastet speciale/kursusnavn"},"-",{"$f":"+'Honorarlønnet 10'!$B$12","v":0},{"$f":"+'Honorarlønnet 10'!$B$13","v":0},{"$f":"+'Honorarlønnet 10'!$B$14","v":0},"-","-",{"$f":"'Honorarlønnet 10'!$D$12","v":0},{"$f":"'Honorarlønnet 10'!$D$13","v":0},{"$f":"'Honorarlønnet 10'!$D$14","v":0},0]
["Honorarlønnet 11",{"$f":"'Honorarlønnet 11'!B5","v":0},{"$f":"+'Honorarlønnet 11'!$B$7","v":0},{"$f":"'Delkursusleder 1'!$B$10","v":"Kursusnummer findes automatisk efter du har indtastet speciale/kursusnavn"},"-",{"$f":"+'Honorarlønnet 11'!$B$12","v":0},{"$f":"+'Honorarlønnet 11'!$B$13","v":0},{"$f":"+'Honorarlønnet 11'!$B$14","v":0},"-","-",{"$f":"'Honorarlønnet 11'!$D$12","v":0},{"$f":"'Honorarlønnet 11'!$D$13","v":0},{"$f":"'Honorarlønnet 11'!$D$14","v":0},0]
["Honorarlønnet 12",{"$f":"'Honorarlønnet 12'!B5","v":0},{"$f":"+'Honorarlønnet 12'!$B$7","v":0},{"$f":"'Delkursusleder 1'!$B$10","v":"Kursusnummer findes automatisk efter du har indtastet speciale/kursusnavn"},"-",{"$f":"+'Honorarlønnet 12'!$B$12","v":0},{"$f":"+'Honorarlønnet 12'!$B$13","v":0},{"$f":"+'Honorarlønnet 12'!$B$14","v":0},"-","-",{"$f":"'Honorarlønnet 12'!$D$12","v":0},{"$f":"'Honorarlønnet 12'!$D$13","v":0},{"$f":"'Honorarlønnet 12'!$D$14","v":0},0]
["Honorarlønnet 13",{"$f":"'Honorarlønnet 13'!B5","v":0},{"$f":"+'Honorarlønnet 13'!$B$7","v":0},{"$f":"'Delkursusleder 1'!$B$10","v":"Kursusnummer findes automatisk efter du har indtastet speciale/kursusnavn"},"-",{"$f":"+'Honorarlønnet 13'!$B$12","v":0},{"$f":"+'Honorarlønnet 13'!$B$13","v":0},{"$f":"+'Honorarlønnet 13'!$B$14","v":0},"-","-",{"$f":"'Honorarlønnet 13'!$D$12","v":0},{"$f":"'Honorarlønnet 13'!$D$13","v":0},{"$f":"'Honorarlønnet 13'!$D$14","v":0},{"$f":"K20+L20+M20","v":0}]
["Honorarlønnet 14",{"$f":"'Honorarlønnet 14'!B5","v":0},{"$f":"+'Honorarlønnet 14'!$B$7","v":0},{"$f":"'Delkursusleder 1'!$B$10","v":"Kursusnummer findes automatisk efter du har indtastet speciale/kursusnavn"},"-",{"$f":"+'Honorarlønnet 14'!$B$12","v":0},{"$f":"+'Honorarlønnet 14'!$B$13","v":0},{"$f":"+'Honorarlønnet 14'!$B$14","v":0},"-","-",{"$f":"'Honorarlønnet 14'!$D$12","v":0},{"$f":"'Honorarlønnet 14'!$D$13","v":0},{"$f":"'Honorarlønnet 14'!$D$14","v":0},0]
["Honorarlønnet 15",{"$f":"'Honorarlønnet 15'!B5","v":0},{"$f":"+'Honorarlønnet 15'!$B$7","v":0},{"$f":"'Delkursusleder 1'!$B$10","v":"Kursusnummer findes automatisk efter du har indtastet speciale/kursusnavn"},"-",{"$f":"+'Honorarlønnet 15'!$B$12","v":0},{"$f":"+'Honorarlønnet 15'!$B$13","v":0},{"$f":"+'Honorarlønnet 15'!$B$14","v":0},"-","-",{"$f":"'Honorarlønnet 15'!$D$12","v":0},{"$f":"'Honorarlønnet 15'!$D$13","v":0},{"$f":"'Honorarlønnet 15'!$D$14","v":0},0]
["Total timer/beløb",null,null,null,"-",{"$f":"SUM(F4:F22)","v":0},{"$f":"SUM(G4:G22)","v":0},{"$f":"SUM(H4:H22)","v":0},{"$f":"SUM(I4:I5)","v":0},{"$f":"SUM(J6:J7)","v":0},{"$f":"SUM(K4:K22)","v":0},{"$f":"SUM(L4:L22)","v":0},{"$f":"SUM(M4:M22)","v":0},{"$f":"SUM(N4:N22)","v":0}]
[null,null,null,null,null,null,null,null,"Den nederste række i denne fane, 'skal kopieres med i mail til hovedkursusleder, når delkursusleder kvitterer for oplysningernes rigtighed. "]

{"sheet":"Hovedkursusleder","index":22,"n_rows":25,"n_cols":7,"rows_kept":25,"cut":false,"hidden":false,"merged":[[10,6,10,7],[0,1,0,4],[1,2,1,4],[19,1,19,2],[6,1,6,3],[4,1,4,3],[17,1,17,3],[15,1,15,3],[8,1,8,3],[19,3,19,5]]}
[null,"Honorar Hovedkursusleder"]
[null,null,"NB. Skemaet SKAL udfyldes elektronisk"]
["Udfyldes af hovedkursusleder"]
[{"$f":"IFERROR(IF(LEN(B7)>10,\"CPR-nummer ikke gyldigt - du har mere end 10 tegn med. Husk ikke at inkludere bindestreg\",IF(LEN(B7)=0,\"\",IF(LEN(B7)<10,\"CPR-nummer ikke gyldigt - Du har indtastet for få tegn\",IF(0=MOD(LEFT(B7)*4+MID(B7,2,1)*3+MID(B7,3,1)*2+MID(B7,4,1)*7+MID(B7,5,1)*6+MID(B7,6,1)*5+(MID(B7,7,1)*4+MID(B7,8,1)*3)+MID(B7,9,1)*2+MID(B7,10,1),11),\"\",\"CPR-nummer ikke gyldigt - Tjek cifrene i dit CPR igennem igen\")))),\"CPR-nummer ikke gyldigt - Et af cifrene i dit CPR er ikke et tal\")","v":""}]
["Navn:"]
[]
["Cpr.nr.: "]
[null,"Ingen bindestreg. CPR-nummer skjult"]
["E-mail"]
[]
["Honorar hovedkursusleder\n (tast her)",null,"Max beløb til deling mellem sekretær og hovedkursusleder",{"$f":"'Adm.ark satser'!K2","v":9000},null,null,"Jeg sender en faktura"]
[null,null,"Total beløb for sekretær og hovedkursusleder",{"$f":"A12+Sekretær!A12","v":0}]
[]
["Udfyldes automatisk, trækkes fra delkursuslederark"]
[]
["Speciale:",{"$f":"'Delkursusleder 1'!B6","v":"[vælg fra liste]"}]
[]
["Kursusnavn:",{"$f":"'Delkursusleder 1'!B8","v":"[vælg fra liste]"}]
[]
["Dato for første undervisningsdag DD-MM-ÅÅ:",{"$f":"'Delkursusleder 1'!B23","v":"00:00:00"},null,{"$f":"'Delkursusleder 1'!C23","v":""}]
[]
["Dit honorar udbetales til NemKonto. Lønsedlen sendes til din e-boks. "]
["Ved CVR./SE-nr. SKAL der sendes e-faktura til EAN nr: 5798000362147 via sundhedsstyrelsens hjemmeside."]
[]
["Evt. bemærkninger"]

{"sheet":"SST, økonomi","index":23,"n_rows":74,"n_cols":10,"rows_kept":74,"cut":false,"hidden":false,"merged":[[0,0,0,1]]}
["Sundhedsstyrelsens økonomioverblik"]
[]
["Specialenavn:"]
[{"$f":"+'Delkursusleder 1'!B6","v":"[vælg fra liste]"}]
[]
["Kursusnavn","Kursus nummer"]
[{"$f":"+'Delkursusleder 1'!B8","v":"[vælg fra liste]"},{"$f":"+'Delkursusleder 1'!B10","v":"Kursusnummer findes automatisk efter du har indtastet speciale/kursusnavn"}]
[]
[]
["Dato/periode for undervisning:"]
[{"$f":"+'Delkursusleder 1'!B23","v":"00:00:00"}]
[]
["Delkursusleder:","E-mail:"]
[{"$f":"+'Delkursusleder 1'!B14","v":0},{"$f":"'Delkursusleder 1'!B21:D21","v":0}]
[]
["Godkendelse foregår via email og sikker post - se vejledning"]
[]
["Rolle","Navn","Udgiftstype","Antal","Samlet beløb",null,"SST Opsamling","Udgiftstype","Antal timer er lagt","Undervisningsomkostning"]
["Delkursusleder 1 - adm",{"$f":"+'Delkursusleder 1'!B14","v":0},"Delkursuslederhonorar","Udfyldes ikke",{"$f":"'Delkursusleder 1'!A39","v":0},null,"Antal forelæsningstimer",{"$f":"+'Adm.ark satser'!D2","v":1},{"$f":"D23+D26+D29+D32+D35+D38+D41+D44+D47+D50+D53+D56+D59+D62+D65+D68+D71","v":0},0]
["Delkursusleder 2",{"$f":"'(Evt. delkursusleder 2)'!B6:D6","v":0},"Delkursuslederhonorar","Udfyldes ikke",{"$f":"'(Evt. delkursusleder 2)'!A22","v":0},null,"Antal diskussionstimer",{"$f":"+'Adm.ark satser'!D3","v":2},0,0]
["Sekretær",{"$f":"+Sekretær!B5","v":0},"Administrationshonorar","Udfyldes ikke",{"$f":"+Sekretær!A12","v":0},null,"Antal medhjælpertimer",{"$f":"+'Adm.ark satser'!D4","v":3},{"$f":"D25+D28+D31+D34+D37+D40+D43+D46+D49+D52+D55+D58+D61+D64+D67+D70+D73","v":0},0]
["Hovedkursusleder",{"$f":"+Hovedkursusleder!B5","v":0},"Administrationshonorar","Udfyldes ikke",{"$f":"+Hovedkursusleder!A12","v":0},null,"Delkursuslederhonorar",{"$f":"+'Adm.ark satser'!D5","v":4},0,{"$f":"E19+E20","v":0}]
["Delkursusleder 1 - evt. underviser",{"$f":"'Delkursusleder 1'!B14:D14","v":0},"Antal forlæsningstimer",{"$f":"'Delkursusleder 1'!B29","v":0},{"$f":"'Delkursusleder 1'!D29","v":0},null,"Administrationshonorar",5,0,{"$f":"E21+E22","v":0}]
["Delkursusleder 1 - evt. underviser",{"$f":"'Delkursusleder 1'!B14:D14","v":0},"Antal diskussionstimer",{"$f":"'Delkursusleder 1'!B30","v":0},{"$f":"'Delkursusleder 1'!D30","v":0},null,"I alt",null,{"$f":"SUM(I19:I23)","v":0},{"$f":"SUM(J19:J23)","v":0}]
["Delkursusleder 1 - evt. underviser",{"$f":"'Delkursusleder 1'!B14:D14","v":0},"Antal medhjælper timer",{"$f":"'Delkursusleder 1'!B31","v":0},{"$f":"'Delkursusleder 1'!D31","v":0}]
["Delkursusleder 2 - evt. underviser",{"$f":"'(Evt. delkursusleder 2)'!B6:D6","v":0},"Antal forlæsningstimer",{"$f":"'(Evt. delkursusleder 2)'!B34","v":0},{"$f":"'(Evt. delkursusleder 2)'!D34","v":0}]
["Delkursusleder 2 - evt. underviser",{"$f":"'(Evt. delkursusleder 2)'!B6:D6","v":0},"Antal diskussionstimer",{"$f":"'(Evt. delkursusleder 2)'!B35","v":0},{"$f":"'(Evt. delkursusleder 2)'!D35","v":0}]
["Delkursusleder 2 - evt. underviser",{"$f":"'(Evt. delkursusleder 2)'!B6:D6","v":0},"Antal medhjælper timer",{"$f":"'(Evt. delkursusleder 2)'!B36","v":0},{"$f":"'(Evt. delkursusleder 2)'!D36","v":0}]
["Honorarlønnet 1",{"$f":"'Honorarlønnet 1'!$B$5","v":0},"Antal forlæsningstimer",{"$f":"'Honorarlønnet 1'!$B$12","v":0},{"$f":"'Honorarlønnet 1'!$D$12","v":0}]
["Honorarlønnet 1",{"$f":"'Honorarlønnet 1'!$B$5","v":0},"Antal diskussionstimer",{"$f":"'Honorarlønnet 1'!$B$13","v":0},{"$f":"'Honorarlønnet 1'!$D$13","v":0}]
["Honorarlønnet 1",{"$f":"'Honorarlønnet 1'!$B$5","v":0},"Antal medhjælper timer",{"$f":"'Honorarlønnet 1'!$B$14","v":0},{"$f":"'Honorarlønnet 1'!$D$14","v":0}]
["Honorarlønnet 2",{"$f":"'Honorarlønnet 2'!B$5","v":0},"Antal forlæsningstimer",{"$f":"'Honorarlønnet 2'!$B$12","v":0},{"$f":"'Honorarlønnet 2'!$D$12","v":0}]
["Honorarlønnet 2",{"$f":"'Honorarlønnet 2'!$B$5","v":0},"Antal diskussionstimer",{"$f":"'Honorarlønnet 2'!$B$13","v":0},{"$f":"'Honorarlønnet 2'!$D$13","v":0}]
["Honorarlønnet 2",{"$f":"'Honorarlønnet 2'!$B$5","v":0},"Antal medhjælper timer",{"$f":"'Honorarlønnet 2'!$B$14","v":0},{"$f":"'Honorarlønnet 2'!$D$14","v":0}]
["Honorarlønnet 3",{"$f":"'Honorarlønnet 3'!$B$5","v":0},"Antal forlæsningstimer",{"$f":"'Honorarlønnet 3'!$B$12","v":0},{"$f":"'Honorarlønnet 3'!$D$12","v":0}]
["Honorarlønnet 3",{"$f":"'Honorarlønnet 3'!$B$5","v":0},"Antal diskussionstimer",{"$f":"'Honorarlønnet 3'!$B$13","v":0},{"$f":"'Honorarlønnet 3'!$D$13","v":0}]
["Honorarlønnet 3",{"$f":"'Honorarlønnet 3'!$B$5","v":0},"Antal medhjælper timer",{"$f":"'Honorarlønnet 3'!$B$14","v":0},{"$f":"'Honorarlønnet 3'!$D$14","v":0}]
["Honorarlønnet 4",{"$f":"'Honorarlønnet 4'!$B$5","v":0},"Antal forlæsningstimer",{"$f":"'Honorarlønnet 4'!$B$12","v":0},{"$f":"'Honorarlønnet 4'!$D$12","v":0}]
["Honorarlønnet 4",{"$f":"'Honorarlønnet 4'!$B$5","v":0},"Antal diskussionstimer",{"$f":"'Honorarlønnet 4'!$B$13","v":0},{"$f":"'Honorarlønnet 4'!$D$13","v":0}]
["Honorarlønnet 4",{"$f":"'Honorarlønnet 4'!$B$5","v":0},"Antal medhjælper timer",{"$f":"'Honorarlønnet 4'!$B$14","v":0},{"$f":"'Honorarlønnet 4'!$D$14","v":0}]
["Honorarlønnet 5",{"$f":"'Honorarlønnet 5'!$B$5","v":0},"Antal forlæsningstimer",{"$f":"'Honorarlønnet 5'!$B$12","v":0},{"$f":"'Honorarlønnet 5'!$D$12","v":0}]
["Honorarlønnet 5",{"$f":"'Honorarlønnet 5'!$B$5","v":0},"Antal diskussionstimer",{"$f":"'Honorarlønnet 5'!$B$13","v":0},{"$f":"'Honorarlønnet 5'!$D$13","v":0}]
["Honorarlønnet 5",{"$f":"'Honorarlønnet 5'!$B$5","v":0},"Antal medhjælper timer",{"$f":"'Honorarlønnet 5'!$B$14","v":0},{"$f":"'Honorarlønnet 5'!$D$14","v":0}]
["Honorarlønnet 6",{"$f":"'Honorarlønnet 6'!$B$5","v":0},"Antal forlæsningstimer",{"$f":"'Honorarlønnet 6'!$B$12","v":0},{"$f":"'Honorarlønnet 6'!$D$12","v":0}]
["Honorarlønnet 6",{"$f":"'Honorarlønnet 6'!$B$5","v":0},"Antal diskussionstimer",{"$f":"'Honorarlønnet 6'!$B$13","v":0},{"$f":"'Honorarlønnet 6'!$D$13","v":0}]
["Honorarlønnet 6",{"$f":"'Honorarlønnet 6'!$B$5","v":0},"Antal medhjælper timer",{"$f":"'Honorarlønnet 6'!$B$14","v":0},{"$f":"'Honorarlønnet 6'!$D$14","v":0}]
["Honorarlønnet 7",{"$f":"'Honorarlønnet 7'!$B$5","v":0},"Antal forlæsningstimer",{"$f":"'Honorarlønnet 7'!$B$12","v":0},{"$f":"'Honorarlønnet 7'!$D$12","v":0}]
["Honorarlønnet 7",{"$f":"'Honorarlønnet 7'!$B$5","v":0},"Antal diskussionstimer",{"$f":"'Honorarlønnet 7'!$B$13","v":0},{"$f":"'Honorarlønnet 7'!$D$13","v":0}]
["Honorarlønnet 7",{"$f":"'Honorarlønnet 7'!$B$5","v":0},"Antal medhjælper timer",{"$f":"'Honorarlønnet 7'!$B$14","v":0},{"$f":"'Honorarlønnet 7'!$D$14","v":0}]
["Honorarlønnet 8",{"$f":"'Honorarlønnet 8'!$B$5","v":0},"Antal forlæsningstimer",{"$f":"'Honorarlønnet 8'!$B$12","v":0},{"$f":"'Honorarlønnet 8'!$D$12","v":0}]
["Honorarlønnet 8",{"$f":"'Honorarlønnet 8'!$B$5","v":0},"Antal diskussionstimer",{"$f":"'Honorarlønnet 8'!$B$13","v":0},{"$f":"'Honorarlønnet 8'!$D$13","v":0}]
["Honorarlønnet 8",{"$f":"'Honorarlønnet 8'!$B$5","v":0},"Antal medhjælper timer",{"$f":"'Honorarlønnet 8'!$B$14","v":0},{"$f":"'Honorarlønnet 8'!$D$14","v":0}]
["Honorarlønnet 9",{"$f":"'Honorarlønnet 9'!$B$5","v":0},"Antal forlæsningstimer",{"$f":"'Honorarlønnet 9'!$B$12","v":0},{"$f":"'Honorarlønnet 9'!$D$12","v":0}]
["Honorarlønnet 9",{"$f":"'Honorarlønnet 9'!$B$5","v":0},"Antal diskussionstimer",{"$f":"'Honorarlønnet 9'!$B$13","v":0},{"$f":"'Honorarlønnet 9'!$D$13","v":0}]
["Honorarlønnet 9",{"$f":"'Honorarlønnet 9'!$B$5","v":0},"Antal medhjælper timer",{"$f":"'Honorarlønnet 9'!$B$14","v":0},{"$f":"'Honorarlønnet 9'!$D$14","v":0}]
["Honorarlønnet 10",{"$f":"'Honorarlønnet 10'!$B$5","v":0},"Antal forlæsningstimer",{"$f":"'Honorarlønnet 10'!$B$12","v":0},{"$f":"'Honorarlønnet 10'!$D$12","v":0}]
["Honorarlønnet 10",{"$f":"'Honorarlønnet 10'!$B$5","v":0},"Antal diskussionstimer",{"$f":"'Honorarlønnet 10'!$B$13","v":0},{"$f":"'Honorarlønnet 10'!$D$13","v":0}]
["Honorarlønnet 10",{"$f":"'Honorarlønnet 10'!$B$5","v":0},"Antal medhjælper timer",{"$f":"'Honorarlønnet 10'!$B$14","v":0},{"$f":"'Honorarlønnet 10'!$D$14","v":0}]
["Honorarlønnet 11",{"$f":"'Honorarlønnet 11'!$B$5","v":0},"Antal forlæsningstimer",{"$f":"'Honorarlønnet 11'!$B$12","v":0},{"$f":"'Honorarlønnet 11'!$D$12","v":0}]
["Honorarlønnet 11",{"$f":"'Honorarlønnet 11'!$B$5","v":0},"Antal diskussionstimer",{"$f":"'Honorarlønnet 11'!$B$13","v":0},{"$f":"'Honorarlønnet 11'!$D$13","v":0}]
["Honorarlønnet 11",{"$f":"'Honorarlønnet 11'!$B$5","v":0},"Antal medhjælper timer",{"$f":"'Honorarlønnet 11'!$B$14","v":0},{"$f":"'Honorarlønnet 11'!$D$14","v":0}]
["Honorarlønnet 12",{"$f":"'Honorarlønnet 12'!$B$5","v":0},"Antal forlæsningstimer",{"$f":"'Honorarlønnet 12'!$B$12","v":0},{"$f":"'Honorarlønnet 12'!$D$12","v":0}]
["Honorarlønnet 12",{"$f":"'Honorarlønnet 12'!$B$5","v":0},"Antal diskussionstimer",{"$f":"'Honorarlønnet 12'!$B$13","v":0},{"$f":"'Honorarlønnet 12'!$D$13","v":0}]
["Honorarlønnet 12",{"$f":"'Honorarlønnet 12'!$B$5","v":0},"Antal medhjælper timer",{"$f":"'Honorarlønnet 12'!$B$14","v":0},{"$f":"'Honorarlønnet 12'!$D$14","v":0}]
["Honorarlønnet 13",{"$f":"'Honorarlønnet 13'!$B$5","v":0},"Antal forlæsningstimer",{"$f":"'Honorarlønnet 13'!$B$12","v":0},{"$f":"'Honorarlønnet 13'!$D$12","v":0}]
["Honorarlønnet 13",{"$f":"'Honorarlønnet 13'!$B$5","v":0},"Antal diskussionstimer",{"$f":"'Honorarlønnet 13'!$B$13","v":0},{"$f":"'Honorarlønnet 13'!$D$13","v":0}]
["Honorarlønnet 13",{"$f":"'Honorarlønnet 13'!$B$5","v":0},"Antal medhjælper timer",{"$f":"'Honorarlønnet 13'!$B$14","v":0},{"$f":"'Honorarlønnet 13'!$D$14","v":0}]
["Honorarlønnet 14",{"$f":"'Honorarlønnet 14'!$B$5","v":0},"Antal forlæsningstimer",{"$f":"'Honorarlønnet 14'!$B$12","v":0},{"$f":"'Honorarlønnet 14'!$D$12","v":0}]
["Honorarlønnet 14",{"$f":"'Honorarlønnet 14'!$B$5","v":0},"Antal diskussionstimer",{"$f":"'Honorarlønnet 14'!$B$13","v":0},{"$f":"'Honorarlønnet 14'!$D$13","v":0}]
["Honorarlønnet 14",{"$f":"'Honorarlønnet 14'!$B$5","v":0},"Antal medhjælper timer",{"$f":"'Honorarlønnet 14'!$B$14","v":0},{"$f":"'Honorarlønnet 14'!$D$14","v":0}]
["Honorarlønnet 15",{"$f":"'Honorarlønnet 15'!$B$5","v":0},"Antal forlæsningstimer",{"$f":"'Honorarlønnet 15'!$B$12","v":0},{"$f":"'Honorarlønnet 15'!$D$12","v":0}]
["Honorarlønnet 15",{"$f":"'Honorarlønnet 15'!$B$5","v":0},"Antal diskussionstimer",{"$f":"'Honorarlønnet 15'!$B$13","v":0},{"$f":"'Honorarlønnet 15'!$D$13","v":0}]
["Honorarlønnet 15",{"$f":"'Honorarlønnet 15'!$B$5","v":0},"Antal medhjælper timer",{"$f":"'Honorarlønnet 15'!$B$14","v":0},{"$f":"'Honorarlønnet 15'!$D$14","v":0}]
["I alt",null,null,{"$f":"SUM(D23:D73)","v":0},{"$f":"SUM(E19:E73)","v":0}]

{"sheet":"Lønadm.","index":24,"n_rows":56,"n_cols":19,"rows_kept":56,"cut":false,"hidden":false,"merged":[]}
["CPR fejl?","Cpr.nr.*","Løbenr.","Dato*","Løndelsnr.*","Felt1*","Felt2","Felt3","Felt4","Kreditorkodenr.","Afvigende løndelstekst","Bogf.kreds+delregnskab (8 cifre)","Artskonto (4 cifre)","Segment 1","Segment 2","Segment 3","Segment 4","Segment 5","Segment 6"]
[{"$f":"IF(LEN('Delkursusleder 1'!$C$16)>0,\"Ja\",\"\")","v":""},{"$f":"IF('Delkursusleder 1'!$B$19=\"Ja\",\"Sender faktura\",'Delkursusleder 1'!$B$16)","v":0},null,{"$f":"+'Delkursusleder 1'!$B$23","v":"00:00:00"},2510,{"$f":"Samlingsark!I4","v":0},null,1,null,null,{"$f":"'Delkursusleder 1'!$B$8","v":"[vælg fra liste]"},null,null,1,{"$f":"+Samlingsark!$D$4","v":"Kursusnummer findes automatisk efter du har indtastet speciale/kursusnavn"},{"$f":"IF(Samlingsark!I4>0.1,'Adm.ark satser'!$D$5,0)","v":0}]
[{"$f":"IF(LEN('Delkursusleder 1'!$C$16)>0,\"Ja\",\"\")","v":""},{"$f":"IF('Delkursusleder 1'!$B$19=\"Ja\",\"Sender faktura\",'Delkursusleder 1'!$B$16)","v":0},null,{"$f":"+'Delkursusleder 1'!$B$23","v":"00:00:00"},2510,{"$f":"+Samlingsark!K4","v":0},null,1,null,null,{"$f":"'Delkursusleder 1'!$B$8","v":"[vælg fra liste]"},null,null,1,{"$f":"+Samlingsark!$D$4","v":"Kursusnummer findes automatisk efter du har indtastet speciale/kursusnavn"},{"$f":"IF(Samlingsark!K4>0.1,'Adm.ark satser'!$D$2,0)","v":0}]
[{"$f":"IF(LEN('Delkursusleder 1'!$C$16)>0,\"Ja\",\"\")","v":""},{"$f":"IF('Delkursusleder 1'!$B$19=\"Ja\",\"Sender faktura\",'Delkursusleder 1'!$B$16)","v":0},null,{"$f":"+'Delkursusleder 1'!$B$23","v":"00:00:00"},2510,{"$f":"+Samlingsark!L4","v":0},null,1,null,null,{"$f":"'Delkursusleder 1'!$B$8","v":"[vælg fra liste]"},null,null,1,{"$f":"+Samlingsark!$D$4","v":"Kursusnummer findes automatisk efter du har indtastet speciale/kursusnavn"},{"$f":"IF(Samlingsark!L4>0.1,'Adm.ark satser'!$D$3,0)","v":0}]
[{"$f":"IF(LEN('Delkursusleder 1'!$C$16)>0,\"Ja\",\"\")","v":""},{"$f":"IF('Delkursusleder 1'!$B$19=\"Ja\",\"Sender faktura\",'Delkursusleder 1'!$B$16)","v":0},null,{"$f":"+'Delkursusleder 1'!$B$23","v":"00:00:00"},2510,{"$f":"+Samlingsark!M4","v":0},null,1,null,null,{"$f":"'Delkursusleder 1'!$B$8","v":"[vælg fra liste]"},null,null,1,{"$f":"+Samlingsark!$D$4","v":"Kursusnummer findes automatisk efter du har indtastet speciale/kursusnavn"},{"$f":"IF(Samlingsark!M4>0.1,'Adm.ark satser'!$D$4,0)","v":0}]
[{"$f":"IF(LEN('(Evt. delkursusleder 2)'!$A$11)>0,\"Ja\",\"\")","v":""},{"$f":"IF('(Evt. delkursusleder 2)'!$E$8=\"Ja\",\"Sender faktura\",'(Evt. delkursusleder 2)'!$B$8)","v":0},null,{"$f":"+'Delkursusleder 1'!$B$23","v":"00:00:00"},2510,{"$f":"Samlingsark!I5","v":0},null,1,null,null,{"$f":"'Delkursusleder 1'!$B$8","v":"[vælg fra liste]"},null,null,1,{"$f":"+Samlingsark!$D$4","v":"Kursusnummer findes automatisk efter du har indtastet speciale/kursusnavn"},{"$f":"IF(Samlingsark!I5>0.1,'Adm.ark satser'!$D$5,0)","v":0}]
[{"$f":"IF(LEN('(Evt. delkursusleder 2)'!$A$11)>0,\"Ja\",\"\")","v":""},{"$f":"IF('(Evt. delkursusleder 2)'!$E$8=\"Ja\",\"Sender faktura\",'(Evt. delkursusleder 2)'!$B$8)","v":0},null,{"$f":"+'Delkursusleder 1'!$B$23","v":"00:00:00"},2510,{"$f":"Samlingsark!K5","v":0},null,1,null,null,{"$f":"'Delkursusleder 1'!$B$8","v":"[vælg fra liste]"},null,null,1,{"$f":"+Samlingsark!$D$4","v":"Kursusnummer findes automatisk efter du har indtastet speciale/kursusnavn"},{"$f":"IF(Samlingsark!K5>0.1,'Adm.ark satser'!$D$2,0)","v":0}]
[{"$f":"IF(LEN('(Evt. delkursusleder 2)'!$A$11)>0,\"Ja\",\"\")","v":""},{"$f":"IF('(Evt. delkursusleder 2)'!$E$8=\"Ja\",\"Sender faktura\",'(Evt. delkursusleder 2)'!$B$8)","v":0},null,{"$f":"+'Delkursusleder 1'!$B$23","v":"00:00:00"},2510,{"$f":"Samlingsark!L5","v":0},null,1,null,null,{"$f":"'Delkursusleder 1'!$B$8","v":"[vælg fra liste]"},null,null,1,{"$f":"+Samlingsark!$D$4","v":"Kursusnummer findes automatisk efter du har indtastet speciale/kursusnavn"},{"$f":"IF(Samlingsark!L5>0.1,'Adm.ark satser'!$D$3,0)","v":0}]
[{"$f":"IF(LEN('(Evt. delkursusleder 2)'!$A$11)>0,\"Ja\",\"\")","v":""},{"$f":"IF('(Evt. delkursusleder 2)'!$E$8=\"Ja\",\"Sender faktura\",'(Evt. delkursusleder 2)'!$B$8)","v":0},null,{"$f":"+'Delkursusleder 1'!$B$23","v":"00:00:00"},2510,{"$f":"Samlingsark!M5","v":0},null,1,null,null,{"$f":"'Delkursusleder 1'!$B$8","v":"[vælg fra liste]"},null,null,1,{"$f":"+Samlingsark!$D$4","v":"Kursusnummer findes automatisk efter du har indtastet speciale/kursusnavn"},{"$f":"IF(Samlingsark!M5>0.1,'Adm.ark satser'!$D$4,0)","v":0}]
[{"$f":"IF(LEN(Sekretær!$A$4)>0,\"Ja\",\"\")","v":""},{"$f":"IF(Sekretær!H7=\"Ja\",\"Sender faktura\",Sekretær!B7)","v":0},null,{"$f":"+'Delkursusleder 1'!$B$23","v":"00:00:00"},2510,{"$f":"+Samlingsark!J7","v":0},null,1,null,null,{"$f":"'Delkursusleder 1'!$B$8","v":"[vælg fra liste]"},null,null,1,{"$f":"+Samlingsark!$D$4","v":"Kursusnummer findes automatisk efter du har indtastet speciale/kursusnavn"},{"$f":"IF(Samlingsark!J7>0.1,'Adm.ark satser'!$D$6,0)","v":0}]
[{"$f":"IF(LEN(Hovedkursusleder!$A$4)>0,\"Ja\",\"\")","v":""},{"$f":"IF(Hovedkursusleder!I11=\"Ja\",\"Sender faktura\",+Hovedkursusleder!B7)","v":0},null,{"$f":"+'Delkursusleder 1'!$B$23","v":"00:00:00"},2510,{"$f":"+Samlingsark!J6","v":0},null,1,null,null,{"$f":"'Delkursusleder 1'!$B$8","v":"[vælg fra liste]"},null,null,1,{"$f":"+Samlingsark!$D$4","v":"Kursusnummer findes automatisk efter du har indtastet speciale/kursusnavn"},{"$f":"IF(Samlingsark!J6>0.1,'Adm.ark satser'!$D$6,0)","v":0}]
[{"$f":"IF(LEN('Honorarlønnet 1'!$A$4)>0,\"Ja\",\"\")","v":""},{"$f":"IF('Honorarlønnet 1'!$E$7=\"Ja\",\"Sender faktura\",+'Honorarlønnet 1'!$B$7)","v":0},null,{"$f":"+'Delkursusleder 1'!$B$23","v":"00:00:00"},2510,{"$f":"+Samlingsark!K8","v":0},null,1,null,null,{"$f":"'Delkursusleder 1'!$B$8","v":"[vælg fra liste]"},null,null,1,{"$f":"+Samlingsark!$D$4","v":"Kursusnummer findes automatisk efter du har indtastet speciale/kursusnavn"},{"$f":"IF(Samlingsark!K8>0.1,'Adm.ark satser'!$D$2,0)","v":0}]
[{"$f":"IF(LEN('Honorarlønnet 1'!$A$4)>0,\"Ja\",\"\")","v":""},{"$f":"IF('Honorarlønnet 1'!$E$7=\"Ja\",\"Sender faktura\",+'Honorarlønnet 1'!$B$7)","v":0},null,{"$f":"+'Delkursusleder 1'!$B$23","v":"00:00:00"},2510,{"$f":"+Samlingsark!L8","v":0},null,1,null,null,{"$f":"'Delkursusleder 1'!$B$8","v":"[vælg fra liste]"},null,null,1,{"$f":"+Samlingsark!$D$4","v":"Kursusnummer findes automatisk efter du har indtastet speciale/kursusnavn"},{"$f":"IF(Samlingsark!L8>0.1,'Adm.ark satser'!$D$3,0)","v":0}]
[{"$f":"IF(LEN('Honorarlønnet 1'!$A$4)>0,\"Ja\",\"\")","v":""},{"$f":"IF('Honorarlønnet 1'!$E$7=\"Ja\",\"Sender faktura\",+'Honorarlønnet 1'!$B$7)","v":0},null,{"$f":"+'Delkursusleder 1'!$B$23","v":"00:00:00"},2510,{"$f":"+Samlingsark!M8","v":0},null,1,null,null,{"$f":"'Delkursusleder 1'!$B$8","v":"[vælg fra liste]"},null,null,1,{"$f":"+Samlingsark!$D$4","v":"Kursusnummer findes automatisk efter du har indtastet speciale/kursusnavn"},{"$f":"IF(Samlingsark!M8>0.1,'Adm.ark satser'!$D$4,0)","v":0}]
[{"$f":"IF(LEN('Honorarlønnet 2'!$A$4)>0,\"Ja\",\"\")","v":""},{"$f":"IF('Honorarlønnet 2'!$E$7=\"Ja\",\"Sender faktura\",+'Honorarlønnet 2'!$B$7)","v":0},null,{"$f":"+'Delkursusleder 1'!$B$23","v":"00:00:00"},2510,{"$f":"+Samlingsark!K9","v":0},null,1,null,null,{"$f":"'Delkursusleder 1'!$B$8","v":"[vælg fra liste]"},null,null,1,{"$f":"+Samlingsark!$D$4","v":"Kursusnummer findes automatisk efter du har indtastet speciale/kursusnavn"},{"$f":"IF(Samlingsark!K9>0.1,'Adm.ark satser'!$D$2,0)","v":0}]
[{"$f":"IF(LEN('Honorarlønnet 2'!$A$4)>0,\"Ja\",\"\")","v":""},{"$f":"IF('Honorarlønnet 2'!$E$7=\"Ja\",\"Sender faktura\",+'Honorarlønnet 2'!$B$7)","v":0},null,{"$f":"+'Delkursusleder 1'!$B$23","v":"00:00:00"},2510,{"$f":"+Samlingsark!L9","v":0},null,1,null,null,{"$f":"'Delkursusleder 1'!$B$8","v":"[vælg fra liste]"},null,null,1,{"$f":"+Samlingsark!$D$4","v":"Kursusnummer findes automatisk efter du har indtastet speciale/kursusnavn"},{"$f":"IF(Samlingsark!L9>0.1,'Adm.ark satser'!$D$3,0)","v":0}]
[{"$f":"IF(LEN('Honorarlønnet 2'!$A$4)>0,\"Ja\",\"\")","v":""},{"$f":"IF('Honorarlønnet 2'!$E$7=\"Ja\",\"Sender faktura\",+'Honorarlønnet 2'!$B$7)","v":0},null,{"$f":"+'Delkursusleder 1'!$B$23","v":"00:00:00"},2510,{"$f":"+Samlingsark!M9","v":0},null,1,null,null,{"$f":"'Delkursusleder 1'!$B$8","v":"[vælg fra liste]"},null,null,1,{"$f":"+Samlingsark!$D$4","v":"Kursusnummer findes automatisk efter du har indtastet speciale/kursusnavn"},{"$f":"IF(Samlingsark!M9>0.1,'Adm.ark satser'!$D$4,0)","v":0}]
[{"$f":"IF(LEN('Honorarlønnet 3'!$A$4)>0,\"Ja\",\"\")","v":""},{"$f":"IF('Honorarlønnet 3'!$E$7=\"Ja\",\"Sender faktura\",+'Honorarlønnet 3'!$B$7)","v":0},null,{"$f":"+'Delkursusleder 1'!$B$23","v":"00:00:00"},2510,{"$f":"+Samlingsark!K10","v":0},null,1,null,null,{"$f":"'Delkursusleder 1'!$B$8","v":"[vælg fra liste]"},null,null,1,{"$f":"+Samlingsark!$D$4","v":"Kursusnummer findes automatisk efter du har indtastet speciale/kursusnavn"},{"$f":"IF(Samlingsark!K10>0.1,'Adm.ark satser'!$D$2,0)","v":0}]
[{"$f":"IF(LEN('Honorarlønnet 3'!$A$4)>0,\"Ja\",\"\")","v":""},{"$f":"IF('Honorarlønnet 3'!$E$7=\"Ja\",\"Sender faktura\",+'Honorarlønnet 3'!$B$7)","v":0},null,{"$f":"+'Delkursusleder 1'!$B$23","v":"00:00:00"},2510,{"$f":"+Samlingsark!L10","v":0},null,1,null,null,{"$f":"'Delkursusleder 1'!$B$8","v":"[vælg fra liste]"},null,null,1,{"$f":"+Samlingsark!$D$4","v":"Kursusnummer findes automatisk efter du har indtastet speciale/kursusnavn"},{"$f":"IF(Samlingsark!L10>0.1,'Adm.ark satser'!$D$3,0)","v":0}]
[{"$f":"IF(LEN('Honorarlønnet 3'!$A$4)>0,\"Ja\",\"\")","v":""},{"$f":"IF('Honorarlønnet 3'!$E$7=\"Ja\",\"Sender faktura\",+'Honorarlønnet 3'!$B$7)","v":0},null,{"$f":"+'Delkursusleder 1'!$B$23","v":"00:00:00"},2510,{"$f":"+Samlingsark!M10","v":0},null,1,null,null,{"$f":"'Delkursusleder 1'!$B$8","v":"[vælg fra liste]"},null,null,1,{"$f":"+Samlingsark!$D$4","v":"Kursusnummer findes automatisk efter du har indtastet speciale/kursusnavn"},{"$f":"IF(Samlingsark!M10>0.1,'Adm.ark satser'!$D$4,0)","v":0}]
[{"$f":"IF(LEN('Honorarlønnet 4'!$A$4)>0,\"Ja\",\"\")","v":""},{"$f":"IF('Honorarlønnet 4'!$E$7=\"Ja\",\"Sender faktura\",+'Honorarlønnet 4'!$B$7)","v":0},null,{"$f":"+'Delkursusleder 1'!$B$23","v":"00:00:00"},2510,{"$f":"+Samlingsark!K11","v":0},null,1,null,null,{"$f":"'Delkursusleder 1'!$B$8","v":"[vælg fra liste]"},null,null,1,{"$f":"+Samlingsark!$D$4","v":"Kursusnummer findes automatisk efter du har indtastet speciale/kursusnavn"},{"$f":"IF(Samlingsark!K11>0.1,'Adm.ark satser'!$D$2,0)","v":0}]
[{"$f":"IF(LEN('Honorarlønnet 4'!$A$4)>0,\"Ja\",\"\")","v":""},{"$f":"IF('Honorarlønnet 4'!$E$7=\"Ja\",\"Sender faktura\",+'Honorarlønnet 4'!$B$7)","v":0},null,{"$f":"+'Delkursusleder 1'!$B$23","v":"00:00:00"},2510,{"$f":"+Samlingsark!L11","v":0},null,1,null,null,{"$f":"'Delkursusleder 1'!$B$8","v":"[vælg fra liste]"},null,null,1,{"$f":"+Samlingsark!$D$4","v":"Kursusnummer findes automatisk efter du har indtastet speciale/kursusnavn"},{"$f":"IF(Samlingsark!L11>0.1,'Adm.ark satser'!$D$3,0)","v":0}]
[{"$f":"IF(LEN('Honorarlønnet 4'!$A$4)>0,\"Ja\",\"\")","v":""},{"$f":"IF('Honorarlønnet 4'!$E$7=\"Ja\",\"Sender faktura\",+'Honorarlønnet 4'!$B$7)","v":0},null,{"$f":"+'Delkursusleder 1'!$B$23","v":"00:00:00"},2510,{"$f":"+Samlingsark!M11","v":0},null,1,null,null,{"$f":"'Delkursusleder 1'!$B$8","v":"[vælg fra liste]"},null,null,1,{"$f":"+Samlingsark!$D$4","v":"Kursusnummer findes automatisk efter du har indtastet speciale/kursusnavn"},{"$f":"IF(Samlingsark!M11>0.1,'Adm.ark satser'!$D$4,0)","v":0}]
[{"$f":"IF(LEN('Honorarlønnet 5'!$A$4)>0,\"Ja\",\"\")","v":""},{"$f":"IF('Honorarlønnet 5'!$E$7=\"Ja\",\"Sender faktura\",+'Honorarlønnet 5'!$B$7)","v":0},null,{"$f":"+'Delkursusleder 1'!$B$23","v":"00:00:00"},2510,{"$f":"+Samlingsark!K12","v":0},null,1,null,null,{"$f":"'Delkursusleder 1'!$B$8","v":"[vælg fra liste]"},null,null,1,{"$f":"+Samlingsark!$D$4","v":"Kursusnummer findes automatisk efter du har indtastet speciale/kursusnavn"},{"$f":"IF(Samlingsark!K12>0.1,'Adm.ark satser'!$D$2,0)","v":0}]
[{"$f":"IF(LEN('Honorarlønnet 5'!$A$4)>0,\"Ja\",\"\")","v":""},{"$f":"IF('Honorarlønnet 5'!$E$7=\"Ja\",\"Sender faktura\",+'Honorarlønnet 5'!$B$7)","v":0},null,{"$f":"+'Delkursusleder 1'!$B$23","v":"00:00:00"},2510,{"$f":"+Samlingsark!L12","v":0},null,1,null,null,{"$f":"'Delkursusleder 1'!$B$8","v":"[vælg fra liste]"},null,null,1,{"$f":"+Samlingsark!$D$4","v":"Kursusnummer findes automatisk efter du har indtastet speciale/kursusnavn"},{"$f":"IF(Samlingsark!L12>0.1,'Adm.ark satser'!$D$3,0)","v":0}]
[{"$f":"IF(LEN('Honorarlønnet 5'!$A$4)>0,\"Ja\",\"\")","v":""},{"$f":"IF('Honorarlønnet 5'!$E$7=\"Ja\",\"Sender faktura\",+'Honorarlønnet 5'!$B$7)","v":0},null,{"$f":"+'Delkursusleder 1'!$B$23","v":"00:00:00"},2510,{"$f":"+Samlingsark!M12","v":0},null,1,null,null,{"$f":"'Delkursusleder 1'!$B$8","v":"[vælg fra liste]"},null,null,1,{"$f":"+Samlingsark!$D$4","v":"Kursusnummer findes automatisk efter du har indtastet speciale/kursusnavn"},{"$f":"IF(Samlingsark!M12>0.1,'Adm.ark satser'!$D$4,0)","v":0}]
[{"$f":"IF(LEN('Honorarlønnet 6'!$A$4)>0,\"Ja\",\"\")","v":""},{"$f":"IF('Honorarlønnet 6'!$E$7=\"Ja\",\"Sender faktura\",+'Honorarlønnet 6'!$B$7)","v":0},null,{"$f":"+'Delkursusleder 1'!$B$23","v":"00:00:00"},2510,{"$f":"+Samlingsark!K13","v":0},null,1,null,null,{"$f":"'Delkursusleder 1'!$B$8","v":"[vælg fra liste]"},null,null,1,{"$f":"+Samlingsark!$D$4","v":"Kursusnummer findes automatisk efter du har indtastet speciale/kursusnavn"},{"$f":"IF(Samlingsark!K13>0.1,'Adm.ark satser'!$D$2,0)","v":0}]
[{"$f":"IF(LEN('Honorarlønnet 6'!$A$4)>0,\"Ja\",\"\")","v":""},{"$f":"IF('Honorarlønnet 6'!$E$7=\"Ja\",\"Sender faktura\",+'Honorarlønnet 6'!$B$7)","v":0},null,{"$f":"+'Delkursusleder 1'!$B$23","v":"00:00:00"},2510,{"$f":"+Samlingsark!L13","v":0},null,1,null,null,{"$f":"'Delkursusleder 1'!$B$8","v":"[vælg fra liste]"},null,null,1,{"$f":"+Samlingsark!$D$4","v":"Kursusnummer findes automatisk efter du har indtastet speciale/kursusnavn"},{"$f":"IF(Samlingsark!L13>0.1,'Adm.ark satser'!$D$3,0)","v":0}]
[{"$f":"IF(LEN('Honorarlønnet 6'!$A$4)>0,\"Ja\",\"\")","v":""},{"$f":"IF('Honorarlønnet 6'!$E$7=\"Ja\",\"Sender faktura\",+'Honorarlønnet 6'!$B$7)","v":0},null,{"$f":"+'Delkursusleder 1'!$B$23","v":"00:00:00"},2510,{"$f":"+Samlingsark!M13","v":0},null,1,null,null,{"$f":"'Delkursusleder 1'!$B$8","v":"[vælg fra liste]"},null,null,1,{"$f":"+Samlingsark!$D$4","v":"Kursusnummer findes automatisk efter du har indtastet speciale/kursusnavn"},{"$f":"IF(Samlingsark!M13>0.1,'Adm.ark satser'!$D$4,0)","v":0}]
[{"$f":"IF(LEN('Honorarlønnet 7'!$A$4)>0,\"Ja\",\"\")","v":""},{"$f":"IF('Honorarlønnet 7'!$E$7=\"Ja\",\"Sender faktura\",+'Honorarlønnet 7'!$B$7)","v":0},null,{"$f":"+'Delkursusleder 1'!$B$23","v":"00:00:00"},2510,{"$f":"+Samlingsark!K14","v":0},null,1,null,null,{"$f":"'Delkursusleder 1'!$B$8","v":"[vælg fra liste]"},null,null,1,{"$f":"+Samlingsark!$D$4","v":"Kursusnummer findes automatisk efter du har indtastet speciale/kursusnavn"},{"$f":"IF(Samlingsark!K14>0.1,'Adm.ark satser'!$D$2,0)","v":0}]
[{"$f":"IF(LEN('Honorarlønnet 7'!$A$4)>0,\"Ja\",\"\")","v":""},{"$f":"IF('Honorarlønnet 7'!$E$7=\"Ja\",\"Sender faktura\",+'Honorarlønnet 7'!$B$7)","v":0},null,{"$f":"+'Delkursusleder 1'!$B$23","v":"00:00:00"},2510,{"$f":"+Samlingsark!L14","v":0},null,1,null,null,{"$f":"'Delkursusleder 1'!$B$8","v":"[vælg fra liste]"},null,null,1,{"$f":"+Samlingsark!$D$4","v":"Kursusnummer findes automatisk efter du har indtastet speciale/kursusnavn"},{"$f":"IF(Samlingsark!L14>0.1,'Adm.ark satser'!$D$3,0)","v":0}]
[{"$f":"IF(LEN('Honorarlønnet 7'!$A$4)>0,\"Ja\",\"\")","v":""},{"$f":"IF('Honorarlønnet 7'!$E$7=\"Ja\",\"Sender faktura\",+'Honorarlønnet 7'!$B$7)","v":0},null,{"$f":"+'Delkursusleder 1'!$B$23","v":"00:00:00"},2510,{"$f":"+Samlingsark!M14","v":0},null,1,null,null,{"$f":"'Delkursusleder 1'!$B$8","v":"[vælg fra liste]"},null,null,1,{"$f":"+Samlingsark!$D$4","v":"Kursusnummer findes automatisk efter du har indtastet speciale/kursusnavn"},{"$f":"IF(Samlingsark!M14>0.1,'Adm.ark satser'!$D$4,0)","v":0}]
[{"$f":"IF(LEN('Honorarlønnet 8'!$A$4)>0,\"Ja\",\"\")","v":""},{"$f":"IF('Honorarlønnet 8'!$E$7=\"Ja\",\"Sender faktura\",+'Honorarlønnet 8'!$B$7)","v":0},null,{"$f":"+'Delkursusleder 1'!$B$23","v":"00:00:00"},2510,{"$f":"+Samlingsark!K15","v":0},null,1,null,null,{"$f":"'Delkursusleder 1'!$B$8","v":"[vælg fra liste]"},null,null,1,{"$f":"+Samlingsark!$D$4","v":"Kursusnummer findes automatisk efter du har indtastet speciale/kursusnavn"},{"$f":"IF(Samlingsark!K15>0.1,'Adm.ark satser'!$D$2,0)","v":0}]
[{"$f":"IF(LEN('Honorarlønnet 8'!$A$4)>0,\"Ja\",\"\")","v":""},{"$f":"IF('Honorarlønnet 8'!$E$7=\"Ja\",\"Sender faktura\",+'Honorarlønnet 8'!$B$7)","v":0},null,{"$f":"+'Delkursusleder 1'!$B$23","v":"00:00:00"},2510,{"$f":"+Samlingsark!L15","v":0},null,1,null,null,{"$f":"'Delkursusleder 1'!$B$8","v":"[vælg fra liste]"},null,null,1,{"$f":"+Samlingsark!$D$4","v":"Kursusnummer findes automatisk efter du har indtastet speciale/kursusnavn"},{"$f":"IF(Samlingsark!L15>0.1,'Adm.ark satser'!$D$3,0)","v":0}]
[{"$f":"IF(LEN('Honorarlønnet 8'!$A$4)>0,\"Ja\",\"\")","v":""},{"$f":"IF('Honorarlønnet 8'!$E$7=\"Ja\",\"Sender faktura\",+'Honorarlønnet 8'!$B$7)","v":0},null,{"$f":"+'Delkursusleder 1'!$B$23","v":"00:00:00"},2510,{"$f":"+Samlingsark!M15","v":0},null,1,null,null,{"$f":"'Delkursusleder 1'!$B$8","v":"[vælg fra liste]"},null,null,1,{"$f":"+Samlingsark!$D$4","v":"Kursusnummer findes automatisk efter du har indtastet speciale/kursusnavn"},{"$f":"IF(Samlingsark!M15>0.1,'Adm.ark satser'!$D$4,0)","v":0}]
[{"$f":"IF(LEN('Honorarlønnet 9'!$A$4)>0,\"Ja\",\"\")","v":""},{"$f":"IF('Honorarlønnet 9'!$E$7=\"Ja\",\"Sender faktura\",+'Honorarlønnet 9'!$B$7)","v":0},null,{"$f":"+'Delkursusleder 1'!$B$23","v":"00:00:00"},2510,{"$f":"+Samlingsark!K16","v":0},null,1,null,null,{"$f":"'Delkursusleder 1'!$B$8","v":"[vælg fra liste]"},null,null,1,{"$f":"+Samlingsark!$D$4","v":"Kursusnummer findes automatisk efter du har indtastet speciale/kursusnavn"},{"$f":"IF(Samlingsark!K16>0.1,'Adm.ark satser'!$D$2,0)","v":0}]
[{"$f":"IF(LEN('Honorarlønnet 9'!$A$4)>0,\"Ja\",\"\")","v":""},{"$f":"IF('Honorarlønnet 9'!$E$7=\"Ja\",\"Sender faktura\",+'Honorarlønnet 9'!$B$7)","v":0},null,{"$f":"+'Delkursusleder 1'!$B$23","v":"00:00:00"},2510,{"$f":"+Samlingsark!L16","v":0},null,1,null,null,{"$f":"'Delkursusleder 1'!$B$8","v":"[vælg fra liste]"},null,null,1,{"$f":"+Samlingsark!$D$4","v":"Kursusnummer findes automatisk efter du har indtastet speciale/kursusnavn"},{"$f":"IF(Samlingsark!L16>0.1,'Adm.ark satser'!$D$3,0)","v":0}]
[{"$f":"IF(LEN('Honorarlønnet 9'!$A$4)>0,\"Ja\",\"\")","v":""},{"$f":"IF('Honorarlønnet 9'!$E$7=\"Ja\",\"Sender faktura\",+'Honorarlønnet 9'!$B$7)","v":0},null,{"$f":"+'Delkursusleder 1'!$B$23","v":"00:00:00"},2510,{"$f":"+Samlingsark!M16","v":0},null,1,null,null,{"$f":"'Delkursusleder 1'!$B$8","v":"[vælg fra liste]"},null,null,1,{"$f":"+Samlingsark!$D$4","v":"Kursusnummer findes automatisk efter du har indtastet speciale/kursusnavn"},{"$f":"IF(Samlingsark!M16>0.1,'Adm.ark satser'!$D$4,0)","v":0}]
[{"$f":"IF(LEN('Honorarlønnet 10'!$A$4)>0,\"Ja\",\"\")","v":""},{"$f":"IF('Honorarlønnet 10'!$E$7=\"Ja\",\"Sender faktura\",+'Honorarlønnet 10'!$B$7)","v":0},null,{"$f":"+'Delkursusleder 1'!$B$23","v":"00:00:00"},2510,{"$f":"+Samlingsark!K17","v":0},null,1,null,null,{"$f":"'Delkursusleder 1'!$B$8","v":"[vælg fra liste]"},null,null,1,{"$f":"+Samlingsark!$D$4","v":"Kursusnummer findes automatisk efter du har indtastet speciale/kursusnavn"},{"$f":"IF(Samlingsark!K17>0.1,'Adm.ark satser'!$D$2,0)","v":0}]
[{"$f":"IF(LEN('Honorarlønnet 10'!$A$4)>0,\"Ja\",\"\")","v":""},{"$f":"IF('Honorarlønnet 10'!$E$7=\"Ja\",\"Sender faktura\",+'Honorarlønnet 10'!$B$7)","v":0},null,{"$f":"+'Delkursusleder 1'!$B$23","v":"00:00:00"},2510,{"$f":"+Samlingsark!L17","v":0},null,1,null,null,{"$f":"'Delkursusleder 1'!$B$8","v":"[vælg fra liste]"},null,null,1,{"$f":"+Samlingsark!$D$4","v":"Kursusnummer findes automatisk efter du har indtastet speciale/kursusnavn"},{"$f":"IF(Samlingsark!L17>0.1,'Adm.ark satser'!$D$3,0)","v":0}]
[{"$f":"IF(LEN('Honorarlønnet 10'!$A$4)>0,\"Ja\",\"\")","v":""},{"$f":"IF('Honorarlønnet 10'!$E$7=\"Ja\",\"Sender faktura\",+'Honorarlønnet 10'!$B$7)","v":0},null,{"$f":"+'Delkursusleder 1'!$B$23","v":"00:00:00"},2510,{"$f":"+Samlingsark!M17","v":0},null,1,null,null,{"$f":"'Delkursusleder 1'!$B$8","v":"[vælg fra liste]"},null,null,1,{"$f":"+Samlingsark!$D$4","v":"Kursusnummer findes automatisk efter du har indtastet speciale/kursusnavn"},{"$f":"IF(Samlingsark!M17>0.1,'Adm.ark satser'!$D$4,0)","v":0}]
[{"$f":"IF(LEN('Honorarlønnet 11'!$A$4)>0,\"Ja\",\"\")","v":""},{"$f":"IF('Honorarlønnet 11'!$E$7=\"Ja\",\"Sender faktura\",+'Honorarlønnet 11'!$B$7)","v":0},null,{"$f":"+'Delkursusleder 1'!$B$23","v":"00:00:00"},2510,{"$f":"+Samlingsark!K18","v":0},null,1,null,null,{"$f":"'Delkursusleder 1'!$B$8","v":"[vælg fra liste]"},null,null,1,{"$f":"+Samlingsark!$D$4","v":"Kursusnummer findes automatisk efter du har indtastet speciale/kursusnavn"},{"$f":"IF(Samlingsark!K18>0.1,'Adm.ark satser'!$D$2,0)","v":0}]
[{"$f":"IF(LEN('Honorarlønnet 11'!$A$4)>0,\"Ja\",\"\")","v":""},{"$f":"IF('Honorarlønnet 11'!$E$7=\"Ja\",\"Sender faktura\",+'Honorarlønnet 11'!$B$7)","v":0},null,{"$f":"+'Delkursusleder 1'!$B$23","v":"00:00:00"},2510,{"$f":"+Samlingsark!L18","v":0},null,1,null,null,{"$f":"'Delkursusleder 1'!$B$8","v":"[vælg fra liste]"},null,null,1,{"$f":"+Samlingsark!$D$4","v":"Kursusnummer findes automatisk efter du har indtastet speciale/kursusnavn"},{"$f":"IF(Samlingsark!L18>0.1,'Adm.ark satser'!$D$3,0)","v":0}]
[{"$f":"IF(LEN('Honorarlønnet 11'!$A$4)>0,\"Ja\",\"\")","v":""},{"$f":"IF('Honorarlønnet 11'!$E$7=\"Ja\",\"Sender faktura\",+'Honorarlønnet 11'!$B$7)","v":0},null,{"$f":"+'Delkursusleder 1'!$B$23","v":"00:00:00"},2510,{"$f":"+Samlingsark!M18","v":0},null,1,null,null,{"$f":"'Delkursusleder 1'!$B$8","v":"[vælg fra liste]"},null,null,1,{"$f":"+Samlingsark!$D$4","v":"Kursusnummer findes automatisk efter du har indtastet speciale/kursusnavn"},{"$f":"IF(Samlingsark!M18>0.1,'Adm.ark satser'!$D$4,0)","v":0}]
[{"$f":"IF(LEN('Honorarlønnet 12'!$A$4)>0,\"Ja\",\"\")","v":""},{"$f":"IF('Honorarlønnet 12'!$E$7=\"Ja\",\"Sender faktura\",+'Honorarlønnet 12'!$B$7)","v":0},null,{"$f":"+'Delkursusleder 1'!$B$23","v":"00:00:00"},2510,{"$f":"+Samlingsark!K19","v":0},null,1,null,null,{"$f":"'Delkursusleder 1'!$B$8","v":"[vælg fra liste]"},null,null,1,{"$f":"+Samlingsark!$D$4","v":"Kursusnummer findes automatisk efter du har indtastet speciale/kursusnavn"},{"$f":"IF(Samlingsark!K19>0.1,'Adm.ark satser'!$D$2,0)","v":0}]
[{"$f":"IF(LEN('Honorarlønnet 12'!$A$4)>0,\"Ja\",\"\")","v":""},{"$f":"IF('Honorarlønnet 12'!$E$7=\"Ja\",\"Sender faktura\",+'Honorarlønnet 12'!$B$7)","v":0},null,{"$f":"+'Delkursusleder 1'!$B$23","v":"00:00:00"},2510,{"$f":"+Samlingsark!L19","v":0},null,1,null,null,{"$f":"'Delkursusleder 1'!$B$8","v":"[vælg fra liste]"},null,null,1,{"$f":"+Samlingsark!$D$4","v":"Kursusnummer findes automatisk efter du har indtastet speciale/kursusnavn"},{"$f":"IF(Samlingsark!L19>0.1,'Adm.ark satser'!$D$3,0)","v":0}]
[{"$f":"IF(LEN('Honorarlønnet 12'!$A$4)>0,\"Ja\",\"\")","v":""},{"$f":"IF('Honorarlønnet 12'!$E$7=\"Ja\",\"Sender faktura\",+'Honorarlønnet 12'!$B$7)","v":0},null,{"$f":"+'Delkursusleder 1'!$B$23","v":"00:00:00"},2510,{"$f":"+Samlingsark!M19","v":0},null,1,null,null,{"$f":"'Delkursusleder 1'!$B$8","v":"[vælg fra liste]"},null,null,1,{"$f":"+Samlingsark!$D$4","v":"Kursusnummer findes automatisk efter du har indtastet speciale/kursusnavn"},{"$f":"IF(Samlingsark!M19>0.1,'Adm.ark satser'!$D$4,0)","v":0}]
[{"$f":"IF(LEN('Honorarlønnet 13'!$A$4)>0,\"Ja\",\"\")","v":""},{"$f":"IF('Honorarlønnet 13'!$E$7=\"Ja\",\"Sender faktura\",+'Honorarlønnet 13'!$B$7)","v":0},null,{"$f":"+'Delkursusleder 1'!$B$23","v":"00:00:00"},2510,{"$f":"+Samlingsark!K20","v":0},null,1,null,null,{"$f":"'Delkursusleder 1'!$B$8","v":"[vælg fra liste]"},null,null,1,{"$f":"+Samlingsark!$D$4","v":"Kursusnummer findes automatisk efter du har indtastet speciale/kursusnavn"},{"$f":"IF(Samlingsark!K20>0.1,'Adm.ark satser'!$D$2,0)","v":0}]
[{"$f":"IF(LEN('Honorarlønnet 13'!$A$4)>0,\"Ja\",\"\")","v":""},{"$f":"IF('Honorarlønnet 13'!$E$7=\"Ja\",\"Sender faktura\",+'Honorarlønnet 13'!$B$7)","v":0},null,{"$f":"+'Delkursusleder 1'!$B$23","v":"00:00:00"},2510,{"$f":"+Samlingsark!L20","v":0},null,1,null,null,{"$f":"'Delkursusleder 1'!$B$8","v":"[vælg fra liste]"},null,null,1,{"$f":"+Samlingsark!$D$4","v":"Kursusnummer findes automatisk efter du har indtastet speciale/kursusnavn"},{"$f":"IF(Samlingsark!L20>0.1,'Adm.ark satser'!$D$3,0)","v":0}]
[{"$f":"IF(LEN('Honorarlønnet 13'!$A$4)>0,\"Ja\",\"\")","v":""},{"$f":"IF('Honorarlønnet 13'!$E$7=\"Ja\",\"Sender faktura\",+'Honorarlønnet 13'!$B$7)","v":0},null,{"$f":"+'Delkursusleder 1'!$B$23","v":"00:00:00"},2510,{"$f":"+Samlingsark!M20","v":0},null,1,null,null,{"$f":"'Delkursusleder 1'!$B$8","v":"[vælg fra liste]"},null,null,1,{"$f":"+Samlingsark!$D$4","v":"Kursusnummer findes automatisk efter du har indtastet speciale/kursusnavn"},{"$f":"IF(Samlingsark!M20>0.1,'Adm.ark satser'!$D$4,0)","v":0}]
[{"$f":"IF(LEN('Honorarlønnet 14'!$A$4)>0,\"Ja\",\"\")","v":""},{"$f":"IF('Honorarlønnet 14'!$E$7=\"Ja\",\"Sender faktura\",+'Honorarlønnet 14'!$B$7)","v":0},null,{"$f":"+'Delkursusleder 1'!$B$23","v":"00:00:00"},2510,{"$f":"+Samlingsark!K21","v":0},null,1,null,null,{"$f":"'Delkursusleder 1'!$B$8","v":"[vælg fra liste]"},null,null,1,{"$f":"+Samlingsark!$D$4","v":"Kursusnummer findes automatisk efter du har indtastet speciale/kursusnavn"},{"$f":"IF(Samlingsark!K21>0.1,'Adm.ark satser'!$D$2,0)","v":0}]
[{"$f":"IF(LEN('Honorarlønnet 14'!$A$4)>0,\"Ja\",\"\")","v":""},{"$f":"IF('Honorarlønnet 14'!$E$7=\"Ja\",\"Sender faktura\",+'Honorarlønnet 14'!$B$7)","v":0},null,{"$f":"+'Delkursusleder 1'!$B$23","v":"00:00:00"},2510,{"$f":"+Samlingsark!L21","v":0},null,1,null,null,{"$f":"'Delkursusleder 1'!$B$8","v":"[vælg fra liste]"},null,null,1,{"$f":"+Samlingsark!$D$4","v":"Kursusnummer findes automatisk efter du har indtastet speciale/kursusnavn"},{"$f":"IF(Samlingsark!L21>0.1,'Adm.ark satser'!$D$3,0)","v":0}]
[{"$f":"IF(LEN('Honorarlønnet 14'!$A$4)>0,\"Ja\",\"\")","v":""},{"$f":"IF('Honorarlønnet 14'!$E$7=\"Ja\",\"Sender faktura\",+'Honorarlønnet 14'!$B$7)","v":0},null,{"$f":"+'Delkursusleder 1'!$B$23","v":"00:00:00"},2510,{"$f":"+Samlingsark!M21","v":0},null,1,null,null,{"$f":"'Delkursusleder 1'!$B$8","v":"[vælg fra liste]"},null,null,1,{"$f":"+Samlingsark!$D$4","v":"Kursusnummer findes automatisk efter du har indtastet speciale/kursusnavn"},{"$f":"IF(Samlingsark!M21>0.1,'Adm.ark satser'!$D$4,0)","v":0}]
[{"$f":"IF(LEN('Honorarlønnet 15'!$A$4)>0,\"Ja\",\"\")","v":""},{"$f":"IF('Honorarlønnet 15'!$E$7=\"Ja\",\"Sender faktura\",+'Honorarlønnet 15'!$B$7)","v":0},null,{"$f":"+'Delkursusleder 1'!$B$23","v":"00:00:00"},2510,{"$f":"+Samlingsark!K22","v":0},null,1,null,null,{"$f":"'Delkursusleder 1'!$B$8","v":"[vælg fra liste]"},null,null,1,{"$f":"+Samlingsark!$D$4","v":"Kursusnummer findes automatisk efter du har indtastet speciale/kursusnavn"},{"$f":"IF(Samlingsark!K22>0.1,'Adm.ark satser'!$D$2,0)","v":0}]
[{"$f":"IF(LEN('Honorarlønnet 15'!$A$4)>0,\"Ja\",\"\")","v":""},{"$f":"IF('Honorarlønnet 15'!$E$7=\"Ja\",\"Sender faktura\",+'Honorarlønnet 15'!$B$7)","v":0},null,{"$f":"+'Delkursusleder 1'!$B$23","v":"00:00:00"},2510,{"$f":"+Samlingsark!L22","v":0},null,1,null,null,{"$f":"'Delkursusleder 1'!$B$8","v":"[vælg fra liste]"},null,null,1,{"$f":"+Samlingsark!$D$4","v":"Kursusnummer findes automatisk efter du har indtastet speciale/kursusnavn"},{"$f":"IF(Samlingsark!L22>0.1,'Adm.ark satser'!$D$3,0)","v":0}]
[{"$f":"IF(LEN('Honorarlønnet 15'!$A$4)>0,\"Ja\",\"\")","v":""},{"$f":"IF('Honorarlønnet 15'!$E$7=\"Ja\",\"Sender faktura\",+'Honorarlønnet 15'!$B$7)","v":0},null,{"$f":"+'Delkursusleder 1'!$B$23","v":"00:00:00"},2510,{"$f":"+Samlingsark!M22","v":0},null,1,null,null,{"$f":"'Delkursusleder 1'!$B$8","v":"[vælg fra liste]"},null,null,1,{"$f":"+Samlingsark!$D$4","v":"Kursusnummer findes automatisk efter du har indtastet speciale/kursusnavn"},{"$f":"IF(Samlingsark!M22>0.1,'Adm.ark satser'!$D$4,0)","v":0}]

{"sheet":"Lønadm_backup","index":25,"n_rows":56,"n_cols":20,"rows_kept":56,"cut":false,"hidden":true,"merged":[]}
["CPR fejl?","Cpr.nr.*","Løbenr.","Dato*","Løndelsnr.*","Felt1*","Felt2","Felt3","Felt4","Kreditorkodenr.","Afvigende løndelstekst","Bogf.kreds+delregnskab (8 cifre)","Artskonto (4 cifre)","Segment 1","Segment 2","Segment 3","Segment 4","Segment 5","Segment 6","Navn"]
[{"$f":"IF(LEN('Delkursusleder 1'!$C$16)>0,\"Ja\",\"\")","v":""},{"$f":"IF('Delkursusleder 1'!$B$19=\"Ja\",\"Sender faktura\",'Delkursusleder 1'!$B$16)","v":0},null,{"$f":"+'Delkursusleder 1'!$B$23","v":"00:00:00"},2510,{"$f":"Samlingsark!I4","v":0},null,1,null,null,{"$f":"'Delkursusleder 1'!$B$8","v":"[vælg fra liste]"},null,null,1,{"$f":"+Samlingsark!$D$4","v":"Kursusnummer findes automatisk efter du har indtastet speciale/kursusnavn"},{"$f":"IF(Samlingsark!I4>0.1,'Adm.ark satser'!$D$5,0)","v":0},null,null,null,"Delkursusleder 1"]
[{"$f":"IF(LEN('Delkursusleder 1'!$C$16)>0,\"Ja\",\"\")","v":""},{"$f":"IF('Delkursusleder 1'!$B$19=\"Ja\",\"Sender faktura\",'Delkursusleder 1'!$B$16)","v":0},null,{"$f":"+'Delkursusleder 1'!$B$23","v":"00:00:00"},2510,{"$f":"+Samlingsark!K4","v":0},null,1,null,null,{"$f":"'Delkursusleder 1'!$B$8","v":"[vælg fra liste]"},null,null,1,{"$f":"+Samlingsark!$D$4","v":"Kursusnummer findes automatisk efter du har indtastet speciale/kursusnavn"},{"$f":"IF(Samlingsark!K4>0.1,'Adm.ark satser'!$D$2,0)","v":0},null,null,null,"Delkursusleder 1"]
[{"$f":"IF(LEN('Delkursusleder 1'!$C$16)>0,\"Ja\",\"\")","v":""},{"$f":"IF('Delkursusleder 1'!$B$19=\"Ja\",\"Sender faktura\",'Delkursusleder 1'!$B$16)","v":0},null,{"$f":"+'Delkursusleder 1'!$B$23","v":"00:00:00"},2510,{"$f":"+Samlingsark!L4","v":0},null,1,null,null,{"$f":"'Delkursusleder 1'!$B$8","v":"[vælg fra liste]"},null,null,1,{"$f":"+Samlingsark!$D$4","v":"Kursusnummer findes automatisk efter du har indtastet speciale/kursusnavn"},{"$f":"IF(Samlingsark!L4>0.1,'Adm.ark satser'!$D$3,0)","v":0},null,null,null,"Delkursusleder 1"]
[{"$f":"IF(LEN('Delkursusleder 1'!$C$16)>0,\"Ja\",\"\")","v":""},{"$f":"IF('Delkursusleder 1'!$B$19=\"Ja\",\"Sender faktura\",'Delkursusleder 1'!$B$16)","v":0},null,{"$f":"+'Delkursusleder 1'!$B$23","v":"00:00:00"},2510,{"$f":"+Samlingsark!M4","v":0},null,1,null,null,{"$f":"'Delkursusleder 1'!$B$8","v":"[vælg fra liste]"},null,null,1,{"$f":"+Samlingsark!$D$4","v":"Kursusnummer findes automatisk efter du har indtastet speciale/kursusnavn"},{"$f":"IF(Samlingsark!M4>0.1,'Adm.ark satser'!$D$4,0)","v":0},null,null,null,"Delkursusleder 1"]
[{"$f":"IF(LEN('(Evt. delkursusleder 2)'!$A$11)>0,\"Ja\",\"\")","v":""},{"$f":"IF('(Evt. delkursusleder 2)'!$E$8=\"Ja\",\"Sender faktura\",'(Evt. delkursusleder 2)'!$B$8)","v":0},null,{"$f":"+'Delkursusleder 1'!$B$23","v":"00:00:00"},2510,{"$f":"Samlingsark!I5","v":0},null,1,null,null,{"$f":"'Delkursusleder 1'!$B$8","v":"[vælg fra liste]"},null,null,1,{"$f":"+Samlingsark!$D$4","v":"Kursusnummer findes automatisk efter du har indtastet speciale/kursusnavn"},{"$f":"IF(Samlingsark!I5>0.1,'Adm.ark satser'!$D$5,0)","v":0},null,null,null,"Evt. delkursusleder 2"]
[{"$f":"IF(LEN('(Evt. delkursusleder 2)'!$A$11)>0,\"Ja\",\"\")","v":""},{"$f":"IF('(Evt. delkursusleder 2)'!$E$8=\"Ja\",\"Sender faktura\",'(Evt. delkursusleder 2)'!$B$8)","v":0},null,{"$f":"+'Delkursusleder 1'!$B$23","v":"00:00:00"},2510,{"$f":"Samlingsark!K5","v":0},null,1,null,null,{"$f":"'Delkursusleder 1'!$B$8","v":"[vælg fra liste]"},null,null,1,{"$f":"+Samlingsark!$D$4","v":"Kursusnummer findes automatisk efter du har indtastet speciale/kursusnavn"},{"$f":"IF(Samlingsark!K5>0.1,'Adm.ark satser'!$D$2,0)","v":0},null,null,null,"Evt. delkursusleder 2"]
[{"$f":"IF(LEN('(Evt. delkursusleder 2)'!$A$11)>0,\"Ja\",\"\")","v":""},{"$f":"IF('(Evt. delkursusleder 2)'!$E$8=\"Ja\",\"Sender faktura\",'(Evt. delkursusleder 2)'!$B$8)","v":0},null,{"$f":"+'Delkursusleder 1'!$B$23","v":"00:00:00"},2510,{"$f":"Samlingsark!L5","v":0},null,1,null,null,{"$f":"'Delkursusleder 1'!$B$8","v":"[vælg fra liste]"},null,null,1,{"$f":"+Samlingsark!$D$4","v":"Kursusnummer findes automatisk efter du har indtastet speciale/kursusnavn"},{"$f":"IF(Samlingsark!L5>0.1,'Adm.ark satser'!$D$3,0)","v":0},null,null,null,"Evt. delkursusleder 2"]
[{"$f":"IF(LEN('(Evt. delkursusleder 2)'!$A$11)>0,\"Ja\",\"\")","v":""},{"$f":"IF('(Evt. delkursusleder 2)'!$E$8=\"Ja\",\"Sender faktura\",'(Evt. delkursusleder 2)'!$B$8)","v":0},null,{"$f":"+'Delkursusleder 1'!$B$23","v":"00:00:00"},2510,{"$f":"Samlingsark!M5","v":0},null,1,null,null,{"$f":"'Delkursusleder 1'!$B$8","v":"[vælg fra liste]"},null,null,1,{"$f":"+Samlingsark!$D$4","v":"Kursusnummer findes automatisk efter du har indtastet speciale/kursusnavn"},{"$f":"IF(Samlingsark!M5>0.1,'Adm.ark satser'!$D$4,0)","v":0},null,null,null,"Evt. delkursusleder 2"]
[{"$f":"IF(LEN(Sekretær!$A$4)>0,\"Ja\",\"\")","v":""},{"$f":"IF(Sekretær!H7=\"Ja\",\"Sender faktura\",Sekretær!B7)","v":0},null,{"$f":"+'Delkursusleder 1'!$B$23","v":"00:00:00"},2510,{"$f":"+Samlingsark!J7","v":0},null,1,null,null,{"$f":"'Delkursusleder 1'!$B$8","v":"[vælg fra liste]"},null,null,1,{"$f":"+Samlingsark!$D$4","v":"Kursusnummer findes automatisk efter du har indtastet speciale/kursusnavn"},{"$f":"IF(Samlingsark!J7>0.1,'Adm.ark satser'!$D$6,0)","v":0},null,null,null,"Sekretær"]
[{"$f":"IF(LEN(Hovedkursusleder!$A$4)>0,\"Ja\",\"\")","v":""},{"$f":"IF(Hovedkursusleder!I11=\"Ja\",\"Sender faktura\",+Hovedkursusleder!B7)","v":0},null,{"$f":"+'Delkursusleder 1'!$B$23","v":"00:00:00"},2510,{"$f":"+Samlingsark!J6","v":0},null,1,null,null,{"$f":"'Delkursusleder 1'!$B$8","v":"[vælg fra liste]"},null,null,1,{"$f":"+Samlingsark!$D$4","v":"Kursusnummer findes automatisk efter du har indtastet speciale/kursusnavn"},{"$f":"IF(Samlingsark!J6>0.1,'Adm.ark satser'!$D$6,0)","v":0},null,null,null,"Hovedkursusleder"]
[{"$f":"IF(LEN('Honorarlønnet 1'!$A$4)>0,\"Ja\",\"\")","v":""},{"$f":"IF('Honorarlønnet 1'!$E$7=\"Ja\",\"Sender faktura\",+'Honorarlønnet 1'!$B$7)","v":0},null,{"$f":"+'Delkursusleder 1'!$B$23","v":"00:00:00"},2510,{"$f":"+Samlingsark!K8","v":0},null,1,null,null,{"$f":"'Delkursusleder 1'!$B$8","v":"[vælg fra liste]"},null,null,1,{"$f":"+Samlingsark!$D$4","v":"Kursusnummer findes automatisk efter du har indtastet speciale/kursusnavn"},{"$f":"IF(Samlingsark!K8>0.1,'Adm.ark satser'!$D$2,0)","v":0},null,null,null,{"$f":"'Honorarlønnet 1'!$B$5","v":0}]
[{"$f":"IF(LEN('Honorarlønnet 1'!$A$4)>0,\"Ja\",\"\")","v":""},{"$f":"IF('Honorarlønnet 1'!$E$7=\"Ja\",\"Sender faktura\",+'Honorarlønnet 1'!$B$7)","v":0},null,{"$f":"+'Delkursusleder 1'!$B$23","v":"00:00:00"},2510,{"$f":"+Samlingsark!L8","v":0},null,1,null,null,{"$f":"'Delkursusleder 1'!$B$8","v":"[vælg fra liste]"},null,null,1,{"$f":"+Samlingsark!$D$4","v":"Kursusnummer findes automatisk efter du har indtastet speciale/kursusnavn"},{"$f":"IF(Samlingsark!L8>0.1,'Adm.ark satser'!$D$3,0)","v":0},null,null,null,{"$f":"'Honorarlønnet 1'!$B$5","v":0}]
[{"$f":"IF(LEN('Honorarlønnet 1'!$A$4)>0,\"Ja\",\"\")","v":""},{"$f":"IF('Honorarlønnet 1'!$E$7=\"Ja\",\"Sender faktura\",+'Honorarlønnet 1'!$B$7)","v":0},null,{"$f":"+'Delkursusleder 1'!$B$23","v":"00:00:00"},2510,{"$f":"+Samlingsark!M8","v":0},null,1,null,null,{"$f":"'Delkursusleder 1'!$B$8","v":"[vælg fra liste]"},null,null,1,{"$f":"+Samlingsark!$D$4","v":"Kursusnummer findes automatisk efter du har indtastet speciale/kursusnavn"},{"$f":"IF(Samlingsark!M8>0.1,'Adm.ark satser'!$D$4,0)","v":0},null,null,null,{"$f":"'Honorarlønnet 1'!$B$5","v":0}]
[{"$f":"IF(LEN('Honorarlønnet 2'!$A$4)>0,\"Ja\",\"\")","v":""},{"$f":"IF('Honorarlønnet 2'!$E$7=\"Ja\",\"Sender faktura\",+'Honorarlønnet 2'!$B$7)","v":0},null,{"$f":"+'Delkursusleder 1'!$B$23","v":"00:00:00"},2510,{"$f":"+Samlingsark!K9","v":0},null,1,null,null,{"$f":"'Delkursusleder 1'!$B$8","v":"[vælg fra liste]"},null,null,1,{"$f":"+Samlingsark!$D$4","v":"Kursusnummer findes automatisk efter du har indtastet speciale/kursusnavn"},{"$f":"IF(Samlingsark!K9>0.1,'Adm.ark satser'!$D$2,0)","v":0},null,null,null,{"$f":"'Honorarlønnet 2'!$B$5","v":0}]
[{"$f":"IF(LEN('Honorarlønnet 2'!$A$4)>0,\"Ja\",\"\")","v":""},{"$f":"IF('Honorarlønnet 2'!$E$7=\"Ja\",\"Sender faktura\",+'Honorarlønnet 2'!$B$7)","v":0},null,{"$f":"+'Delkursusleder 1'!$B$23","v":"00:00:00"},2510,{"$f":"+Samlingsark!L9","v":0},null,1,null,null,{"$f":"'Delkursusleder 1'!$B$8","v":"[vælg fra liste]"},null,null,1,{"$f":"+Samlingsark!$D$4","v":"Kursusnummer findes automatisk efter du har indtastet speciale/kursusnavn"},{"$f":"IF(Samlingsark!L9>0.1,'Adm.ark satser'!$D$3,0)","v":0},null,null,null,{"$f":"'Honorarlønnet 2'!$B$5","v":0}]
[{"$f":"IF(LEN('Honorarlønnet 2'!$A$4)>0,\"Ja\",\"\")","v":""},{"$f":"IF('Honorarlønnet 2'!$E$7=\"Ja\",\"Sender faktura\",+'Honorarlønnet 2'!$B$7)","v":0},null,{"$f":"+'Delkursusleder 1'!$B$23","v":"00:00:00"},2510,{"$f":"+Samlingsark!M9","v":0},null,1,null,null,{"$f":"'Delkursusleder 1'!$B$8","v":"[vælg fra liste]"},null,null,1,{"$f":"+Samlingsark!$D$4","v":"Kursusnummer findes automatisk efter du har indtastet speciale/kursusnavn"},{"$f":"IF(Samlingsark!M9>0.1,'Adm.ark satser'!$D$4,0)","v":0},null,null,null,{"$f":"'Honorarlønnet 2'!$B$5","v":0}]
[{"$f":"IF(LEN('Honorarlønnet 3'!$A$4)>0,\"Ja\",\"\")","v":""},{"$f":"IF('Honorarlønnet 3'!$E$7=\"Ja\",\"Sender faktura\",+'Honorarlønnet 3'!$B$7)","v":0},null,{"$f":"+'Delkursusleder 1'!$B$23","v":"00:00:00"},2510,{"$f":"+Samlingsark!K10","v":0},null,1,null,null,{"$f":"'Delkursusleder 1'!$B$8","v":"[vælg fra liste]"},null,null,1,{"$f":"+Samlingsark!$D$4","v":"Kursusnummer findes automatisk efter du har indtastet speciale/kursusnavn"},{"$f":"IF(Samlingsark!K10>0.1,'Adm.ark satser'!$D$2,0)","v":0},null,null,null,{"$f":"'Honorarlønnet 3'!$B$5","v":0}]
[{"$f":"IF(LEN('Honorarlønnet 3'!$A$4)>0,\"Ja\",\"\")","v":""},{"$f":"IF('Honorarlønnet 3'!$E$7=\"Ja\",\"Sender faktura\",+'Honorarlønnet 3'!$B$7)","v":0},null,{"$f":"+'Delkursusleder 1'!$B$23","v":"00:00:00"},2510,{"$f":"+Samlingsark!L10","v":0},null,1,null,null,{"$f":"'Delkursusleder 1'!$B$8","v":"[vælg fra liste]"},null,null,1,{"$f":"+Samlingsark!$D$4","v":"Kursusnummer findes automatisk efter du har indtastet speciale/kursusnavn"},{"$f":"IF(Samlingsark!L10>0.1,'Adm.ark satser'!$D$3,0)","v":0},null,null,null,{"$f":"'Honorarlønnet 3'!$B$5","v":0}]
[{"$f":"IF(LEN('Honorarlønnet 3'!$A$4)>0,\"Ja\",\"\")","v":""},{"$f":"IF('Honorarlønnet 3'!$E$7=\"Ja\",\"Sender faktura\",+'Honorarlønnet 3'!$B$7)","v":0},null,{"$f":"+'Delkursusleder 1'!$B$23","v":"00:00:00"},2510,{"$f":"+Samlingsark!M10","v":0},null,1,null,null,{"$f":"'Delkursusleder 1'!$B$8","v":"[vælg fra liste]"},null,null,1,{"$f":"+Samlingsark!$D$4","v":"Kursusnummer findes automatisk efter du har indtastet speciale/kursusnavn"},{"$f":"IF(Samlingsark!M10>0.1,'Adm.ark satser'!$D$4,0)","v":0},null,null,null,{"$f":"'Honorarlønnet 3'!$B$5","v":0}]
[{"$f":"IF(LEN('Honorarlønnet 4'!$A$4)>0,\"Ja\",\"\")","v":""},{"$f":"IF('Honorarlønnet 4'!$E$7=\"Ja\",\"Sender faktura\",+'Honorarlønnet 4'!$B$7)","v":0},null,{"$f":"+'Delkursusleder 1'!$B$23","v":"00:00:00"},2510,{"$f":"+Samlingsark!K11","v":0},null,1,null,null,{"$f":"'Delkursusleder 1'!$B$8","v":"[vælg fra liste]"},null,null,1,{"$f":"+Samlingsark!$D$4","v":"Kursusnummer findes automatisk efter du har indtastet speciale/kursusnavn"},{"$f":"IF(Samlingsark!K11>0.1,'Adm.ark satser'!$D$2,0)","v":0},null,null,null,{"$f":"'Honorarlønnet 4'!$B$5","v":0}]
[{"$f":"IF(LEN('Honorarlønnet 4'!$A$4)>0,\"Ja\",\"\")","v":""},{"$f":"IF('Honorarlønnet 4'!$E$7=\"Ja\",\"Sender faktura\",+'Honorarlønnet 4'!$B$7)","v":0},null,{"$f":"+'Delkursusleder 1'!$B$23","v":"00:00:00"},2510,{"$f":"+Samlingsark!L11","v":0},null,1,null,null,{"$f":"'Delkursusleder 1'!$B$8","v":"[vælg fra liste]"},null,null,1,{"$f":"+Samlingsark!$D$4","v":"Kursusnummer findes automatisk efter du har indtastet speciale/kursusnavn"},{"$f":"IF(Samlingsark!L11>0.1,'Adm.ark satser'!$D$3,0)","v":0},null,null,null,{"$f":"'Honorarlønnet 4'!$B$5","v":0}]
[{"$f":"IF(LEN('Honorarlønnet 4'!$A$4)>0,\"Ja\",\"\")","v":""},{"$f":"IF('Honorarlønnet 4'!$E$7=\"Ja\",\"Sender faktura\",+'Honorarlønnet 4'!$B$7)","v":0},null,{"$f":"+'Delkursusleder 1'!$B$23","v":"00:00:00"},2510,{"$f":"+Samlingsark!M11","v":0},null,1,null,null,{"$f":"'Delkursusleder 1'!$B$8","v":"[vælg fra liste]"},null,null,1,{"$f":"+Samlingsark!$D$4","v":"Kursusnummer findes automatisk efter du har indtastet speciale/kursusnavn"},{"$f":"IF(Samlingsark!M11>0.1,'Adm.ark satser'!$D$4,0)","v":0},null,null,null,{"$f":"'Honorarlønnet 4'!$B$5","v":0}]
[{"$f":"IF(LEN('Honorarlønnet 5'!$A$4)>0,\"Ja\",\"\")","v":""},{"$f":"IF('Honorarlønnet 5'!$E$7=\"Ja\",\"Sender faktura\",+'Honorarlønnet 5'!$B$7)","v":0},null,{"$f":"+'Delkursusleder 1'!$B$23","v":"00:00:00"},2510,{"$f":"+Samlingsark!K12","v":0},null,1,null,null,{"$f":"'Delkursusleder 1'!$B$8","v":"[vælg fra liste]"},null,null,1,{"$f":"+Samlingsark!$D$4","v":"Kursusnummer findes automatisk efter du har indtastet speciale/kursusnavn"},{"$f":"IF(Samlingsark!K12>0.1,'Adm.ark satser'!$D$2,0)","v":0},null,null,null,{"$f":"'Honorarlønnet 5'!$B$5","v":0}]
[{"$f":"IF(LEN('Honorarlønnet 5'!$A$4)>0,\"Ja\",\"\")","v":""},{"$f":"IF('Honorarlønnet 5'!$E$7=\"Ja\",\"Sender faktura\",+'Honorarlønnet 5'!$B$7)","v":0},null,{"$f":"+'Delkursusleder 1'!$B$23","v":"00:00:00"},2510,{"$f":"+Samlingsark!L12","v":0},null,1,null,null,{"$f":"'Delkursusleder 1'!$B$8","v":"[vælg fra liste]"},null,null,1,{"$f":"+Samlingsark!$D$4","v":"Kursusnummer findes automatisk efter du har indtastet speciale/kursusnavn"},{"$f":"IF(Samlingsark!L12>0.1,'Adm.ark satser'!$D$3,0)","v":0},null,null,null,{"$f":"'Honorarlønnet 5'!$B$5","v":0}]
[{"$f":"IF(LEN('Honorarlønnet 5'!$A$4)>0,\"Ja\",\"\")","v":""},{"$f":"IF('Honorarlønnet 5'!$E$7=\"Ja\",\"Sender faktura\",+'Honorarlønnet 5'!$B$7)","v":0},null,{"$f":"+'Delkursusleder 1'!$B$23","v":"00:00:00"},2510,{"$f":"+Samlingsark!M12","v":0},null,1,null,null,{"$f":"'Delkursusleder 1'!$B$8","v":"[vælg fra liste]"},null,null,1,{"$f":"+Samlingsark!$D$4","v":"Kursusnummer findes automatisk efter du har indtastet speciale/kursusnavn"},{"$f":"IF(Samlingsark!M12>0.1,'Adm.ark satser'!$D$4,0)","v":0},null,null,null,{"$f":"'Honorarlønnet 5'!$B$5","v":0}]
[{"$f":"IF(LEN('Honorarlønnet 6'!$A$4)>0,\"Ja\",\"\")","v":""},{"$f":"IF('Honorarlønnet 6'!$E$7=\"Ja\",\"Sender faktura\",+'Honorarlønnet 6'!$B$7)","v":0},null,{"$f":"+'Delkursusleder 1'!$B$23","v":"00:00:00"},2510,{"$f":"+Samlingsark!K13","v":0},null,1,null,null,{"$f":"'Delkursusleder 1'!$B$8","v":"[vælg fra liste]"},null,null,1,{"$f":"+Samlingsark!$D$4","v":"Kursusnummer findes automatisk efter du har indtastet speciale/kursusnavn"},{"$f":"IF(Samlingsark!K13>0.1,'Adm.ark satser'!$D$2,0)","v":0},null,null,null,{"$f":"'Honorarlønnet 6'!$B$5","v":0}]
[{"$f":"IF(LEN('Honorarlønnet 6'!$A$4)>0,\"Ja\",\"\")","v":""},{"$f":"IF('Honorarlønnet 6'!$E$7=\"Ja\",\"Sender faktura\",+'Honorarlønnet 6'!$B$7)","v":0},null,{"$f":"+'Delkursusleder 1'!$B$23","v":"00:00:00"},2510,{"$f":"+Samlingsark!L13","v":0},null,1,null,null,{"$f":"'Delkursusleder 1'!$B$8","v":"[vælg fra liste]"},null,null,1,{"$f":"+Samlingsark!$D$4","v":"Kursusnummer findes automatisk efter du har indtastet speciale/kursusnavn"},{"$f":"IF(Samlingsark!L13>0.1,'Adm.ark satser'!$D$3,0)","v":0},null,null,null,{"$f":"'Honorarlønnet 6'!$B$5","v":0}]
[{"$f":"IF(LEN('Honorarlønnet 6'!$A$4)>0,\"Ja\",\"\")","v":""},{"$f":"IF('Honorarlønnet 6'!$E$7=\"Ja\",\"Sender faktura\",+'Honorarlønnet 6'!$B$7)","v":0},null,{"$f":"+'Delkursusleder 1'!$B$23","v":"00:00:00"},2510,{"$f":"+Samlingsark!M13","v":0},null,1,null,null,{"$f":"'Delkursusleder 1'!$B$8","v":"[vælg fra liste]"},null,null,1,{"$f":"+Samlingsark!$D$4","v":"Kursusnummer findes automatisk efter du har indtastet speciale/kursusnavn"},{"$f":"IF(Samlingsark!M13>0.1,'Adm.ark satser'!$D$4,0)","v":0},null,null,null,{"$f":"'Honorarlønnet 6'!$B$5","v":0}]
[{"$f":"IF(LEN('Honorarlønnet 7'!$A$4)>0,\"Ja\",\"\")","v":""},{"$f":"IF('Honorarlønnet 7'!$E$7=\"Ja\",\"Sender faktura\",+'Honorarlønnet 7'!$B$7)","v":0},null,{"$f":"+'Delkursusleder 1'!$B$23","v":"00:00:00"},2510,{"$f":"+Samlingsark!K14","v":0},null,1,null,null,{"$f":"'Delkursusleder 1'!$B$8","v":"[vælg fra liste]"},null,null,1,{"$f":"+Samlingsark!$D$4","v":"Kursusnummer findes automatisk efter du har indtastet speciale/kursusnavn"},{"$f":"IF(Samlingsark!K14>0.1,'Adm.ark satser'!$D$2,0)","v":0},null,null,null,{"$f":"'Honorarlønnet 7'!$B$5","v":0}]
[{"$f":"IF(LEN('Honorarlønnet 7'!$A$4)>0,\"Ja\",\"\")","v":""},{"$f":"IF('Honorarlønnet 7'!$E$7=\"Ja\",\"Sender faktura\",+'Honorarlønnet 7'!$B$7)","v":0},null,{"$f":"+'Delkursusleder 1'!$B$23","v":"00:00:00"},2510,{"$f":"+Samlingsark!L14","v":0},null,1,null,null,{"$f":"'Delkursusleder 1'!$B$8","v":"[vælg fra liste]"},null,null,1,{"$f":"+Samlingsark!$D$4","v":"Kursusnummer findes automatisk efter du har indtastet speciale/kursusnavn"},{"$f":"IF(Samlingsark!L14>0.1,'Adm.ark satser'!$D$3,0)","v":0},null,null,null,{"$f":"'Honorarlønnet 7'!$B$5","v":0}]
[{"$f":"IF(LEN('Honorarlønnet 7'!$A$4)>0,\"Ja\",\"\")","v":""},{"$f":"IF('Honorarlønnet 7'!$E$7=\"Ja\",\"Sender faktura\",+'Honorarlønnet 7'!$B$7)","v":0},null,{"$f":"+'Delkursusleder 1'!$B$23","v":"00:00:00"},2510,{"$f":"+Samlingsark!M14","v":0},null,1,null,null,{"$f":"'Delkursusleder 1'!$B$8","v":"[vælg fra liste]"},null,null,1,{"$f":"+Samlingsark!$D$4","v":"Kursusnummer findes automatisk efter du har indtastet speciale/kursusnavn"},{"$f":"IF(Samlingsark!M14>0.1,'Adm.ark satser'!$D$4,0)","v":0},null,null,null,{"$f":"'Honorarlønnet 7'!$B$5","v":0}]
[{"$f":"IF(LEN('Honorarlønnet 8'!$A$4)>0,\"Ja\",\"\")","v":""},{"$f":"IF('Honorarlønnet 8'!$E$7=\"Ja\",\"Sender faktura\",+'Honorarlønnet 8'!$B$7)","v":0},null,{"$f":"+'Delkursusleder 1'!$B$23","v":"00:00:00"},2510,{"$f":"+Samlingsark!K15","v":0},null,1,null,null,{"$f":"'Delkursusleder 1'!$B$8","v":"[vælg fra liste]"},null,null,1,{"$f":"+Samlingsark!$D$4","v":"Kursusnummer findes automatisk efter du har indtastet speciale/kursusnavn"},{"$f":"IF(Samlingsark!K15>0.1,'Adm.ark satser'!$D$2,0)","v":0},null,null,null,{"$f":"'Honorarlønnet 8'!$B$5","v":0}]
[{"$f":"IF(LEN('Honorarlønnet 8'!$A$4)>0,\"Ja\",\"\")","v":""},{"$f":"IF('Honorarlønnet 8'!$E$7=\"Ja\",\"Sender faktura\",+'Honorarlønnet 8'!$B$7)","v":0},null,{"$f":"+'Delkursusleder 1'!$B$23","v":"00:00:00"},2510,{"$f":"+Samlingsark!L15","v":0},null,1,null,null,{"$f":"'Delkursusleder 1'!$B$8","v":"[vælg fra liste]"},null,null,1,{"$f":"+Samlingsark!$D$4","v":"Kursusnummer findes automatisk efter du har indtastet speciale/kursusnavn"},{"$f":"IF(Samlingsark!L15>0.1,'Adm.ark satser'!$D$3,0)","v":0},null,null,null,{"$f":"'Honorarlønnet 8'!$B$5","v":0}]
[{"$f":"IF(LEN('Honorarlønnet 8'!$A$4)>0,\"Ja\",\"\")","v":""},{"$f":"IF('Honorarlønnet 8'!$E$7=\"Ja\",\"Sender faktura\",+'Honorarlønnet 8'!$B$7)","v":0},null,{"$f":"+'Delkursusleder 1'!$B$23","v":"00:00:00"},2510,{"$f":"+Samlingsark!M15","v":0},null,1,null,null,{"$f":"'Delkursusleder 1'!$B$8","v":"[vælg fra liste]"},null,null,1,{"$f":"+Samlingsark!$D$4","v":"Kursusnummer findes automatisk efter du har indtastet speciale/kursusnavn"},{"$f":"IF(Samlingsark!M15>0.1,'Adm.ark satser'!$D$4,0)","v":0},null,null,null,{"$f":"'Honorarlønnet 8'!$B$5","v":0}]
[{"$f":"IF(LEN('Honorarlønnet 9'!$A$4)>0,\"Ja\",\"\")","v":""},{"$f":"IF('Honorarlønnet 9'!$E$7=\"Ja\",\"Sender faktura\",+'Honorarlønnet 9'!$B$7)","v":0},null,{"$f":"+'Delkursusleder 1'!$B$23","v":"00:00:00"},2510,{"$f":"+Samlingsark!K16","v":0},null,1,null,null,{"$f":"'Delkursusleder 1'!$B$8","v":"[vælg fra liste]"},null,null,1,{"$f":"+Samlingsark!$D$4","v":"Kursusnummer findes automatisk efter du har indtastet speciale/kursusnavn"},{"$f":"IF(Samlingsark!K16>0.1,'Adm.ark satser'!$D$2,0)","v":0},null,null,null,{"$f":"'Honorarlønnet 9'!$B$5","v":0}]
[{"$f":"IF(LEN('Honorarlønnet 9'!$A$4)>0,\"Ja\",\"\")","v":""},{"$f":"IF('Honorarlønnet 9'!$E$7=\"Ja\",\"Sender faktura\",+'Honorarlønnet 9'!$B$7)","v":0},null,{"$f":"+'Delkursusleder 1'!$B$23","v":"00:00:00"},2510,{"$f":"+Samlingsark!L16","v":0},null,1,null,null,{"$f":"'Delkursusleder 1'!$B$8","v":"[vælg fra liste]"},null,null,1,{"$f":"+Samlingsark!$D$4","v":"Kursusnummer findes automatisk efter du har indtastet speciale/kursusnavn"},{"$f":"IF(Samlingsark!L16>0.1,'Adm.ark satser'!$D$3,0)","v":0},null,null,null,{"$f":"'Honorarlønnet 9'!$B$5","v":0}]
[{"$f":"IF(LEN('Honorarlønnet 9'!$A$4)>0,\"Ja\",\"\")","v":""},{"$f":"IF('Honorarlønnet 9'!$E$7=\"Ja\",\"Sender faktura\",+'Honorarlønnet 9'!$B$7)","v":0},null,{"$f":"+'Delkursusleder 1'!$B$23","v":"00:00:00"},2510,{"$f":"+Samlingsark!M16","v":0},null,1,null,null,{"$f":"'Delkursusleder 1'!$B$8","v":"[vælg fra liste]"},null,null,1,{"$f":"+Samlingsark!$D$4","v":"Kursusnummer findes automatisk efter du har indtastet speciale/kursusnavn"},{"$f":"IF(Samlingsark!M16>0.1,'Adm.ark satser'!$D$4,0)","v":0},null,null,null,{"$f":"'Honorarlønnet 9'!$B$5","v":0}]
[{"$f":"IF(LEN('Honorarlønnet 10'!$A$4)>0,\"Ja\",\"\")","v":""},{"$f":"IF('Honorarlønnet 10'!$E$7=\"Ja\",\"Sender faktura\",+'Honorarlønnet 10'!$B$7)","v":0},null,{"$f":"+'Delkursusleder 1'!$B$23","v":"00:00:00"},2510,{"$f":"+Samlingsark!K17","v":0},null,1,null,null,{"$f":"'Delkursusleder 1'!$B$8","v":"[vælg fra liste]"},null,null,1,{"$f":"+Samlingsark!$D$4","v":"Kursusnummer findes automatisk efter du har indtastet speciale/kursusnavn"},{"$f":"IF(Samlingsark!K17>0.1,'Adm.ark satser'!$D$2,0)","v":0},null,null,null,{"$f":"'Honorarlønnet 10'!$B$5","v":0}]
[{"$f":"IF(LEN('Honorarlønnet 10'!$A$4)>0,\"Ja\",\"\")","v":""},{"$f":"IF('Honorarlønnet 10'!$E$7=\"Ja\",\"Sender faktura\",+'Honorarlønnet 10'!$B$7)","v":0},null,{"$f":"+'Delkursusleder 1'!$B$23","v":"00:00:00"},2510,{"$f":"+Samlingsark!L17","v":0},null,1,null,null,{"$f":"'Delkursusleder 1'!$B$8","v":"[vælg fra liste]"},null,null,1,{"$f":"+Samlingsark!$D$4","v":"Kursusnummer findes automatisk efter du har indtastet speciale/kursusnavn"},{"$f":"IF(Samlingsark!L17>0.1,'Adm.ark satser'!$D$3,0)","v":0},null,null,null,{"$f":"'Honorarlønnet 10'!$B$5","v":0}]
[{"$f":"IF(LEN('Honorarlønnet 10'!$A$4)>0,\"Ja\",\"\")","v":""},{"$f":"IF('Honorarlønnet 10'!$E$7=\"Ja\",\"Sender faktura\",+'Honorarlønnet 10'!$B$7)","v":0},null,{"$f":"+'Delkursusleder 1'!$B$23","v":"00:00:00"},2510,{"$f":"+Samlingsark!M17","v":0},null,1,null,null,{"$f":"'Delkursusleder 1'!$B$8","v":"[vælg fra liste]"},null,null,1,{"$f":"+Samlingsark!$D$4","v":"Kursusnummer findes automatisk efter du har indtastet speciale/kursusnavn"},{"$f":"IF(Samlingsark!M17>0.1,'Adm.ark satser'!$D$4,0)","v":0},null,null,null,{"$f":"'Honorarlønnet 10'!$B$5","v":0}]
[{"$f":"IF(LEN('Honorarlønnet 11'!$A$4)>0,\"Ja\",\"\")","v":""},{"$f":"IF('Honorarlønnet 11'!$E$7=\"Ja\",\"Sender faktura\",+'Honorarlønnet 11'!$B$7)","v":0},null,{"$f":"+'Delkursusleder 1'!$B$23","v":"00:00:00"},2510,{"$f":"+Samlingsark!K18","v":0},null,1,null,null,{"$f":"'Delkursusleder 1'!$B$8","v":"[vælg fra liste]"},null,null,1,{"$f":"+Samlingsark!$D$4","v":"Kursusnummer findes automatisk efter du har indtastet speciale/kursusnavn"},{"$f":"IF(Samlingsark!K18>0.1,'Adm.ark satser'!$D$2,0)","v":0},null,null,null,{"$f":"'Honorarlønnet 11'!$B$5","v":0}]
[{"$f":"IF(LEN('Honorarlønnet 11'!$A$4)>0,\"Ja\",\"\")","v":""},{"$f":"IF('Honorarlønnet 11'!$E$7=\"Ja\",\"Sender faktura\",+'Honorarlønnet 11'!$B$7)","v":0},null,{"$f":"+'Delkursusleder 1'!$B$23","v":"00:00:00"},2510,{"$f":"+Samlingsark!L18","v":0},null,1,null,null,{"$f":"'Delkursusleder 1'!$B$8","v":"[vælg fra liste]"},null,null,1,{"$f":"+Samlingsark!$D$4","v":"Kursusnummer findes automatisk efter du har indtastet speciale/kursusnavn"},{"$f":"IF(Samlingsark!L18>0.1,'Adm.ark satser'!$D$3,0)","v":0},null,null,null,{"$f":"'Honorarlønnet 11'!$B$5","v":0}]
[{"$f":"IF(LEN('Honorarlønnet 11'!$A$4)>0,\"Ja\",\"\")","v":""},{"$f":"IF('Honorarlønnet 11'!$E$7=\"Ja\",\"Sender faktura\",+'Honorarlønnet 11'!$B$7)","v":0},null,{"$f":"+'Delkursusleder 1'!$B$23","v":"00:00:00"},2510,{"$f":"+Samlingsark!M18","v":0},null,1,null,null,{"$f":"'Delkursusleder 1'!$B$8","v":"[vælg fra liste]"},null,null,1,{"$f":"+Samlingsark!$D$4","v":"Kursusnummer findes automatisk efter du har indtastet speciale/kursusnavn"},{"$f":"IF(Samlingsark!M18>0.1,'Adm.ark satser'!$D$4,0)","v":0},null,null,null,{"$f":"'Honorarlønnet 11'!$B$5","v":0}]
[{"$f":"IF(LEN('Honorarlønnet 12'!$A$4)>0,\"Ja\",\"\")","v":""},{"$f":"IF('Honorarlønnet 12'!$E$7=\"Ja\",\"Sender faktura\",+'Honorarlønnet 12'!$B$7)","v":0},null,{"$f":"+'Delkursusleder 1'!$B$23","v":"00:00:00"},2510,{"$f":"+Samlingsark!K19","v":0},null,1,null,null,{"$f":"'Delkursusleder 1'!$B$8","v":"[vælg fra liste]"},null,null,1,{"$f":"+Samlingsark!$D$4","v":"Kursusnummer findes automatisk efter du har indtastet speciale/kursusnavn"},{"$f":"IF(Samlingsark!K19>0.1,'Adm.ark satser'!$D$2,0)","v":0},null,null,null,{"$f":"'Honorarlønnet 12'!$B$5","v":0}]
[{"$f":"IF(LEN('Honorarlønnet 12'!$A$4)>0,\"Ja\",\"\")","v":""},{"$f":"IF('Honorarlønnet 12'!$E$7=\"Ja\",\"Sender faktura\",+'Honorarlønnet 12'!$B$7)","v":0},null,{"$f":"+'Delkursusleder 1'!$B$23","v":"00:00:00"},2510,{"$f":"+Samlingsark!L19","v":0},null,1,null,null,{"$f":"'Delkursusleder 1'!$B$8","v":"[vælg fra liste]"},null,null,1,{"$f":"+Samlingsark!$D$4","v":"Kursusnummer findes automatisk efter du har indtastet speciale/kursusnavn"},{"$f":"IF(Samlingsark!L19>0.1,'Adm.ark satser'!$D$3,0)","v":0},null,null,null,{"$f":"'Honorarlønnet 12'!$B$5","v":0}]
[{"$f":"IF(LEN('Honorarlønnet 12'!$A$4)>0,\"Ja\",\"\")","v":""},{"$f":"IF('Honorarlønnet 12'!$E$7=\"Ja\",\"Sender faktura\",+'Honorarlønnet 12'!$B$7)","v":0},null,{"$f":"+'Delkursusleder 1'!$B$23","v":"00:00:00"},2510,{"$f":"+Samlingsark!M19","v":0},null,1,null,null,{"$f":"'Delkursusleder 1'!$B$8","v":"[vælg fra liste]"},null,null,1,{"$f":"+Samlingsark!$D$4","v":"Kursusnummer findes automatisk efter du har indtastet speciale/kursusnavn"},{"$f":"IF(Samlingsark!M19>0.1,'Adm.ark satser'!$D$4,0)","v":0},null,null,null,{"$f":"'Honorarlønnet 12'!$B$5","v":0}]
[{"$f":"IF(LEN('Honorarlønnet 13'!$A$4)>0,\"Ja\",\"\")","v":""},{"$f":"IF('Honorarlønnet 13'!$E$7=\"Ja\",\"Sender faktura\",+'Honorarlønnet 13'!$B$7)","v":0},null,{"$f":"+'Delkursusleder 1'!$B$23","v":"00:00:00"},2510,{"$f":"+Samlingsark!K20","v":0},null,1,null,null,{"$f":"'Delkursusleder 1'!$B$8","v":"[vælg fra liste]"},null,null,1,{"$f":"+Samlingsark!$D$4","v":"Kursusnummer findes automatisk efter du har indtastet speciale/kursusnavn"},{"$f":"IF(Samlingsark!K20>0.1,'Adm.ark satser'!$D$2,0)","v":0},null,null,null,{"$f":"'Honorarlønnet 13'!$B$5","v":0}]
[{"$f":"IF(LEN('Honorarlønnet 13'!$A$4)>0,\"Ja\",\"\")","v":""},{"$f":"IF('Honorarlønnet 13'!$E$7=\"Ja\",\"Sender faktura\",+'Honorarlønnet 13'!$B$7)","v":0},null,{"$f":"+'Delkursusleder 1'!$B$23","v":"00:00:00"},2510,{"$f":"+Samlingsark!L20","v":0},null,1,null,null,{"$f":"'Delkursusleder 1'!$B$8","v":"[vælg fra liste]"},null,null,1,{"$f":"+Samlingsark!$D$4","v":"Kursusnummer findes automatisk efter du har indtastet speciale/kursusnavn"},{"$f":"IF(Samlingsark!L20>0.1,'Adm.ark satser'!$D$3,0)","v":0},null,null,null,{"$f":"'Honorarlønnet 13'!$B$5","v":0}]
[{"$f":"IF(LEN('Honorarlønnet 13'!$A$4)>0,\"Ja\",\"\")","v":""},{"$f":"IF('Honorarlønnet 13'!$E$7=\"Ja\",\"Sender faktura\",+'Honorarlønnet 13'!$B$7)","v":0},null,{"$f":"+'Delkursusleder 1'!$B$23","v":"00:00:00"},2510,{"$f":"+Samlingsark!M20","v":0},null,1,null,null,{"$f":"'Delkursusleder 1'!$B$8","v":"[vælg fra liste]"},null,null,1,{"$f":"+Samlingsark!$D$4","v":"Kursusnummer findes automatisk efter du har indtastet speciale/kursusnavn"},{"$f":"IF(Samlingsark!M20>0.1,'Adm.ark satser'!$D$4,0)","v":0},null,null,null,{"$f":"'Honorarlønnet 13'!$B$5","v":0}]
[{"$f":"IF(LEN('Honorarlønnet 14'!$A$4)>0,\"Ja\",\"\")","v":""},{"$f":"IF('Honorarlønnet 14'!$E$7=\"Ja\",\"Sender faktura\",+'Honorarlønnet 14'!$B$7)","v":0},null,{"$f":"+'Delkursusleder 1'!$B$23","v":"00:00:00"},2510,{"$f":"+Samlingsark!K21","v":0},null,1,null,null,{"$f":"'Delkursusleder 1'!$B$8","v":"[vælg fra liste]"},null,null,1,{"$f":"+Samlingsark!$D$4","v":"Kursusnummer findes automatisk efter du har indtastet speciale/kursusnavn"},{"$f":"IF(Samlingsark!K21>0.1,'Adm.ark satser'!$D$2,0)","v":0},null,null,null,{"$f":"'Honorarlønnet 14'!$B$5","v":0}]
[{"$f":"IF(LEN('Honorarlønnet 14'!$A$4)>0,\"Ja\",\"\")","v":""},{"$f":"IF('Honorarlønnet 14'!$E$7=\"Ja\",\"Sender faktura\",+'Honorarlønnet 14'!$B$7)","v":0},null,{"$f":"+'Delkursusleder 1'!$B$23","v":"00:00:00"},2510,{"$f":"+Samlingsark!L21","v":0},null,1,null,null,{"$f":"'Delkursusleder 1'!$B$8","v":"[vælg fra liste]"},null,null,1,{"$f":"+Samlingsark!$D$4","v":"Kursusnummer findes automatisk efter du har indtastet speciale/kursusnavn"},{"$f":"IF(Samlingsark!L21>0.1,'Adm.ark satser'!$D$3,0)","v":0},null,null,null,{"$f":"'Honorarlønnet 14'!$B$5","v":0}]
[{"$f":"IF(LEN('Honorarlønnet 14'!$A$4)>0,\"Ja\",\"\")","v":""},{"$f":"IF('Honorarlønnet 14'!$E$7=\"Ja\",\"Sender faktura\",+'Honorarlønnet 14'!$B$7)","v":0},null,{"$f":"+'Delkursusleder 1'!$B$23","v":"00:00:00"},2510,{"$f":"+Samlingsark!M21","v":0},null,1,null,null,{"$f":"'Delkursusleder 1'!$B$8","v":"[vælg fra liste]"},null,null,1,{"$f":"+Samlingsark!$D$4","v":"Kursusnummer findes automatisk efter du har indtastet speciale/kursusnavn"},{"$f":"IF(Samlingsark!M21>0.1,'Adm.ark satser'!$D$4,0)","v":0},null,null,null,{"$f":"'Honorarlønnet 14'!$B$5","v":0}]
[{"$f":"IF(LEN('Honorarlønnet 15'!$A$4)>0,\"Ja\",\"\")","v":""},{"$f":"IF('Honorarlønnet 15'!$E$7=\"Ja\",\"Sender faktura\",+'Honorarlønnet 15'!$B$7)","v":0},null,{"$f":"+'Delkursusleder 1'!$B$23","v":"00:00:00"},2510,{"$f":"+Samlingsark!K22","v":0},null,1,null,null,{"$f":"'Delkursusleder 1'!$B$8","v":"[vælg fra liste]"},null,null,1,{"$f":"+Samlingsark!$D$4","v":"Kursusnummer findes automatisk efter du har indtastet speciale/kursusnavn"},{"$f":"IF(Samlingsark!K22>0.1,'Adm.ark satser'!$D$2,0)","v":0},null,null,null,{"$f":"'Honorarlønnet 15'!$B$5","v":0}]
[{"$f":"IF(LEN('Honorarlønnet 15'!$A$4)>0,\"Ja\",\"\")","v":""},{"$f":"IF('Honorarlønnet 15'!$E$7=\"Ja\",\"Sender faktura\",+'Honorarlønnet 15'!$B$7)","v":0},null,{"$f":"+'Delkursusleder 1'!$B$23","v":"00:00:00"},2510,{"$f":"+Samlingsark!L22","v":0},null,1,null,null,{"$f":"'Delkursusleder 1'!$B$8","v":"[vælg fra liste]"},null,null,1,{"$f":"+Samlingsark!$D$4","v":"Kursusnummer findes automatisk efter du har indtastet speciale/kursusnavn"},{"$f":"IF(Samlingsark!L22>0.1,'Adm.ark satser'!$D$3,0)","v":0},null,null,null,{"$f":"'Honorarlønnet 15'!$B$5","v":0}]
[{"$f":"IF(LEN('Honorarlønnet 15'!$A$4)>0,\"Ja\",\"\")","v":""},{"$f":"IF('Honorarlønnet 15'!$E$7=\"Ja\",\"Sender faktura\",+'Honorarlønnet 15'!$B$7)","v":0},null,{"$f":"+'Delkursusleder 1'!$B$23","v":"00:00:00"},2510,{"$f":"+Samlingsark!M22","v":0},null,1,null,null,{"$f":"'Delkursusleder 1'!$B$8","v":"[vælg fra liste]"},null,null,1,{"$f":"+Samlingsark!$D$4","v":"Kursusnummer findes automatisk efter du har indtastet speciale/kursusnavn"},{"$f":"IF(Samlingsark!M22>0.1,'Adm.ark satser'!$D$4,0)","v":0},null,null,null,{"$f":"'Honorarlønnet 15'!$B$5","v":0}]

{"sheet":"Adm.ark satser","index":26,"n_rows":8,"n_cols":13,"rows_kept":8,"cut":false,"hidden":false,"merged":[[0,0,0,1]]}
["Satser (marts 12-niv.)",null,"Satser (aktuelt niv.) ","Udgiftstype",null,"Regulerings-procent","2024-04-01",null,"Satser okt. '97 niv.",null,"Max beløb til deling sekretær og hovedkursusleder",null,"Sender faktura"]
["Forelæsningstimer",1570.98,{"$f":"+B2*$G$2","v":1929.26869566},1,null,null,1.228067,null,1198.6199999999999,null,{"$f":"+C6","v":9000},null,"Ja"]
["Diskussionstimer",392.74,{"$f":"+B3*$G$2","v":482.31103358000001},2,null,null,null,null,299.64999999999998,null,null,null,"Nej"]
["Medhjælpertimer",259.89999999999998,319.17461329999998,3,null,null,null,null,197.78]
["Delkursuslederhonorar",8000,{"$f":"+B5","v":8000},4,null,null,null,null,8000,"*Bemærk fast beløb, reguleres ikke"]
["Administrationshonorar",9000,{"$f":"+B6","v":9000},5,null,null,null,null,9000,"*Bemærk fast beløb, reguleres ikke"]
["Hovedkursusledertime",275.92,{"$f":"+B7*$G$2","v":338.84824664000001},5,null,null,null,null,"Ukendt"]
["Sekretærtimer",160.80000000000001,{"$f":"+B8*$G$2","v":197.47317360000002},5,null,null,null,null,"Ukendt"]